Workbook

Sheet TRM Spreadsheet
A1: Evergy Technical Resource Manual - 2020-01-01 Update
A2: Measures updated with PY3 EM&V results | AO2: Link to CDD | AP2: Link to HDD
A3: New Measures
A4: Measure Description | H4: Gross Measure Values | AA4: Efficiency Values | AI4: Algorithms | AM4: Start/End Dates | AO4: Quantities
A5: Program | B5: Measure Name | C5: Primary Key | D5: Segment | E5: End Use | F5: Notes | G5: Unit Definition | H5: Incremental Measure Cost ($/Unit) | I5: Incremental Measure Cost Source | J5: Incremental Measure Cost Source Page Number | K5: Electric Energy Savings (Annual kWh/unit) | L5: Electric Energy Savings (Annual kWh/unit) Source | M5: Electric Energy Savings (Annual kWh/unit) Source Page Number | N5: Nameplate Demand Savings (kW/unit) | O5: Peak Coincidence Factor | P5: Peak Coincident Factor Source | Q5: Peak Coincident Factor Source Page Number | R5: Coincident Peak Demand Savings (kW/unit) | S5: Coincident Peak Demand Savings (kW/unit) Source | T5: Coincident Peak Demand Savings (kW/unit) Source Page Number | U5: Annual Operating Hours | V5: Annual Operating Hours Source | W5: Annual Operating Hours Source Page Number | X5: Measure Life (Years) | Y5: Measure Life (Years) Source | Z5: Measure Life (Years) Source Page Number | AA5: Measure Definition | AB5: Measure Efficiency Value | AC5: Measure Efficiency Value Source | AD5: Measure Efficiency Value Source Page Number | AE5: Baseline Definition | AF5: Baseline Efficiency Value | AG5: Baseline Efficiency Value Source | AH5: Baseline Efficiency Value Source Page Number | AI5: Electric Energy Savings Algorithm | AJ5: Electric Demand Savings Algorithm | AK5: Savings Algorithms Source | AL5: Savings Algorithms Source Page Number | AM5: Effective Start Date | AN5: Effective End Date | AO5: Cooling Degree Days (CDD) | AP5: Heating Degree Days (HDD) | AQ5: Degree Days Source | AR5: Degree Days Source Page Number | AS5: Quantity 1 | AT5: Quantity 1 Description | AU5: Quantity 1 Source | AV5: Quantity 1 Source Page Number | AW5: Quantity 2 | AX5: Quantity 2 Description | AY5: Quantity 2 Source | AZ5: Quantity 2 Source Page Number | BA5: Quantity 3 | BB5: Quantity 3 Description | BC5: Quantity 3 Source | BD5: Quantity 3 Source Page Number | BE5: Quantity 4 | BF5: Quantity 4 Description | BG5: Quantity 4 Source | BH5: Quantity 4 Source Page Number | BI5: Quantity 5 | BJ5: Quantity 5 Description | BK5: Quantity 5 Source | BL5: Quantity 5 Source Page Number | BM5: Quantity 6 | BN5: Quantity 6 Description | BO5: Quantity 6 Source | BP5: Quantity 6 Source Page Number | BQ5: Quantity 7 | BR5: Quantity 7 Description | BS5: Quantity 7 Source | BT5: Quantity 7 Source Page Number | BU5: Quantity 8 | BV5: Quantity 8 Description | BW5: Quantity 8 Source | BX5: Quantity 8 Source Page Number | BY5: Quantity 9 | BZ5: Quantity 9 Description | CA5: Quantity 9 Source | CB5: Quantity 9 Source Page Number | CC5: Quantity 10 | CD5: Quantity 10 Description | CE5: Quantity 10 Source | CF5: Quantity 10 Source Page Number | CG5: Quantity 11 | CH5: Quantity 11 Description | CI5: Quantity 11 Source | CJ5: Quantity 11 Source Page Number | CK5: Quantity 12 | CL5: Quantity 12 Description | CM5: Quantity 12 Source | CN5: Quantity 12 Source Page Number | CO5: Quantity 13 | CP5: Quantity 13 Description | CQ5: Quantity 13 Source | CR5: Quantity 13 Source Page Number | CS5: Quantity 14 | CT5: Quantity 14 Description | CU5: Quantity 14 Source | CV5: Quantity 14 Source Page Number | CW5: Quantity 15 | CX5: Quantity 15 Description | CY5: Quantity 15 Source | CZ5: Quantity 15 Source Page Number | DA5: Quantity 16 | DB5: Quantity 16 Description | DC5: Quantity 16 Source | DD5: Quantity 16 Source Page Number | DE5: Quantity 17 | DF5: Quantity 17 Description | DG5: Quantity 17 Source | DH5: Quantity 17 Source Page Number | DI5: Quantity 18 | DJ5: Quantity 18 Description | DK5: Quantity 18 Source | DL5: Quantity 18 Source Page Number | DM5: Quantity 19 | DN5: Quantity 19 Description | DO5: Quantity 19 Source | DP5: Quantity 19 Source Page Number
A6: Energy Saving Products | B6: Screw In - LEDs | C6: 2.2 | D6: All | E6: Lighting | G6: per lamp | H6: 3.93 | I6: Program Tracking Data | K6: =ROUND(($AF6-$AB6)/1000*$U6*$AS6*$BA6,4) -> 39.0136 | L6: Calculated Value | N6: =K6/U6 -> 0.03366143227 | O6: 0.135 | P6: IL TRM v7 vol3 - blended interior/exterior value | Q6: 274 | R6: =ROUND(($AF6-$AB6)/1000*O6*$AW6*$BA6,4) -> 0.0047 | S6: Calculated Value | U6: 1159 | V6: IL TRM v7 vol3 - blended interior/exterior value | W6: 271 | X6: 10 | Y6: IL TRM v7 vol3 | Z6: 268 | AA6: Screw In - LEDs | AB6: 9 | AC6: Program Tracking Data | AE6: 43 watts based on halogen equivalent to average of bulbs sold in program | AF6: 43 | AG6: Program Tracking Database | AI6: =cellformula(K6) -> =ROUND(($AF6-$AB6)/1000*$U6*$AS6*$BA6,4) | AJ6: =cellformula(R6) -> =ROUND(($AF6-$AB6)/1000*O6*$AW6*$BA6,4) | AK6: IL TRM v7 vol3 | AL6: 269, 273 | AM6: 2020-01-01 | AS6: 1.051 | AT6: Waste Heat Factor, Energy | AU6: IL TRM v7 vol3 - blended interior/exterior value | AV6: 279 | AW6: 1.093 | AX6: Waste Heat Factor, Demand | AY6: IL TRM v7 vol3 - blended interior/exterior value | AZ6: 271 | BA6: 0.942 | BB6: ISR | BC6: Navigant MEEIA Cycle 1 Research
A7: Energy Saving Products | B7: Screw In - Specialty LEDs | C7: 244.2 | D7: All | E7: Lighting | G7: per lamp | H7: 7.39 | I7: IL TRM v5 vol3 | J7: 265 | K7: =ROUND((AF7-AB7)/1000*U7*AS7*BA7,4) -> 34.075 | L7: Calculated Value | N7: =K7/U7 -> 0.03455882353 | O7: 0.08 | P7: IL TRM v5 vol3 | Q7: 258 | R7: =ROUND(($AF7-$AB7)/1000*$O7*$AW7*$BA7,4) -> 0.0029 | S7: Calculated Value | U7: 986 | V7: IL TRM v5 vol3 | W7: 208 | X7: 10 | Y7: IL TRM v5 vol3 | Z7: 205 | AA7: Screw In - Specialty LEDs | AB7: 8.39 | AC7: Program Tracking Data | AE7: 43 watts based on halogen equivalent to average of bulbs sold in program | AF7: 43 | AG7: IL TRM v5 vol3 | AH7: 265 | AI7: =cellformula(K7) -> =ROUND((AF7-AB7)/1000*U7*AS7*BA7,4) | AJ7: =cellformula(R7) -> =ROUND(($AF7-$AB7)/1000*$O7*$AW7*$BA7,4) | AK7: IL TRM v7 vol3 | AL7: 250, 259 | AM7: 2020-01-01 | AS7: 1.06 | AT7: Waste Heat Factor, Energy | AU7: IL TRM v5 vol3 | AV7: 249 | AW7: 1.11 | AX7: Waste Heat Factor, Demand | AY7: IL TRM v5 vol3 | AZ7: 251 | BA7: 0.942 | BB7: ISR | BC7: Navigant MEEIA Cycle 1 Research
A8: Energy Saving Products | B8: Dehumidifiers | C8: 270 | D8: All | E8: Misc | G8: per unit | H8: 60 | I8: IL TRM v6 vol3 | J8: 14 | K8: =ROUND(140,4) -> 140 | L8: Calculated Value | O8: 0.37 | P8: IL TRM v6 vol3 | Q8: 16 | R8: =ROUND(0.032,4) -> 0.032 | S8: Calculated Value | U8: 1632 | V8: IL TRM v6 vol3 | W8: 16 | X8: 12 | Y8: IL TRM v6 vol2 | Z8: 14 | AA8: Dehumidifier that meets ENERGY STAR criteria | AE8: Non-ENERGY STAR dehumidifier | AI8: Deemed Value | AJ8: Deemed Value | AK8: IL TRM v6 vol3 | AL8: 15,16 | AM8: 2020-01-01
A9: Energy Saving Products | B9: Room AC Units | C9: 271 | D9: All | E9: HVAC | G9: per unit | H9: 40 | I9: IL TRM v6 vol3 | J9: 34 | K9: =ROUND((AS9*AW9*((1/BA9)-(1/BE9)))/1000,4) -> 14.6387 | L9: Calculated Value | N9: =K9/U9 -> 0.03420257009 | O9: 0.3 | P9: IL TRM v6 vol3 | Q9: 34 | R9: =ROUND(AW9*(((1/(BA9*1.01))-(1/(BE9*1.01))))/1000*O9,4) -> 0.0102 | S9: Calculated Value | U9: 428 | V9: IL TRM v6 vol3 | W9: 35 | X9: 12 | Y9: IL TRM v6 vol3 | Z9: 34 | AA9: Room AC unit that meets ENERGY STAR criteria | AC9: IL TRM v6 vol3 | AD9: 33 | AE9: Non-ENERGY STAR room AC | AG9: IL TRM v6 vol3 | AH9: 34 | AI9: =cellformula(K9) -> =ROUND((AS9*AW9*((1/BA9)-(1/BE9)))/1000,4) | AJ9: =cellformula(R9) -> =ROUND(AW9*(((1/(BA9*1.01))-(1/(BE9*1.01))))/1000*O9,4) | AK9: IL TRM v6 vol3 | AL9: 34 | AM9: 2020-01-01 | AS9: 428 | AT9: FLH_RoomAC | AU9: IL TRM v6 vol3 | AV9: 35 | AW9: 8500 | AX9: Btu/H | AY9: IL TRM v6 vol3 | AZ9: 35 | BA9: 10.9 | BB9: CEERbase | BC9: IL TRM v6 vol3 | BD9: 33 | BE9: 11.4 | BF9: CEERee | BG9: IL TRM v6 vol3 | BH9: 33
A10: Energy Saving Products | B10: Room Air Purifiers - CADR 51-100 | C10: 272 | D10: All | E10: Misc | G10: per unit | H10: 70 | I10: IL TRM v6 vol3 | J10: 5 | K10: =ROUND(AS10-AW10,4) -> 293 | L10: Calculated Value | N10: 0.05013689254 | O10: 0.667 | P10: IL TRM v6 vol3 | Q10: 6 | R10: =ROUND(K10/U10*O10,4) -> 0.0334 | S10: Calculated Value | U10: 5844 | V10: IL TRM v6 vol3 | W10: 6 | X10: 9 | Y10: IL TRM v6 vol3 | Z10: 5 | AA10: Air purifier that meets ENERGY STAR criteria | AE10: Non-ENERGY STAR air purifier | AI10: =ROUND(AS10-AW10,4) | AJ10: =ROUND(K10/U10*O10,4) | AK10: IL TRM v6 vol3 | AL10: 6 | AM10: 2020-01-01 | AS10: 441 | AT10: Baseline Unit Energy Consumption | AU10: IL TRM v6 vol3 | AV10: 6 | AW10: 148 | AX10: Energy Star Unit Energy Consumption | AY10: IL TRM v6 vol3 | AZ10: 6
A11: Energy Saving Products | B11: Room Air Purifiers - CADR 101-150 | C11: 412 | D11: All | E11: Misc | G11: per unit | H11: 70 | I11: IL TRM v6 vol3 | J11: 5 | K11: 488 | L11: Calculated Value | N11: 0.08350444901 | O11: 0.667 | P11: IL TRM v6 vol3 | Q11: 6 | R11: 0.0557 | S11: Calculated Value | U11: 5844 | V11: IL TRM v6 vol3 | W11: 6 | X11: 9 | Y11: IL TRM v6 vol3 | Z11: 5 | AA11: Air purifier that meets ENERGY STAR criteria | AE11: Non-ENERGY STAR air purifier | AI11: =ROUND(AS11-AW11,4) | AJ11: =ROUND(K11/U11*O11,4) | AK11: IL TRM v6 vol3 | AL11: 6 | AM11: 2020-01-01 | AS11: 733 | AT11: Baseline Unit Energy Consumption | AU11: IL TRM v6 vol3 | AV11: 6 | AW11: 245 | AX11: Energy Star Unit Energy Consumption | AY11: IL TRM v6 vol3 | AZ11: 6
A12: Energy Saving Products | B12: Room Air Purifiers - CADR 151-200 | C12: 413 | D12: All | E12: Misc | G12: per unit | H12: 70 | I12: IL TRM v6 vol3 | J12: 5 | K12: 683 | L12: Calculated Value | N12: 0.1168720055 | O12: 0.667 | P12: IL TRM v6 vol3 | Q12: 6 | R12: 0.078 | S12: Calculated Value | U12: 5844 | V12: IL TRM v6 vol3 | W12: 6 | X12: 9 | Y12: IL TRM v6 vol3 | Z12: 5 | AA12: Air purifier that meets ENERGY STAR criteria | AE12: Non-ENERGY STAR air purifier | AI12: =ROUND(AS12-AW12,4) | AJ12: =ROUND(K12/U12*O12,4) | AK12: IL TRM v6 vol3 | AL12: 6 | AM12: 2020-01-01 | AS12: 1025 | AT12: Baseline Unit Energy Consumption | AU12: IL TRM v6 vol3 | AV12: 6 | AW12: 342 | AX12: Energy Star Unit Energy Consumption | AY12: IL TRM v6 vol3 | AZ12: 6
A13: Energy Saving Products | B13: Room Air Purifiers - CADR 201-250 | C13: 414 | D13: All | E13: Misc | G13: per unit | H13: 70 | I13: IL TRM v6 vol3 | J13: 5 | K13: 877 | L13: Calculated Value | N13: 0.1500684463 | O13: 0.667 | P13: IL TRM v6 vol3 | Q13: 6 | R13: 0.1001 | S13: Calculated Value | U13: 5844 | V13: IL TRM v6 vol3 | W13: 6 | X13: 9 | Y13: IL TRM v6 vol3 | Z13: 5 | AA13: Air purifier that meets ENERGY STAR criteria | AE13: Non-ENERGY STAR air purifier | AI13: =ROUND(AS13-AW13,4) | AJ13: =ROUND(K13/U13*O13,4) | AK13: IL TRM v6 vol3 | AL13: 6 | AM13: 2020-01-01 | AS13: 1317 | AT13: Baseline Unit Energy Consumption | AU13: IL TRM v6 vol3 | AV13: 6 | AW13: 440 | AX13: Energy Star Unit Energy Consumption | AY13: IL TRM v6 vol3 | AZ13: 6
A14: Energy Saving Products | B14: Room Air Purifiers - CADR Over 250 | C14: 415 | D14: All | E14: Misc | G14: per unit | H14: 70 | I14: IL TRM v6 vol3 | J14: 5 | K14: 1169 | L14: Calculated Value | N14: 0.2000342231 | O14: 0.667 | P14: IL TRM v6 vol3 | Q14: 6 | R14: 0.1334 | S14: Calculated Value | U14: 5844 | V14: IL TRM v6 vol3 | W14: 6 | X14: 9 | Y14: IL TRM v6 vol3 | Z14: 5 | AA14: Air purifier that meets ENERGY STAR criteria | AE14: Non-ENERGY STAR air purifier | AI14: =ROUND(AS14-AW14,4) | AJ14: =ROUND(K14/U14*O14,4) | AK14: IL TRM v6 vol3 | AL14: 6 | AM14: 2020-01-01 | AS14: 1755 | AT14: Baseline Unit Energy Consumption | AU14: IL TRM v6 vol3 | AV14: 6 | AW14: 586 | AX14: Energy Star Unit Energy Consumption | AY14: IL TRM v6 vol3 | AZ14: 6
A15: Energy Saving Products | B15: Smart Thermostat - ASHP heating / cooling SF | C15: 273 | D15: Single Family | E15: HVAC | G15: per unit | H15: 175 | I15: IL TRM v6 vol3 | J15: 160 | K15: =ROUND((AS15*AW15*BA15*BE15*BI15)+(BM15*((BQ15*BU15*(1/BY15))/1000)*CC15*BI15),4) -> 862.7238 | L15: Calculated Value | O15: 0.34 | P15: Calculated Value | R15: =ROUND(BM15*(CC15*BU15*(1/CG15))/1000*BI15*O15,4) -> 0.093 | S15: Calculated Value | X15: 10 | Y15: IL TRM v6 vol3 | Z15: 160 | AA15: Smart thermostat | AC15: IL TRM v6 vol3 | AD15: 160 | AE15: Actual thermostat replaced by smart thermostat, or 44% programmable and 56% manual thermostats may be assumed | AG15: IL TRM v6 vol3 | AH15: 160 | AI15: =ROUND((AS15*AW15*BA15*BE15*BI15)+(BM15*((BQ15*BU15*(1/BY15))/1000)*CC15*BI15),4) | AJ15: =ROUND(BM15*(CC15*BU15*(1/CG15))/1000*BI15*O15,4) | AK15: IL TRM v6 vol3 | AL15: 161, 164 | AM15: 2020-01-01 | AS15: 1 | AT15: %ElectricHeat | AU15: IL TRM v6 vol3 | AV15: 161 | AW15: 8072 | AX15: Elec_Heating_Consumption | AY15: IL TRM v6 vol3 | AZ15: 161 | BA15: 0.074 | BB15: Heating_Reduction | BC15: IL TRM v6 vol3 | BD15: 162 | BE15: 1 | BF15: HF | BG15: IL TRM v6 vol3 | BH15: 162 | BI15: 1 | BJ15: Eff_ISR | BK15: IL TRM v6 vol3 | BL15: 162 | BM15: 0.87 | BN15: %AC | BO15: IL TRM v6 vol3 | BP15: 163 | BQ15: 1035 | BR15: FLH | BS15: IL TRM v6 vol3 | BT15: 163 | BU15: 33600 | BV15: BTU/hr | BW15: IL TRM v6 vol3 | BX15: 163 | BY15: 9.12 | BZ15: SEER | CA15: IL TRM v6 vol3 | CB15: 163 | CC15: 0.08 | CD15: Cooling_Reduction | CE15: IL TRM v6 vol3 | CF15: 163 | CG15: 8.55 | CH15: EER | CI15: IL TRM v6 vol3 | CJ15: 164
A16: Energy Saving Products | B16: Smart Thermostat - ASHP heating / cooling MF | C16: 416 | D16: Multi-Family | E16: HVAC | G16: per unit | H16: 175 | I16: IL TRM v6 vol3 | J16: 160 | K16: 515.7074 | L16: Calculated Value | O16: 0.34 | P16: IL TRM v6 vol3 | Q16: 164 | R16: 0.0492 | S16: Calculated Value | X16: 10 | Y16: IL TRM v6 vol3 | Z16: 160 | AA16: Smart thermostat | AC16: IL TRM v6 vol3 | AD16: 160 | AE16: Actual thermostat replaced by smart thermostat, or 44% programmable and 56% manual thermostats may be assumed | AG16: IL TRM v6 vol3 | AH16: 160 | AI16: =ROUND((AS16*AW16*BA16*BE16*BI16)+(BM16*((BQ16*BU16*(1/BY16))/1000)*CC16*BI16),4) | AJ16: =ROUND(BM16*(CC16*BU16*(1/CG16))/1000*BI16*O16,4) | AK16: IL TRM v6 vol3 | AL16: 161, 164 | AM16: 2020-01-01 | AS16: 1 | AT16: %ElectricHeat | AU16: IL TRM v6 vol3 | AV16: 161 | AW16: 8072 | AX16: Elec_Heating_Consumption | AY16: IL TRM v6 vol3 | AZ16: 161 | BA16: 0.074 | BB16: Heating_Reduction | BC16: IL TRM v6 vol3 | BD16: 162 | BE16: 0.65 | BF16: HF | BG16: IL TRM v6 vol3 | BH16: 162 | BI16: 1 | BJ16: Eff_ISR | BK16: IL TRM v6 vol3 | BL16: 162 | BM16: 0.46 | BN16: %AC | BO16: IL TRM v6 vol3 | BP16: 163 | BQ16: 940 | BR16: FLH | BS16: IL TRM v6 vol3 | BT16: 163 | BU16: 33600 | BV16: BTU/hr | BW16: IL TRM v6 vol3 | BX16: 163 | BY16: 9.12 | BZ16: SEER | CA16: IL TRM v6 vol3 | CB16: 163 | CC16: 0.08 | CD16: Cooling_Reduction | CE16: IL TRM v6 vol3 | CF16: 163 | CG16: 8.55 | CH16: EER | CI16: IL TRM v6 vol3 | CJ16: 164
A17: Energy Saving Products | B17: Smart Thermostat - electric furnace heating / CAC SF | C17: 417 | D17: Single Family | E17: HVAC | G17: per unit | H17: 175 | I17: IL TRM v6 vol3 | J17: 160 | K17: 1296.871 | L17: Calculated Value | O17: 0.34 | P17: IL TRM v6 vol3 | Q17: 164 | R17: 0.0976 | S17: Calculated Value | X17: 10 | Y17: IL TRM v6 vol3 | Z17: 160 | AA17: Smart thermostat | AC17: IL TRM v6 vol3 | AD17: 160 | AE17: Actual thermostat replaced by smart thermostat, or 44% programmable and 56% manual thermostats may be assumed | AG17: IL TRM v6 vol3 | AH17: 160 | AI17: =ROUND((AS17*AW17*BA17*BE17*BI17)+(BM17*((BQ17*BU17*(1/BY17))/1000)*CC17*BI17),4) | AJ17: =ROUND(BM17*(CC17*BU17*(1/CG17))/1000*BI17*O17,4) | AK17: IL TRM v6 vol3 | AL17: 161, 164 | AM17: 2020-01-01 | AS17: 1 | AT17: %ElectricHeat | AU17: IL TRM v6 vol3 | AV17: 161 | AW17: 13722 | AX17: Elec_Heating_Consumption | AY17: IL TRM v6 vol3 | AZ17: 161 | BA17: 0.074 | BB17: Heating_Reduction | BC17: IL TRM v6 vol3 | BD17: 162 | BE17: 1 | BF17: HF | BG17: IL TRM v6 vol3 | BH17: 162 | BI17: 1 | BJ17: Eff_ISR | BK17: IL TRM v6 vol3 | BL17: 162 | BM17: 0.87 | BN17: %AC | BO17: IL TRM v6 vol3 | BP17: 163 | BQ17: 1035 | BR17: FLH | BS17: IL TRM v6 vol3 | BT17: 163 | BU17: 33600 | BV17: BTU/hr | BW17: IL TRM v6 vol3 | BX17: 163 | BY17: 8.6 | BZ17: SEER | CA17: IL TRM v6 vol3 | CB17: 163 | CC17: 0.08 | CD17: Cooling_Reduction | CE17: IL TRM v6 vol3 | CF17: 163 | CG17: 8.15 | CH17: EER | CI17: IL TRM v6 vol3 | CJ17: 164
A18: Energy Saving Products | B18: Smart Thermostat - electric furnace heating / CAC MF | C18: 418 | D18: Multi-Family | E18: HVAC | G18: per unit | H18: 175 | I18: IL TRM v6 vol3 | J18: 160 | K18: 795.1783 | L18: Calculated Value | O18: 0.34 | P18: IL TRM v6 vol3 | Q18: 164 | R18: 0.0516 | S18: Calculated Value | X18: 10 | Y18: IL TRM v6 vol3 | Z18: 160 | AA18: Smart thermostat | AC18: IL TRM v6 vol3 | AD18: 160 | AE18: Actual thermostat replaced by smart thermostat, or 44% programmable and 56% manual thermostats may be assumed | AG18: IL TRM v6 vol3 | AH18: 160 | AI18: =ROUND((AS18*AW18*BA18*BE18*BI18)+(BM18*((BQ18*BU18*(1/BY18))/1000)*CC18*BI18),4) | AJ18: =ROUND(BM18*(CC18*BU18*(1/CG18))/1000*BI18*O18,4) | AK18: IL TRM v6 vol3 | AL18: 161, 164 | AM18: 2020-01-01 | AS18: 1 | AT18: %ElectricHeat | AU18: IL TRM v6 vol3 | AV18: 161 | AW18: 13722 | AX18: Elec_Heating_Consumption | AY18: IL TRM v6 vol3 | AZ18: 161 | BA18: 0.074 | BB18: Heating_Reduction | BC18: IL TRM v6 vol3 | BD18: 162 | BE18: 0.65 | BF18: HF | BG18: IL TRM v6 vol3 | BH18: 162 | BI18: 1 | BJ18: Eff_ISR | BK18: IL TRM v6 vol3 | BL18: 162 | BM18: 0.46 | BN18: %AC | BO18: IL TRM v6 vol3 | BP18: 163 | BQ18: 940 | BR18: FLH | BS18: IL TRM v6 vol3 | BT18: 163 | BU18: 33600 | BV18: BTU/hr | BW18: IL TRM v6 vol3 | BX18: 163 | BY18: 8.6 | BZ18: SEER | CA18: IL TRM v6 vol3 | CB18: 163 | CC18: 0.08 | CD18: Cooling_Reduction | CE18: IL TRM v6 vol3 | CF18: 163 | CG18: 8.15 | CH18: EER | CI18: IL TRM v6 vol3 | CJ18: 164
A19: Energy Saving Products | B19: Smart Thermostat - Gas Heated / CAC SF | C19: 419 | D19: Single Family | E19: HVAC | G19: per unit | H19: 175 | I19: IL TRM v6 vol3 | J19: 160 | K19: =ROUND((AS19*AW19*BA19*BE19*BI19)+(CO19*CK19*29.3)+(BM19*((BQ19*BU19*(1/BY19))/1000)*CC19*BI19),4) -> 326.6491 | L19: Calculated Value | O19: 0.34 | P19: Calculated Value | R19: 0.0976 | S19: Calculated Value | X19: 10 | Y19: IL TRM v6 vol3 | Z19: 160 | AA19: Smart thermostat | AC19: IL TRM v6 vol3 | AD19: 160 | AE19: Actual thermostat replaced by smart thermostat, or 44% programmable and 56% manual thermostats may be assumed | AG19: IL TRM v6 vol3 | AH19: 160 | AI19: =ROUND((AS19*AW19*BA19*BE19*BI19)+(CO19*CK19*29.3)+(BM19*((BQ19*BU19*(1/BY19))/1000)*CC19*BI19),4) | AJ19: =ROUND(BM19*(CC19*BU19*(1/CG19))/1000*BI19*O19,4) | AK19: IL TRM v6 vol3 | AL19: 161, 164 | AM19: 2020-01-01 | AS19: 0 | AT19: %ElectricHeat | AU19: IL TRM v6 vol3 | AV19: 161 | BA19: 0.074 | BB19: Heating_Reduction | BC19: IL TRM v6 vol3 | BD19: 162 | BE19: 1 | BF19: HF | BG19: IL TRM v6 vol3 | BH19: 162 | BI19: 1 | BJ19: Eff_ISR | BK19: IL TRM v6 vol3 | BL19: 162 | BM19: 0.87 | BN19: %AC | BO19: IL TRM v6 vol3 | BP19: 163 | BQ19: 1035 | BR19: FLH | BS19: IL TRM v6 vol3 | BT19: 163 | BU19: 33600 | BV19: BTU/hr | BW19: IL TRM v6 vol3 | BX19: 163 | BY19: 8.6 | BZ19: SEER | CA19: IL TRM v6 vol3 | CB19: 163 | CC19: 0.08 | CD19: Cooling_Reduction | CE19: IL TRM v6 vol3 | CF19: 163 | CG19: 8.15 | CH19: EER | CI19: IL TRM v6 vol3 | CJ19: 164 | CK19: 0.0314 | CL19: Fe | CM19: IL TRM v6 vol3 | CN19: 162 | CO19: =CS19*CW19*BA19*BE19*BI19 -> 49.136 | CP19: Therms difference | CQ19: IL TRM v6 vol3 | CR19: Calculated | CS19: 1 | CT19: %FossilHeat | CU19: IL TRM v6 vol3 | CV19: 165 | CW19: 664 | CX19: Gas Heating Consumption | CY19: IL TRM v6 vol3 | CZ19: 165
A20: Energy Saving Products | B20: Smart Thermostat - Gas Heated / CAC MF | C20: 420 | D20: Multi-Family | E20: HVAC | G20: per unit | H20: 175 | I20: IL TRM v6 vol3 | J20: 160 | K20: =ROUND((AS20*AW20*BA20*BE20*BI20)+(CO20*CK20*29.3)+(BM20*((BQ20*BU20*(1/BY20))/1000)*CC20*BI20),4) -> 164.5341 | L20: Calculated Value | O20: 0.34 | P20: Calculated Value | R20: 0.0516 | S20: Calculated Value | X20: 10 | Y20: IL TRM v6 vol3 | Z20: 160 | AA20: Smart thermostat | AC20: IL TRM v6 vol3 | AD20: 160 | AE20: Actual thermostat replaced by smart thermostat, or 44% programmable and 56% manual thermostats may be assumed | AG20: IL TRM v6 vol3 | AH20: 160 | AI20: =ROUND((AS20*AW20*BA20*BE20*BI20)+(CO20*CK20*29.3)+(BM20*((BQ20*BU20*(1/BY20))/1000)*CC20*BI20),4) | AJ20: =ROUND(BM20*(CC20*BU20*(1/CG20))/1000*BI20*O20,4) | AK20: IL TRM v6 vol3 | AL20: 161, 164 | AM20: 2020-01-01 | AS20: 0 | AT20: %ElectricHeat | AU20: IL TRM v6 vol3 | AV20: 161 | BA20: 0.074 | BB20: Heating_Reduction | BC20: IL TRM v6 vol3 | BD20: 162 | BE20: 0.65 | BF20: HF | BG20: IL TRM v6 vol3 | BH20: 162 | BI20: 1 | BJ20: Eff_ISR | BK20: IL TRM v6 vol3 | BL20: 162 | BM20: 0.46 | BN20: %AC | BO20: IL TRM v6 vol3 | BP20: 163 | BQ20: 940 | BR20: FLH | BS20: IL TRM v6 vol3 | BT20: 163 | BU20: 33600 | BV20: BTU/hr | BW20: IL TRM v6 vol3 | BX20: 163 | BY20: 8.6 | BZ20: SEER | CA20: IL TRM v6 vol3 | CB20: 163 | CC20: 0.08 | CD20: Cooling_Reduction | CE20: IL TRM v6 vol3 | CF20: 163 | CG20: 8.15 | CH20: EER | CI20: IL TRM v6 vol3 | CJ20: 164 | CK20: 0.0314 | CL20: Fe | CM20: IL TRM v6 vol3 | CN20: 162 | CO20: =CS20*CW20*BA20*BE20*BI20 -> 31.9384 | CP20: Therms difference | CQ20: IL TRM v6 vol3 | CR20: Calculated | CS20: 1 | CT20: %FossilHeat | CU20: IL TRM v6 vol3 | CV20: 165 | CW20: 664 | CX20: Gas Heating Consumption | CY20: IL TRM v6 vol3 | CZ20: 165
A21: Energy Saving Products | B21: Smart Power Strip - Wh7-Plug | C21: 312 | D21: All | E21: Electronics | G21: per unit | H21: 16 | I21: Program Tracking Data | K21: =ROUND(103,4) -> 103 | L21: Calculated Value | N21: =ROUND(K21/U21,4) -> 0.0144 | O21: 0.8 | P21: IL TRM v5 vol3 | Q21: 55 | R21: =ROUND(0.0115,4) -> 0.0115 | S21: Calculated Value | U21: 7129 | V21: IL TRM v5 vol3 | W21: 54 | X21: 7 | Y21: IL TRM v6 vol3 | Z21: 53 | AA21: Smart strip | AC21: IL TRM v6 vol3 | AD21: 53 | AE21: Standard outlet strip | AG21: IL TRM v6 vol3 | AH21: 53 | AI21: =ROUND(103,4) | AJ21: =ROUND(0.0115,4) | AK21: IL TRM v6 vol3 | AL21: 53 | AM21: 2020-01-01
A22: Energy Saving Products | B22: ENERGY STAR Refrigerators | C22: 399 | D22: All | E22: Appliances | G22: per unit | H22: 40 | I22: IL TRM v6 vol3 | J22: 28 | K22: =ROUND(AS22-AW22,4) -> 43.14 | L22: Calculated Value | P22: IL TRM v6 vol2 | Q22: 28 | R22: =ROUND(K22/U22*BE22*BI22,4) -> 0.0065 | S22: Calculated Value | U22: 8766 | V22: IL TRM v6 vol2 | W22: 30 | X22: 12 | Y22: IL TRM v6 vol2 | Z22: 28 | AA22: A refrigerator meeting the efficiency specifications of Energy Star | AC22: IL TRM v6 vol2 | AD22: 27 | AE22: A refrigerator meeting the minimum federal efficiency standard for refrigerator efficiency | AG22: IL TRM v6 vol2 | AH22: 27 | AI22: =ROUND(AS22-AW22,4) | AJ22: =ROUND(K22/U22*BE22*BI22,4) | AK22: IL TRM v6 vol2 | AL22: 28, 30 | AM22: 2020-01-01 | AS22: =7.99*BA22+225 -> 431.142 | AT22: Federal Baseline Maximum Energy Usage in kWh/year | AU22: IL TRM v6 vol2 | AV22: 26 | AW22: =7.19*BA22+202.5 -> 388.002 | AX22: Federal Energy Star Maximum Energy Usage in kWh/YEAR | AY22: IL TRM v6 vol2 | AZ22: 26 | BA22: 25.8 | BB22: Adjusted volume | BC22: Program Tracking Data | BE22: 1.25 | BF22: Temperature Adjustment Factor | BG22: IL TRM v6 vol2 | BH22: 31 | BI22: 1.057 | BJ22: Load Shape Adjustment Factor | BK22: IL TRM v6 vol2 | BL22: 31
A23: Energy Saving Products | B23: ENERGY STAR Freezers | C23: 400 | D23: All | E23: Appliances | G23: per unit | H23: 35 | I23: IL TRM v6 vol3 | J23: 23 | K23: =ROUND(AS23-AW23,4) -> 34.3305 | L23: Calculated Value | O23: 0.95 | P23: IL TRM v6 vol3 | Q23: 23 | R23: =ROUND(K23/U23*O23,4) -> 0.0055 | S23: Calculated Value | U23: 5890 | V23: IL TRM v6 vol3 | W23: 24 | X23: 11 | Y23: IL TRM v6 vol3 | Z23: 23 | AA23: A freezer meeting the efficiency specifications of Energy Star | AC23: IL TRM v6 vol3 | AD23: 22 | AE23: A freezer meeting the federal minimum standard efficiency | AG23: IL TRM v6 vol3 | AH23: 23 | AI23: =ROUND(AS23-AW23,4) | AJ23: =ROUND(K23/U23*O23,4) | AK23: IL TRM v6 vol3 | AL23: 23, 24 | AM23: 2020-01-01 | AS23: =8.62*BA23+228.3 -> 343.87265 | AT23: Federal Baseline Maximum Energy Usage in kWh/year | AU23: IL TRM v6 vol3 | AV23: 22 | AW23: =7.76*BA23+205.5 -> 309.5422 | AX23: Federal Energy Star Maximum Energy Usage in kWh/YEAR | AY23: IL TRM v6 vol3 | AZ23: 22 | BA23: =1.73*7.75 -> 13.4075 | BB23: Adjusted volume | BC23: Program Tracking Data
A24: Energy Saving Products | B24: LED String Lights | C24: 401 | D24: All | E24: Lighting | G24: per unit | H24: 10 | I24: MN TRM v2.2 | J24: 324 | K24: =ROUND((AF24-AB24)/1000*AS24*AW24*U24,4) -> 29.7518 | L24: Calculated Value | O24: 0 | P24: MN TRM v2.2 | Q24: 324 | R24: =ROUND(0,4) -> 0 | S24: Calculated Value | U24: 150 | V24: MN TRM v2.2 | W24: 324 | X24: 8 | Y24: MN TRM v2.2 | Z24: 324 | AA24: LED string lights | AB24: =50%*0.043+25%*2+25%*0.48 -> 0.6415 | AC24: MN TRM v2.2 | AD24: 324 | AE24: Incandescent holiday light strings | AF24: =50%*0.45+25%*7+25%*6 -> 3.475 | AG24: MN TRM v2.2 | AH24: 324 | AI24: =ROUND((AF24-AB24)/1000*AS24*AW24*U24,4) | AJ24: =ROUND(0,4) | AK24: MN TRM v2.2 | AL24: 324 | AM24: 2020-01-01 | AS24: 1 | AT24: Number of light strings | AU24: MN TRM v2.2 | AV24: 324 | AW24: 70 | AX24: Number of lights in string | AY24: MN TRM v2.2 | AZ24: 324
A25: Energy Saving Products | B25: SMART Home Products (Alexa, Google Home, etc.) | C25: 402 | D25: Single Family | E25: Misc | G25: per unit | H25: 440.9629286 | I25: Navigant energy model analysis | K25: =ROUND(1305.85412860453,4) -> 1305.8541 | L25: Navigant energy model analysis | R25: =ROUND(0,4) -> 0 | S25: Navigant energy model analysis | X25: 8 | Y25: Navigant energy model analysis | AA25: Smart Home Products | AE25: No Smart Home Products | AI25: =ROUND(1305.85412860453,4) | AJ25: =ROUND(0,4) | AK25: Navigant energy model analysis | AM25: 2020-01-01
A26: Energy Saving Products | B26: ENERGY STAR Pool Pump and motor w/ auto controls - multi speed | C26: 403 | D26: All | E26: Misc | G26: per unit | H26: 235 | I26: IL TRM v6 vol3 | J26: 296 | K26: =ROUND(((AS26*AW26*60)/BA26-((BE26*BI26*60)/BM26+(BQ26*BU26*60)/BY26))/1000*CC26,4) -> 1596.0278 | L26: Calculated Value | N26: =ROUND(CG26/AS26-CK26/CO26,4) -> 1.3765 | O26: 0.831 | P26: Calculated Value | R26: =ROUND((CG26/AS26-CK26/CO26)*O26,4) -> 1.1439 | S26: Calculated Value | X26: 10 | Y26: IL TRM v6 vol3 | Z26: 296 | AA26: Two speed pool pump | AE26: Single speed residential pool pump | AI26: =ROUND(((AS26*AW26*60)/BA26-((BE26*BI26*60)/BM26+(BQ26*BU26*60)/BY26))/1000*CC26,4) | AJ26: =ROUND((CG26/AS26-CK26/CO26)*O26,4) | AK26: IL TRM v6 vol3 | AL26: 297, 298 | AM26: 2020-01-01 | AS26: 11.4 | AT26: Hours/Daybase | AU26: IL TRM v6 vol3 | AV26: 297 | AW26: 64.4 | AX26: GPMbase | AY26: IL TRM v6 vol3 | AZ26: 297 | BA26: 2.1 | BB26: EFbase | BC26: IL TRM v6 vol3 | BD26: 297 | BE26: 2 | BF26: Hours/Day2spH | BG26: IL TRM v6 vol3 | BH26: 297 | BI26: 56 | BJ26: GPM2spH | BK26: IL TRM v6 vol3 | BL26: 297 | BM26: 2.4 | BN26: EF2spH | BO26: IL TRM v6 vol3 | BP26: 297 | BQ26: 15.7 | BR26: Hours/Day2spL | BS26: IL TRM v6 vol3 | BT26: 297 | BU26: 31 | BV26: GPM2spL | BW26: IL TRM v6 vol3 | BX26: 297 | BY26: 5.4 | BZ26: EF2spL | CA26: IL TRM v6 vol3 | CB26: 297 | CC26: 125 | CD26: Days | CE26: IL TRM v6 vol3 | CF26: 297 | CG26: 20.98 | CH26: kWh/daybase | CI26: IL TRM v6 vol3 | CJ26: 298 | CK26: 8.21 | CL26: kWh/day2sp | CM26: IL TRM v6 vol3 | CN26: 298 | CO26: 17.7 | CP26: Hours/day2sp | CQ26: IL TRM v6 vol3 | CR26: 298
A27: Energy Saving Products | B27: ENERGY STAR VFDs on Residential Swimming Pool Pumps | C27: 404 | D27: All | E27: Misc | G27: per unit | H27: 549 | I27: IL TRM v6 vol3 | J27: 296 | K27: =ROUND(((AS27*AW27*60)/BA27-((BE27*BI27*60)/BM27+(BQ27*BU27*60)/BY27))/1000*CC27,4) -> 1921.6179 | L27: Calculated Value | N27: =ROUND((CG27/AS27)-(CK27/CO27),4) -> 1.5292 | O27: 0.831 | P27: Calculated Value | R27: =ROUND(((CG27/AS27)-(CK27/CO27))*O27,4) -> 1.2708 | S27: Calculated Value | X27: 10 | Y27: IL TRM v6 vol3 | Z27: 296 | AA27: Variable speed pool pump | AE27: Single speed residential pool pump | AI27: =ROUND(((AS27*AW27*60)/BA27-((BE27*BI27*60)/BM27+(BQ27*BU27*60)/BY27))/1000*CC27,4) | AJ27: =ROUND(((CG27/AS27)-(CK27/CO27))*O27,4) | AK27: IL TRM v6 vol3 | AL27: 297, 298 | AM27: 2020-01-01 | AS27: 11.4 | AT27: Hours/Daybase | AU27: IL TRM v6 vol3 | AV27: 297 | AW27: 64.4 | AX27: GPMbase | AY27: IL TRM v6 vol3 | AZ27: 297 | BA27: 2.1 | BB27: EFbase | BC27: IL TRM v6 vol3 | BD27: 297 | BE27: 2 | BF27: Hours/DayvsH | BG27: IL TRM v6 vol3 | BH27: 297 | BI27: 50 | BJ27: GPMvsH | BK27: IL TRM v6 vol3 | BL27: 297 | BM27: 3.8 | BN27: EFvsH | BO27: IL TRM v6 vol3 | BP27: 298 | BQ27: 16 | BR27: Hours/DayvsL | BS27: IL TRM v6 vol3 | BT27: 298 | BU27: 30.6 | BV27: GPMvsL | BW27: IL TRM v6 vol3 | BX27: 298 | BY27: 7.3 | BZ27: EFvsL | CA27: IL TRM v6 vol3 | CB27: 298 | CC27: 125 | CD27: Days | CE27: IL TRM v6 vol3 | CF27: 298 | CG27: 20.98 | CH27: kWh/daybase | CI27: IL TRM v6 vol3 | CJ27: 298 | CK27: 5.6 | CL27: kWh/dayvar | CM27: IL TRM v6 vol3 | CN27: 298 | CO27: 18 | CP27: Hours/dayvar | CQ27: IL TRM v6 vol3 | CR27: 298
A28: Heating, Cooling & Home Comfort | B28: Screw In - LEDs | C28: 8.4 | D28: Single Family | E28: Lighting | F28: Kits | G28: per lamp | H28: 3.93 | I28: Program Tracking Data | K28: =ROUND(($AF28-$AB28)/1000*$U28*$AS28*$BA28,4) -> 39.0136 | L28: Calculated Value | N28: =K28/U28 -> 0.03366143227 | O28: 0.128 | P28: IL TRM v7 vol3 | Q28: 274 | R28: =ROUND(($AF28-$AB28)/1000*O28*$AW28*$BA28,4) -> 0.0045 | S28: Calculated Value | U28: 1159 | V28: IL TRM v7 vol3 - blended interior/exterior value | W28: 271 | X28: 10 | Y28: IL TRM v7 vol3 | Z28: 268 | AA28: Screw In - LEDs | AB28: 9 | AC28: Program Tracking Data | AE28: 43 watts based on halogen equivalent to average of bulbs sold in program | AF28: 43 | AG28: Program Tracking Database | AI28: =ROUND(($AF28-$AB28)/1000*$U28*$AS28*$BA28,4) | AJ28: =ROUND(($AF28-$AB28)/1000*O28*$AW28*$BA28,4) | AK28: IL TRM v7 vol3 | AL28: 269, 273 | AM28: 2020-01-01 | AS28: 1.051 | AT28: Waste Heat Factor, Energy | AU28: IL TRM v7 vol3 - blended interior/exterior value | AV28: 271 | AW28: 1.093 | AX28: Waste Heat Factor, Demand | AY28: IL TRM v7 vol3 - blended interior/exterior value | AZ28: 271 | BA28: 0.942 | BB28: ISR | BC28: Navigant MEEIA Cycle 1 Research
A29: Heating, Cooling & Home Comfort | B29: Low Flow Faucet Aerator-Bathroom | C29: 245.2 | D29: Single Family | E29: Hot Water | F29: Kits | G29: per unit | H29: 8 | I29: IL TRM v5 vol3 | J29: 174 | K29: =ROUND(((AF29-AB29)*AW29*BA29*365.25)*AS29*BE29,4) -> 43.1199 | L29: Calculated Value | N29: 3.079992857 | O29: 0.022 | P29: IL TRM v5 vol3 | Q29: 179 | R29: =ROUND((((AF29-AB29)*AW29*BA29*365.25)*AS29*BE29)/U29*O29,4) -> 0.0678 | S29: Calculated Value | U29: 14 | V29: IL TRM v5 vol3 | W29: 179 | X29: 9 | Y29: IL TRM v5 vol3 | Z29: 174 | AA29: Low Flow (GPM) | AB29: 1 | AC29: Program Tracking Data | AE29: Standard (GPM) | AF29: 2.2 | AG29: Federal Baseline | AI29: =ROUND(((AF29-AB29)*AW29*BA29*365.25)*AS29*BE29,4) | AJ29: =ROUND((((AF29-AB29)*AW29*BA29*365.25)*AS29*BE29)/U29*O29,4) | AK29: IL TRM v5 vol3 | AL29: 175 | AM29: 2020-01-01 | AS29: 0.0795 | AT29: kWh per gallon hot water, bathroom | AU29: IL TRM v5 vol3 | AV29: 177 | AW29: 0.5088339223 | AX29: Faucet Coefficient, Bathroom: Minutes/day * Drain Factor / Faucets per Household | AY29: IL TRM v5 vol3 | AZ29: 176177 | BA29: 2.56 | BB29: Persons per household | BC29: IL TRM v5 vol3 | BD29: 176 | BE29: 0.95 | BF29: Installation Rate | BG29: IL TRM v5 vol3 | BH29: 178
A30: Heating, Cooling & Home Comfort | B30: Low Flow Faucet Aerator-Kitchen | C30: 246.1 | D30: Single Family | E30: Hot Water | F30: Kits | G30: per unit | H30: 8 | I30: IL TRM v5 vol3 | J30: 174 | K30: =ROUND(((AF30-AB30)*AW30*BA30*365.25)*AS30*BE30,4) -> 203.3524 | L30: Calculated Value | N30: 2.163323404 | O30: 0.022 | P30: IL TRM v5 vol3 | Q30: 179 | R30: =ROUND((((AF30-AB30)*AW30*BA30*365.25)*AS30*BE30)/U30*O30,4) -> 0.0476 | S30: Calculated Value | U30: 94 | V30: IL TRM v5 vol3 | W30: 179 | X30: 9 | Y30: IL TRM v5 vol3 | Z30: 174 | AA30: Low Flow (GPM) | AB30: 1.5 | AC30: Program Tracking Data | AE30: Standard (GPM) | AF30: 2.2 | AG30: Federal Baseline | AI30: =ROUND(((AF30-AB30)*AW30*BA30*365.25)*AS30*BE30,4) | AJ30: =ROUND((((AF30-AB30)*AW30*BA30*365.25)*AS30*BE30)/U30*O30,4) | AK30: IL TRM v5 vol3 | AL30: 175 | AM30: 2020-01-01 | AS30: 0.0969 | AT30: kWh per gallon hot water, kitchen | AU30: IL TRM v5 vol3 | AV30: 177 | AW30: 3.375 | AX30: Faucet Coefficient, Kitchen | AY30: IL TRM v5 vol3 | AZ30: 176177 | BA30: 2.56 | BB30: Persons per household | BC30: IL TRM v5 vol3 | BD30: 176 | BE30: 0.95 | BF30: Installation Rate | BG30: IL TRM v5 vol3 | BH30: 178
A31: Heating, Cooling & Home Comfort | B31: Pipe Insulated | C31: 10.2 | D31: Single Family | E31: Hot Water | F31: Kits | G31: per unit | H31: 18 | I31: IL TRM v5 vol3 | J31: 160 | K31: =ROUND(((((AS31*PI()*BA31)/AF31) - ((AW31*PI()*BA31)/AB31))*BE31)/BI31/3412,4) -> 72.065 | L31: Calculated Value | N31: =K31/8766 -> 0.008220967374 | O31: 1 | P31: Calculated Value | R31: =ROUND(K31/8766,4) -> 0.0082 | S31: Calculated Value | U31: 8766 | V31: IL TRM v5 vol3 | W31: 161 | X31: 15 | Y31: IL TRM v5 vol3 | Z31: 160 | AA31: Efficient R-Value due to added insulation | AB31: =1+5 -> 6 | AC31: Program Tracking Data | AE31: R-Value of bare pipe | AF31: 1 | AG31: IL TRM v5 vol3 | AH31: 161 | AI31: =ROUND(((((AS31*PI()*BA31)/AF31) - ((AW31*PI()*BA31)/AB31))*BE31)/BI31/3412,4) | AJ31: =ROUND(K31/8766,4) | AK31: IL TRM v5 vol3 | AL31: 161162 | AM31: 2020-01-01 | AS31: =0.75/12 -> 0.0625 | AT31: Dbase = Pipe Diameter (ft) | AU31: IL TRM v5 vol3 | AV31: 161 | AW31: =(0.75+1*2)/12 -> 0.2291666667 | AX31: Dee = Updated Pipe Diameter, due to added insulation (ft) | AY31: IL TRM v5 vol3 | AZ31: 161 | BA31: 6 | BB31: Length of added pipe insulation | BC31: Program Tracking Data | BE31: =60*8766 -> 525960 | BF31: Pipe Insulated Coefficient 1 = ∆T * Hours = 60 * 8766 | BG31: IL TRM v5 vol3 | BH31: 161 | BI31: 0.98 | BJ31: Recovery efficiency of electric water heater | BK31: IL TRM v5 vol3 | BL31: 161
A32: Heating, Cooling & Home Comfort | B32: Low Flow Showerhead | C32: 11.2 | D32: Single Family | E32: Hot Water | F32: Kits | G32: per unit | H32: 12 | I32: IL TRM v5 vol3 | J32: 183 | K32: =ROUND(((AF32-AB32)*AW32*BA32*365.25)*AS32*BE32,4) -> 327.9599 | L32: Calculated Value | N32: =K32/U32 -> 1.085959934 | O32: 0.0278 | P32: IL TRM v5 vol3 | Q32: 183 | R32: =ROUND((((AF32-AB32)*AW32*BA32*365.25)*AS32*BE32)/U32*O32,4) -> 0.0302 | S32: Calculated Value | U32: 302 | V32: IL TRM v5 vol3 | W32: 187 | X32: 10 | Y32: IL TRM v5 vol3 | Z32: 183 | AA32: Low Flow (GPM) | AB32: 1.5 | AC32: Program Tracking Data | AE32: Standard (GPM) | AF32: 2.67 | AG32: IL TRM v5 vol3 | AH32: 184 | AI32: =ROUND(((AF32-AB32)*AW32*BA32*365.25)*AS32*BE32,4) | AJ32: =ROUND((((AF32-AB32)*AW32*BA32*365.25)*AS32*BE32)/U32*O32,4) | AK32: IL TRM v5 vol3 | AL32: 184186 | AM32: 2020-01-01 | AS32: 0.117 | AT32: kWh per gallon hot water | AU32: IL TRM v5 vol3 | AV32: 185 | AW32: 2.61452514 | AX32: Showerhead Coefficient: Minutes per day * Showers per day / Showers per household | AY32: IL TRM v5 vol3 | AZ32: 185 | BA32: 2.56 | BB32: Persons per household | BC32: IL TRM v5 vol3 | BD32: 185 | BE32: 0.98 | BF32: Installation Rate | BG32: IL TRM v5 vol3 | BH32: 186
A33: Heating, Cooling & Home Comfort | B33: Water Heater Tank Wrap | C33: 12.1 | D33: Single Family | E33: Hot Water | F33: Kits | G33: per unit | H33: 20 | I33: Program Tracking Data | K33: =ROUND((AS33/AW33-BA33/BE33)*BI33*BM33/BQ33/BU33,4) -> 134.0948 | L33: Calculated Value | N33: =ROUND(0.0153,4) -> 0.0153 | O33: 1 | P33: IL TRM v7 vol3 | Q33: 203 | R33: =ROUND(K33/U33,4) -> 0.0153 | S33: Calculated Value | U33: 8766 | V33: IL TRM v7 vol3 | W33: 204 | X33: 5 | Y33: IL TRM v7 vol3 | Z33: 203 | AA33: Water heater insulation increased from R12 to R22, 50gal | AC33: IL TRM v7 vol3 | AD33: 204 | AE33: R12, 50-gal water heater insulation (no wrap) | AG33: IL TRM v7 vol3 | AH33: 204 | AI33: =ROUND((AS33/AW33-BA33/BE33)*BI33*BM33/BQ33/BU33,4) | AJ33: =ROUND(K33/U33,4) | AK33: IL TRM v7 vol3 | AL33: 203, 205 | AM33: 2020-01-01 | AS33: 24.99 | AT33: Abase | AU33: IL TRM v7 vol3 | AV33: 204 | AW33: 12 | AX33: Rbase | AY33: IL TRM v7 vol3 | AZ33: 204 | BA33: 27.06 | BB33: Ainsul | BC33: IL TRM v7 vol3 | BD33: 204 | BE33: 22 | BF33: Rinsul | BG33: IL TRM v7 vol3 | BH33: 204 | BI33: 60 | BJ33: deltaT | BK33: IL TRM v7 vol3 | BL33: 204 | BM33: 8766 | BN33: Hours | BO33: IL TRM v7 vol3 | BP33: 204 | BQ33: 0.98 | BR33: eta DHW | BS33: IL TRM v7 vol3 | BT33: 204 | BU33: 3412 | BV33: Conversion from BTU to kWh | BW33: IL TRM v7 vol3 | BX33: 204
A34: Heating, Cooling & Home Comfort | B34: Smart Power Strip - Wh7-Plug | C34: 13.2 | D34: Single Family | E34: Electronics | F34: Kits | G34: per unit | H34: 16 | I34: Program Tracking Data | K34: =ROUND(103,4) -> 103 | L34: Calculated Value | N34: =K34/U34 -> 0.01444802918 | O34: 0.8 | P34: IL TRM v5 vol3 | Q34: 55 | R34: =ROUND(0.0115,4) -> 0.0115 | S34: Calculated Value | U34: 7129 | V34: IL TRM v5 vol3 | W34: 54 | X34: 7 | Y34: IL TRM v6 vol3 | Z34: 53 | AA34: Smart strip | AC34: IL TRM v6 vol3 | AD34: 53 | AE34: Standard outlet strip | AG34: IL TRM v6 vol3 | AH34: 53 | AI34: =cellformula(K34) -> =ROUND(103,4) | AJ34: =cellformula(R34) -> =ROUND(0.0115,4) | AK34: IL TRM v6 vol3 | AL34: 53 | AM34: 2020-01-01
A35: Heating, Cooling & Home Comfort | B35: Air Sealing | C35: 14.3 | D35: Single Family | E35: HVAC - Shell | G35: per sq ft (floor area) | H35: 0.12 | I35: Program Tracking Data, with 50% co-delivery costs shared with Spire Missouri | K35: =ROUND((BQ35*((AF35-AB35)/BE35*AS35*BM35*AO35)/BA35)/BU35+(((AF35-AB35)/BI35*AS35*AP35)/AW35)/BU35,4) -> 0.4337 | L35: Calculated Value | N35: 0.0005876693767 | O35: 0.72 | P35: IL TRM v5 vol3 | Q35: 268 | R35: =ROUND((((BQ35*((AF35-AB35)/BE35*AS35*BM35*AO35)/BA35)/BU35)/U35)*O35,8) -> 8.182e-05 | S35: Calculated Value | U35: 738 | V35: EFLHcool, from 2017 MO TRM | W35: 122 | X35: 15 | Y35: IL TRM v5 vol3 | Z35: 267 | AA35: Efficient CFM | AB35: 3083.594156 | AC35: IL TRM v5 vol3 | AD35: 268 | AE35: Baseline CFM | AF35: 4342.996753 | AG35: IL TRM v5 vol3 | AH35: 268 | AI35: =ROUND((BQ35*((AF35-AB35)/BE35*AS35*BM35*AO35)/BA35)/BU35+(((AF35-AB35)/BI35*AS35*AP35)/AW35)/BU35,4) | AJ35: =ROUND((((BQ35*((AF35-AB35)/BE35*AS35*BM35*AO35)/BA35)/BU35)/U35)*O35,8) | AK35: IL TRM v5 vol3 | AL35: 268, 273 | AM35: 2020-01-01 | AO35: 1445 | AP35: 5155 | AQ35: MO TRM and Navigant Analysis | AS35: 25.92 | AT35: Air Sealing Coefficient: 60 * 24 * 0.018 | AU35: IL TRM v5 vol3 | AV35: 269 | AW35: 6551.04 | AX35: Heating Coefficient: COP * 3,412 COP = 1.7 for units before 2006 COP = 1.92 for units between 2006-2014 COP = 2.4 for units after 2014 | AY35: IL TRM v5 vol3 | AZ35: 269 | BA35: 13000 | BB35: Cooling Coefficient | BC35: IL TRM v5 vol3: SEER * 1,000. SEER 10 for units before 2006 SEER 13 for units after 2006 | BD35: 269 | BE35: 35.8 | BF35: Ncool: Infiltration conversion factor | BG35: IL TRM v5 vol3 | BH35: 268 | BI35: 22.5 | BJ35: Nheat: Infiltration conversion factor | BK35: IL TRM v5 vol3 | BL35: 270 | BM35: 0.75 | BN35: DUA: Discretionary Use Adjustment | BO35: IL TRM v5 vol3 | BP35: 269 | BQ35: 3.6 | BR35: LM: Latent Cooling Multiplier | BS35: IL TRM v5 vol3 | BT35: 270 | BU35: 3263 | BV35: Square footage installed | BW35: Program tracking Data
A36: Heating, Cooling & Home Comfort | B36: Increased Ceiling Insulation | C36: 15.3 | D36: Single Family | E36: HVAC - Shell | G36: per sq ft (ceiling area) | H36: 0.76 | I36: Program Tracking Data, with 50% co-delivery costs shared with Spire Missouri | K36: =ROUND(((((1/AF36-1/AB36)*(1-BE36)*24*AO36*BA36)/AW36)*BI36)+((((1/AF36-1/AB36)*(1-BE36)*24*AP36)/AS36)*BM36),4) -> 0.4028 | L36: Calculated Value | N36: 0.000545799458 | O36: 0.7 | P36: IL TRM v5 vol3 | Q36: 293 | R36: =ROUND((((((1/AF36-1/AB36)*(1-BE36)*24*AO36*BA36)/AW36)*BI36)/U36)*O36,8) -> 4.728e-05 | S36: Calculated Value | U36: 738 | V36: EFLHcool, from 2017 MO TRM | W36: 122 | X36: 25 | Y36: IL TRM v5 vol3 | Z36: 293 | AA36: Final R-value | AB36: 41.03164557 | AC36: Program Tracking Data | AE36: Previous R-value | AF36: 17.28280255 | AG36: Program Tracking Data | AI36: =ROUND(((((1/AF36-1/AB36)*(1-BE36)*24*AO36*BA36)/AW36)*BI36)+((((1/AF36-1/AB36)*(1-BE36)*24*AP36)/AS36)*BM36),4) | AJ36: =ROUND((((((1/AF36-1/AB36)*(1-BE36)*24*AO36*BA36)/AW36)*BI36)/U36)*O36,8) | AK36: IL TRM v5 vol3 | AL36: 294, 297 | AM36: 2020-01-01 | AO36: 1445 | AP36: 5155 | AQ36: MO TRM and Navigant Analysis | AS36: 6551.04 | AT36: Heating Coefficient: COP * 3,412 COP = 1.7 for units before 2006 COP = 1.92 for units between 2006-2014 COP = 2.4 for units after 2014 | AU36: IL TRM v5 vol3 | AV36: 296 | AW36: 13000 | AX36: Cooling Coefficient | AY36: IL TRM v5 vol3: SEER * 1,000. SEER 10 for units before 2006 SEER 13 for units after 2006 | AZ36: 295 | BA36: 0.75 | BB36: DUA: Discretionary Use Adjustment | BC36: IL TRM v5 vol3 | BD36: 295 | BE36: 0.07 | BF36: Framing Factor, Ceiling | BG36: IL TRM v5 vol3 | BH36: 294 | BI36: 0.8 | BJ36: ADJcool: adjustment for cooling savings from basement wall insulation | BK36: IL TRM v5 vol3 | BL36: 295 | BM36: 0.6 | BN36: ADJheat: adjustment for wall and attic insulation | BO36: IL TRM v5 vol3 | BP36: 296
A37: Heating, Cooling & Home Comfort | B37: Increased Wall Insulation | C37: 16.3 | D37: Single Family | E37: HVAC - Shell | G37: per sq ft (wall area) | H37: 1.32 | I37: Program Tracking Data, with 50% co-delivery costs shared with Spire Missouri | K37: 0.8476 | L37: Calculated Value | N37: 0.001148509485 | O37: 0.7 | P37: IL TRM v5 vol3 | Q37: 293 | R37: 9.951e-05 | S37: Calculated Value | U37: 738 | V37: EFLHcool, from 2017 MO TRM | W37: 122 | X37: 25 | Y37: IL TRM v5 vol3 | Z37: 293 | AA37: Final R-value | AB37: 17.23484848 | AC37: Program Tracking Data | AE37: Previous R-value | AF37: 6.876923077 | AG37: Program Tracking Data | AI37: =ROUND(((((1/AF37-1/AB37)*(1-BE37)*24*AO37*BA37)/AW37)*BI37)+((((1/AF37-1/AB37)*(1-BE37)*24*AP37)/AS37)*BM37),4) | AJ37: =ROUND((((((1/AF37-1/AB37)*(1-BE37)*24*AO37*BA37)/AW37)*BI37)/U37)*O37,8) | AK37: IL TRM v5 vol3 | AL37: 294, 297 | AM37: 2020-01-01 | AO37: 1445 | AP37: 5155 | AQ37: MO TRM and Navigant Analysis | AS37: 6551.04 | AT37: Heating Coefficient: COP * 3,412 COP = 1.7 for units before 2006 COP = 1.92 for units between 2006-2014 COP = 2.4 for units after 2014 | AU37: IL TRM v5 vol3 | AV37: 296 | AW37: 13000 | AX37: Cooling Coefficient | AY37: IL TRM v5 vol3: SEER * 1,000. SEER 10 for units before 2006 SEER 13 for units after 2006 | AZ37: 295 | BA37: 0.75 | BB37: DUA: Discretionary Use Adjustment | BC37: IL TRM v5 vol3 | BD37: 295 | BE37: 0.25 | BF37: Framing Factor, Wall | BG37: IL TRM v5 vol3 | BH37: 294 | BI37: 0.8 | BJ37: ADJcool: adjustment for cooling savings from basement wall insulation | BK37: IL TRM v5 vol3 | BL37: 295 | BM37: 0.6 | BN37: ADJheat: adjustment for wall and attic insulation | BO37: IL TRM v5 vol3 | BP37: 296
A38: Heating, Cooling & Home Comfort | B38: Heat Pump Ductless Mini Split | C38: 20.3 | D38: Single Family | E38: All | G38: per unit | H38: 3787.974684 | I38: IL TRM v5 vol3 | J38: 134 | K38: =ROUND((BM38*AS38*(1/AF38-1/AB38))/1000+(BQ38*AS38*(1/BA38-1/AW38)/1000),4) -> 2135.9704 | L38: Calculated Value | N38: =K38/U38 -> 2.894268835 | O38: 0.43 | P38: IL TRM v5 vol3 | Q38: 135 | R38: =ROUND((AS38*(1/BI38-1/BE38)/1000)*O38,4) -> 0.1999 | S38: Calculated Value | U38: 738 | V38: MO TRM 2017 vol 3 | W38: 85 | X38: 18 | Y38: IL TRM v5 vol3 | Z38: 134 | AA38: SEER | AB38: 22.94 | AC38: per PY2018 Metadata | AE38: SEER | AF38: 9.12 | AG38: IL TRM v5 vol3 | AH38: 137 | AI38: =ROUND((BM38*AS38*(1/AF38-1/AB38))/1000+(BQ38*AS38*(1/BA38-1/AW38)/1000),4) | AJ38: =ROUND((AS38*(1/BI38-1/BE38)/1000)*O38,4) | AK38: IL TRM v5 vol3 | AL38: 136138 | AM38: 2020-01-01 | AS38: 12000 | AT38: Allows for Capacity input in Tons; converts tons to BTUs | AW38: 11.12424242 | AX38: HSPFee | AY38: Calculated per PY2018 Metadata | BA38: 5.44 | BB38: HSPFbase | BC38: IL TRM v5 vol3 | BD38: 136 | BE38: 12.78461538 | BF38: EERee | BG38: Calculated per PY2016 Metadata | BI38: 8.55 | BJ38: EERbase | BK38: IL TRM v5 vol3 | BL38: 138 | BM38: 738 | BN38: EFLHcool | BO38: 2017 MO TRM, vol 3 | BP38: 85 | BQ38: 1376 | BR38: EFLHheat | BS38: The EFLH Cooling and Heating hours are based on a EnergyStar study that was normalized (based on HDD and CDD) to Kansas City. This was for both AC and HP units.
A39: Heating, Cooling & Home Comfort | B39: CAC SEER 15 | C39: 21.3 | D39: Single Family | E39: HVAC | G39: per ton | H39: 238 | I39: IL TRM v7 vol3 | J39: 77 | K39: =ROUND((BE39*AW39*(1/AF39-1/AB39))/1000,4) -> 95.5165 | L39: Calculated Value | N39: 0.1294261518 | O39: 0.68 | P39: IL TRM v7 vol3 | Q39: 81 | R39: =ROUND(((AW39*((1/BA39)-(1/AS39)))/1000)*O39,4) -> 0.0685 | S39: Calculated Value | U39: 738 | V39: EFLHcool, from 2017 MO TRM | W39: 122 | X39: 18 | Y39: IL TRM v7 vol3 | Z39: 77 | AA39: SEER | AB39: 15.12 | AC39: Based on SEER value of efficient equipment | AE39: SEER | AF39: 13 | AG39: IL TRM v7 vol3 | AH39: 79 | AI39: =ROUND((BE39*AW39*(1/AF39-1/AB39))/1000,4) | AJ39: =ROUND(((AW39*((1/BA39)-(1/AS39)))/1000)*O39,4) | AK39: IL TRM v7 vol3 | AL39: 78 | AM39: 2020-01-01 | AS39: 12.362112 | AT39: EERee | AU39: Based on calculation from SEER of installed equipment | AW39: 12000 | AX39: Allows for Capacity input in Tons; converts tons to BTUs | BA39: 11.2 | BB39: EERbase | BC39: IL TRM v7 vol3 | BD39: 81 | BE39: 738 | BF39: EFLHcool | BG39: EFLHcool, from 2017 MO TRM | BH39: 122 | BI39: 1376 | BJ39: EFLHheat | BK39: The EFLH Cooling and Heating hours are based on a EnergyStar study that was normalized (based on HDD and CDD) to Kansas City. This was for both AC and HP units.
A40: Heating, Cooling & Home Comfort | B40: CAC SEER 15 - Early Replacement | C40: 22.3 | D40: Single Family | E40: HVAC | G40: per ton | H40: =DA40+DE40/DM40-DI40/DM40*(1+CW40)^(-X40) -> 231.514124 | I40: IL TRM v7 vol3 | J40: 77 | K40: =ROUND((BE40*AW40*(1/AF40-1/AB40))/1000,4) -> 301.0455 | L40: Calculated Value | N40: 0.4079207317 | O40: 0.68 | P40: IL TRM v7 vol3 | Q40: 81 | R40: =ROUND(((AW40*((1/BA40)-(1/AS40)))/1000)*O40,4) -> 0.2277 | S40: Calculated Value | U40: 738 | V40: EFLHcool, from 2017 MO TRM | W40: 122 | X40: 6 | Y40: IL TRM v7 vol3 | Z40: 77 | AA40: SEER | AB40: 15.15 | AC40: Based on SEER value of efficient equipment | AE40: SEER | AF40: 10 | AG40: IL TRM v7 vol3 | AH40: 79 | AI40: =ROUND((BE40*AW40*(1/AF40-1/AB40))/1000,4) | AJ40: =ROUND(((AW40*((1/BA40)-(1/AS40)))/1000)*O40,4) | AK40: IL TRM v7 vol3 | AL40: 78 | AM40: 2020-01-01 | AS40: 12.37755 | AT40: EERee | AU40: Based on calculation from SEER of installed equipment | AW40: 12000 | AX40: Allows for Capacity input in Tons; converts tons to BTUs | BA40: 9.2 | BB40: EERexist | BC40: IL TRM v7 vol3 | BD40: 81 | BE40: 738 | BF40: EFLHcool | BG40: EFLHcool, from 2017 MO TRM | BH40: 122 | BI40: 1376 | BJ40: EFLHheat | BK40: The EFLH Cooling and Heating hours are based on a EnergyStar study that was normalized (based on HDD and CDD) to Kansas City. This was for both AC and HP units. | CW40: 0.03 | CX40: Societal Discount Rate | CY40: Evergy Standard | DA40: 952 | DB40: First Cost $/ton | DC40: IL TRM v7 vol3 | DD40: 77 | DE40: 108 | DF40: One-time per-system labor cost | DG40: IL TRM v7 vol3 | DH40: 77 | DI40: 3140 | DJ40: Deferred cost savings, per UNIT | DK40: IL TRM v7 vol3 | DL40: 78 | DM40: 3.5 | DN40: Assumed average system tons | DO40: Tracking Data
A41: Heating, Cooling & Home Comfort | B41: CAC SEER 15 - Early Replacement (future) | C41: 23.3 | D41: Single Family | E41: HVAC | G41: per ton | H41: 0 | I41: IL TRM v7 vol3 | J41: 77 | K41: =ROUND((BM41*AW41*(1/BE41-1/AB41))/1000,4) -> 96.6763 | L41: Calculated Value | N41: 0.1309976965 | O41: 0.68 | P41: IL TRM v7 vol3 | Q41: 81 | R41: =ROUND(((AW41*((1/BI41)-(1/AS41)))/1000)*O41,4) -> 0.0693 | S41: Calculated Value | U41: 738 | V41: EFLHcool, from 2017 MO TRM | W41: 122 | X41: 12 | Y41: IL TRM v7 vol3 | Z41: 77 | AA41: SEER | AB41: 15.15 | AC41: Based on SEER value of efficient equipment | AE41: =BF41 -> SEERbase | AF41: =BE41 -> 13 | AG41: IL TRM v7 vol3 | AH41: 79 | AI41: =ROUND((BM41*AW41*(1/BE41-1/AB41))/1000,4) | AJ41: =ROUND(((AW41*((1/BI41)-(1/AS41)))/1000)*O41,4) | AK41: IL TRM v7 vol3 | AL41: 78 | AM41: 2020-01-01 | AS41: 12.37755 | AT41: EERee | AU41: Based on calculation from SEER of installed equipment | AW41: 12000 | AX41: Allows for Capacity input in Tons; converts tons to BTUs | BE41: 13 | BF41: SEERbase | BG41: IL TRM v7 vol3 | BH41: 79 | BI41: 11.2 | BJ41: EERbase | BK41: IL TRM v7 vol3 | BL41: 81 | BM41: 738 | BN41: EFLHcool | BO41: EFLHcool, from 2017 MO TRM | BP41: 122 | BQ41: 1376 | BR41: EFLHheat | BS41: The EFLH Cooling and Heating hours are based on a EnergyStar study that was normalized (based on HDD and CDD) to Kansas City. This was for both AC and HP units. | CW41: 0.03 | CX41: Societal Discount Rate | CY41: Evergy Standard | DA41: 952 | DB41: First Cost $/ton | DC41: IL TRM v7 vol3 | DD41: 77 | DE41: 108 | DF41: One-time per-system labor cost | DG41: IL TRM v7 vol3 | DH41: 77 | DI41: 3140 | DJ41: Deferred cost savings, per UNIT | DK41: IL TRM v7 vol3 | DL41: 78 | DM41: 3.5 | DN41: Assumed average system tons | DO41: Tracking Data
A42: Heating, Cooling & Home Comfort | B42: CAC SEER 16 | C42: 24.3 | D42: Single Family | E42: HVAC | G42: per ton | H42: 357 | I42: IL TRM v7 vol3 | J42: 77 | K42: =ROUND((BE42*AW42*(1/AF42-1/AB42))/1000,4) -> 144.5035 | L42: Calculated Value | N42: 0.1958042005 | O42: 0.68 | P42: IL TRM v7 vol3 | Q42: 81 | R42: =ROUND(((AW42*((1/BA42)-(1/AS42)))/1000)*O42,4) -> 0.1026 | S42: Calculated Value | U42: 738 | V42: EFLHcool, from 2017 MO TRM | W42: 122 | X42: 18 | Y42: IL TRM v7 vol3 | Z42: 77 | AA42: SEER | AB42: 16.5 | AC42: Based on SEER value of efficient equipment | AE42: SEER | AF42: 13 | AG42: IL TRM v7 vol3 | AH42: 79 | AI42: =ROUND((BE42*AW42*(1/AF42-1/AB42))/1000,4) | AJ42: =ROUND(((AW42*((1/BA42)-(1/AS42)))/1000)*O42,4) | AK42: IL TRM v7 vol3 | AL42: 78 | AM42: 2020-01-01 | AS42: 13.035 | AT42: EERee | AU42: Based on calculation from SEER of installed equipment | AW42: 12000 | AX42: Allows for Capacity input in Tons; converts tons to BTUs | BA42: 11.2 | BB42: EERbase | BC42: IL TRM v7 vol3 | BD42: 81 | BE42: 738 | BF42: EFLHcool | BG42: EFLHcool, from 2017 MO TRM | BH42: 122 | BI42: 1376 | BJ42: EFLHheat | BK42: The EFLH Cooling and Heating hours are based on a EnergyStar study that was normalized (based on HDD and CDD) to Kansas City. This was for both AC and HP units.
A43: Heating, Cooling & Home Comfort | B43: CAC SEER 16 - Early Replacement | C43: 25.3 | D43: Single Family | E43: HVAC | G43: per ton | H43: =DA43+DE43/DM43-DI43/DM43*(1+CW43)^(-X43) -> 263.7998383 | I43: IL TRM v7 vol3 | J43: 77 | K43: =ROUND((BE43*AW43*(1/AF43-1/AB43))/1000,4) -> 349.8468 | L43: Calculated Value | N43: 0.4740471545 | O43: 0.68 | P43: IL TRM v7 vol3 | Q43: 81 | R43: =ROUND(((AW43*((1/BA43)-(1/AS43)))/1000)*O43,4) -> 0.2616 | S43: Calculated Value | U43: 738 | V43: EFLHcool, from 2017 MO TRM | W43: 122 | X43: 6 | Y43: IL TRM v7 vol3 | Z43: 77 | AA43: SEER | AB43: 16.53 | AC43: Based on SEER value of efficient equipment | AE43: SEER | AF43: 10 | AG43: IL TRM v7 vol3 | AH43: 79 | AI43: =ROUND((BE43*AW43*(1/AF43-1/AB43))/1000,4) | AJ43: =ROUND(((AW43*((1/BA43)-(1/AS43)))/1000)*O43,4) | AK43: IL TRM v7 vol3 | AL43: 78 | AM43: 2020-01-01 | AS43: 13.048782 | AT43: EERee | AU43: Based on calculation from SEER of installed equipment | AW43: 12000 | AX43: Allows for Capacity input in Tons; converts tons to BTUs | BA43: 9.2 | BB43: EERexist | BC43: IL TRM v7 vol3 | BD43: 81 | BE43: 738 | BF43: EFLHcool | BG43: EFLHcool, from 2017 MO TRM | BH43: 122 | BI43: 1376 | BJ43: EFLHheat | BK43: The EFLH Cooling and Heating hours are based on a EnergyStar study that was normalized (based on HDD and CDD) to Kansas City. This was for both AC and HP units. | CW43: 0.03 | CX43: Societal Discount Rate | CY43: Evergy Standard | DA43: 952 | DB43: First Cost $/ton | DC43: IL TRM v7 vol3 | DD43: 77 | DE43: 221 | DF43: One-time per-system labor cost | DG43: IL TRM v7 vol3 | DH43: 77 | DI43: 3140 | DJ43: Deferred cost savings, per UNIT | DK43: IL TRM v7 vol3 | DL43: 78 | DM43: 3.5 | DN43: Assumed average system tons | DO43: Tracking Data
A44: Heating, Cooling & Home Comfort | B44: CAC SEER 16 - Early Replacement (future) | C44: 26.3 | D44: Single Family | E44: HVAC | G44: per ton | H44: 0 | I44: IL TRM v7 vol3 | J44: 77 | K44: =ROUND((BM44*AW44*(1/BE44-1/AB44))/1000,4) -> 145.4776 | L44: Calculated Value | N44: 0.1971241192 | O44: 0.68 | P44: IL TRM v7 vol3 | Q44: 81 | R44: =ROUND(((AW44*((1/BI44)-(1/AS44)))/1000)*O44,4) -> 0.1032 | S44: Calculated Value | U44: 738 | V44: EFLHcool, from 2017 MO TRM | W44: 122 | X44: 12 | Y44: IL TRM v7 vol3 | Z44: 77 | AA44: SEER | AB44: 16.53 | AC44: Based on SEER value of efficient equipment | AE44: =BF44 -> SEERbase | AF44: =BE44 -> 13 | AG44: IL TRM v7 vol3 | AH44: 79 | AI44: =ROUND((BM44*AW44*(1/BE44-1/AB44))/1000,4) | AJ44: =ROUND(((AW44*((1/BI44)-(1/AS44)))/1000)*O44,4) | AK44: IL TRM v7 vol3 | AL44: 78 | AM44: 2020-01-01 | AS44: 13.048782 | AT44: EERee | AU44: Based on calculation from SEER of installed equipment | AW44: 12000 | AX44: Allows for Capacity input in Tons; converts tons to BTUs | BE44: 13 | BF44: SEERbase | BG44: IL TRM v7 vol3 | BH44: 79 | BI44: 11.2 | BJ44: EERbase | BK44: IL TRM v7 vol3 | BL44: 81 | BM44: 738 | BN44: EFLHcool | BO44: EFLHcool, from 2017 MO TRM | BP44: 122 | BQ44: 1376 | BR44: EFLHheat | BS44: The EFLH Cooling and Heating hours are based on a EnergyStar study that was normalized (based on HDD and CDD) to Kansas City. This was for both AC and HP units. | CW44: 0.03 | CX44: Societal Discount Rate | CY44: Evergy Standard | DA44: 952 | DB44: First Cost $/ton | DC44: IL TRM v7 vol3 | DD44: 77 | DE44: 221 | DF44: One-time per-system labor cost | DG44: IL TRM v7 vol3 | DH44: 77 | DI44: 3140 | DJ44: Deferred cost savings, per UNIT | DK44: IL TRM v7 vol3 | DL44: 78 | DM44: 3.5 | DN44: Assumed average system tons | DO44: Tracking Data
A45: Heating, Cooling & Home Comfort | B45: CAC SEER 17 | C45: 27.3 | D45: Single Family | E45: HVAC | G45: per ton | H45: 368.51 | I45: IL TRM v7 vol3 | J45: 77 | K45: =ROUND((BE45*AW45*(1/AF45-1/AB45))/1000,4) -> 160.2896 | L45: Calculated Value | N45: 0.2171945799 | O45: 0.68 | P45: IL TRM v7 vol3 | Q45: 81 | R45: =ROUND(((AW45*((1/BA45)-(1/AS45)))/1000)*O45,4) -> 0.1132 | S45: Calculated Value | U45: 738 | V45: EFLHcool, from 2017 MO TRM | W45: 122 | X45: 18 | Y45: IL TRM v7 vol3 | Z45: 77 | AA45: SEER | AB45: 17 | AC45: Based on SEER value of efficient equipment | AE45: SEER | AF45: 13 | AG45: IL TRM v7 vol3 | AH45: 79 | AI45: =ROUND((BE45*AW45*(1/AF45-1/AB45))/1000,4) | AJ45: =ROUND(((AW45*((1/BA45)-(1/AS45)))/1000)*O45,4) | AK45: IL TRM v7 vol3 | AL45: 78 | AM45: 2020-01-01 | AS45: 13.26 | AT45: EERee | AU45: Based on calculation from SEER of installed equipment | AW45: 12000 | AX45: Allows for Capacity input in Tons; converts tons to BTUs | BA45: 11.2 | BB45: EERbase | BC45: IL TRM v7 vol3 | BD45: 81 | BE45: 738 | BF45: EFLHcool | BG45: EFLHcool, from 2017 MO TRM | BH45: 122 | BI45: 1376 | BJ45: EFLHheat | BK45: The EFLH Cooling and Heating hours are based on a EnergyStar study that was normalized (based on HDD and CDD) to Kansas City. This was for both AC and HP units.
A46: Heating, Cooling & Home Comfort | B46: CAC SEER 17 - Early Replacement | C46: 28.3 | D46: Single Family | E46: HVAC | G46: per ton | H46: =DA46+DE46/DM46-DI46/DM46*(1+CW46)^(-X46) -> 377.7998383 | I46: IL TRM v7 vol3 | J46: 77 | K46: =ROUND((BE46*AW46*(1/AF46-1/AB46))/1000,4) -> 364.6588 | L46: Calculated Value | N46: 0.4941176152 | O46: 0.68 | P46: IL TRM v7 vol3 | Q46: 81 | R46: =ROUND(((AW46*((1/BA46)-(1/AS46)))/1000)*O46,4) -> 0.2716 | S46: Calculated Value | U46: 738 | V46: EFLHcool, from 2017 MO TRM | W46: 122 | X46: 6 | Y46: IL TRM v7 vol3 | Z46: 77 | AA46: SEER | AB46: 17 | AC46: Based on SEER value of efficient equipment | AE46: SEER | AF46: 10 | AG46: IL TRM v7 vol3 | AH46: 79 | AI46: =cellformula(K46) -> =ROUND((BE46*AW46*(1/AF46-1/AB46))/1000,4) | AJ46: =cellformula(R46) -> =ROUND(((AW46*((1/BA46)-(1/AS46)))/1000)*O46,4) | AK46: IL TRM v7 vol3 | AL46: 78 | AM46: 2020-01-01 | AS46: 13.26 | AT46: EERee | AU46: Based on calculation from SEER of installed equipment | AW46: 12000 | AX46: Allows for Capacity input in Tons; converts tons to BTUs | BA46: 9.2 | BB46: EERexist | BC46: IL TRM v7 vol3 | BD46: 81 | BE46: 738 | BF46: EFLHcool | BG46: EFLHcool, from 2017 MO TRM | BH46: 122 | BI46: 1376 | BJ46: EFLHheat | BK46: The EFLH Cooling and Heating hours are based on a EnergyStar study that was normalized (based on HDD and CDD) to Kansas City. This was for both AC and HP units. | CW46: 0.03 | CX46: Societal Discount Rate | CY46: Evergy Standard | DA46: 952 | DB46: First Cost $/ton | DC46: IL TRM v7 vol3 | DD46: 77 | DE46: 620 | DF46: One-time per-system labor cost | DG46: IL TRM v7 vol3 | DH46: 77 | DI46: 3140 | DJ46: Deferred cost savings, per UNIT | DK46: IL TRM v7 vol3 | DL46: 78 | DM46: 3.5 | DN46: Assumed average system tons | DO46: Tracking Data
A47: Heating, Cooling & Home Comfort | B47: CAC SEER 17 - Early Replacement (future) | C47: 29.3 | D47: Single Family | E47: HVAC | G47: per ton | H47: 0 | I47: IL TRM v7 vol3 | J47: 77 | K47: =ROUND((BM47*AW47*(1/BE47-1/AB47))/1000,4) -> 160.2896 | L47: Calculated Value | N47: 0.2171945799 | O47: 0.68 | P47: IL TRM v7 vol3 | Q47: 81 | R47: =ROUND(((AW47*((1/BI47)-(1/AS47)))/1000)*O47,4) -> 0.1132 | S47: Calculated Value | U47: 738 | V47: EFLHcool, from 2017 MO TRM | W47: 122 | X47: 12 | Y47: IL TRM v7 vol3 | Z47: 77 | AA47: SEER | AB47: 17 | AC47: Based on SEER value of efficient equipment | AE47: =BF47 -> SEERbase | AF47: =BE47 -> 13 | AG47: IL TRM v7 vol3 | AH47: 79 | AI47: =ROUND((BM47*AW47*(1/BE47-1/AB47))/1000,4) | AJ47: =ROUND(((AW47*((1/BI47)-(1/AS47)))/1000)*O47,4) | AK47: IL TRM v7 vol3 | AL47: 78 | AM47: 2020-01-01 | AS47: 13.26 | AT47: EERee | AU47: Based on calculation from SEER of installed equipment | AW47: 12000 | AX47: Allows for Capacity input in Tons; converts tons to BTUs | BE47: 13 | BF47: SEERbase | BG47: IL TRM v7 vol3 | BH47: 79 | BI47: 11.2 | BJ47: EERbase | BK47: IL TRM v7 vol3 | BL47: 81 | BM47: 738 | BN47: EFLHcool | BO47: EFLHcool, from 2017 MO TRM | BP47: 122 | BQ47: 1376 | BR47: EFLHheat | BS47: The EFLH Cooling and Heating hours are based on a EnergyStar study that was normalized (based on HDD and CDD) to Kansas City. This was for both AC and HP units. | CW47: 0.03 | CX47: Societal Discount Rate | CY47: Evergy Standard | DA47: 952 | DB47: First Cost $/ton | DC47: IL TRM v7 vol3 | DD47: 77 | DE47: 620 | DF47: One-time per-system labor cost | DG47: IL TRM v7 vol3 | DH47: 77 | DI47: 3140 | DJ47: Deferred cost savings, per UNIT | DK47: IL TRM v7 vol3 | DL47: 78 | DM47: 3.5 | DN47: Assumed average system tons | DO47: Tracking Data
A48: Heating, Cooling & Home Comfort | B48: CAC Dual-Speed Compressor | C48: 395 | D48: Single Family | E48: HVAC | G48: per ton | H48: =(952*(AW48/12000)+620)/BU48 -> 1262 | I48: IL TRM v6 vol3 | J48: 72 | K48: =ROUND((AS48*AW48*(1/BA48-1/BE48))/1000/BU48,4) -> 265.3846 | L48: Calculated Value | N48: =ROUND(R48/O48,4) -> 0.2143 | O48: 0.68 | P48: Calculated Value | R48: =ROUND((AW48*(1/BI48-1/BM48))/1000*BQ48/BU48,4) -> 0.1457 | S48: Calculated Value | U48: 1035 | V48: IL TRM v6 vol3 | W48: 74 | X48: 18 | Y48: IL TRM v6 vol3 | Z48: 72 | AA48: SEER | AB48: 18 | AC48: Daikin DX18TC Series Indoor Model Number: DV29PTCB14A | AE48: SEER | AF48: 13 | AG48: IL TRM v6 vol3 | AH48: 72 | AI48: =ROUND((AS48*AW48*(1/BA48-1/BE48))/1000/BU48,4) | AJ48: =ROUND((AW48*(1/BI48-1/BM48))/1000*BQ48/BU48,4) | AK48: IL TRM v6 vol3 | AL48: 73, 75 | AM48: 2020-01-01 | AS48: 1035 | AT48: FLHcool | AU48: IL TRM v6 vol3 | AV48: 74 | AW48: 24000 | AX48: Capacity (Btu/hr) | AY48: Daikin DX18TC Series Indoor Model Number: DV29PTCB14A | BA48: 13 | BB48: SEERbase | BC48: IL TRM v6 vol3 | BD48: 74 | BE48: 18 | BF48: SEERee | BG48: Daikin DX18TC Series Indoor Model Number: DV29PTCB14A | BI48: 11.2 | BJ48: EERbase | BK48: IL TRM v6 vol3 | BL48: 75 | BM48: 14 | BN48: EERee | BO48: Daikin DX18TC Series Indoor Model Number: DV29PTCB14A | BQ48: 0.68 | BR48: CF | BS48: IL TRM v6 vol3 | BT48: 75 | BU48: =AW48/12000 -> 2 | BV48: Tons | BW48: IL TRM v6 vol3 | BY48: Daikin DX18TC Series Indoor Model Number: DV29PTCB14A
A49: Heating, Cooling & Home Comfort | B49: CAC Variable-Speed Compressor | C49: 396 | D49: Single Family | E49: HVAC | G49: per ton | H49: =(952*(AW49/12000)+620)/BU49 -> 1278.315789 | I49: IL TRM v6 vol3 | J49: 72 | K49: =ROUND((AS49*AW49*(1/BA49-1/BE49))/1000/BU49,4) -> 415.3846 | L49: Calculated Value | N49: =ROUND(R49/O49,4) -> 0.2143 | O49: 0.68 | P49: Calculated Value | R49: =ROUND((AW49*(1/BI49-1/BM49))/1000*BQ49/BU49,4) -> 0.1457 | S49: Calculated Value | U49: 1035 | V49: IL TRM v6 vol3 | W49: 74 | X49: 18 | Y49: IL TRM v6 vol3 | Z49: 72 | AA49: SEER | AB49: 23 | AC49: Amana AVXC20 Indoor Model Number: AVPVC24C14A | AE49: SEER | AF49: 13 | AG49: IL TRM v6 vol3 | AH49: 72 | AI49: =ROUND((AS49*AW49*(1/BA49-1/BE49))/1000/BU49,4) | AJ49: =ROUND((AW49*(1/BI49-1/BM49))/1000*BQ49/BU49,4) | AK49: IL TRM v6 vol3 | AL49: 73, 75 | AM49: 2020-01-01 | AS49: 1035 | AT49: FLHcool | AU49: IL TRM v6 vol3 | AV49: 74 | AW49: 22800 | AX49: Capacity (Btu/hr) | AY49: Amana AVXC20 Indoor Model Number: AVPVC24C14A | BA49: 13 | BB49: SEERbase | BC49: IL TRM v6 vol3 | BD49: 74 | BE49: 23 | BF49: SEERee | BG49: Amana AVXC20 Indoor Model Number: AVPVC24C14A | BI49: 11.2 | BJ49: EERbase | BK49: IL TRM v6 vol3 | BL49: 75 | BM49: 14 | BN49: EERee | BO49: Amana AVXC20 Indoor Model Number: AVPVC24C14A | BQ49: 0.68 | BR49: CF | BS49: IL TRM v6 vol3 | BT49: 75 | BU49: =AW49/12000 -> 1.9 | BV49: Tons | BW49: IL TRM v6 vol3 | BY49: Amana AVXC20 Indoor Model Number: AVPVC24C14A
A50: Heating, Cooling & Home Comfort | B50: ASHP SEER 15 | C50: 30.3 | D50: Single Family | E50: HVAC | G50: per ton | H50: =303/3.5 -> 86.57142857 | I50: IL TRM v7 vol3 | J50: 64 | K50: =ROUND(((U50*AS50*(1/(AF50*(1-BY50))-1/(AB50*CC50*(1-CG50))))/1000)+((BQ50*AS50*(1/(BA50*(1-CK50))-1/(AW50*CO50*(1-CS50))))/1000),4) -> 163.324 | L50: Calculated Value | N50: =R50 -> 0.1047 | O50: 0.72 | P50: IL TRM v7 vol3 | Q50: 65 | R50: =ROUND((AS50*(1/(BI50*(1-BY50))-1/(BE50*(1-CG50))))/1000*O50,4) -> 0.1047 | S50: Calculated Value | U50: 738 | V50: EFLHcool, from 2017 MO TRM | W50: 85 | X50: 16 | Y50: IL TRM v7 vol3 | Z50: 64 | AA50: SEERee | AB50: 15.17 | AC50: per PY2018 Metadata WHE | AE50: SEERbase | AF50: 14 | AG50: IL TRM v7 vol3 | AH50: 67 | AI50: =ROUND(((U50*AS50*(1/(AF50*(1-BY50))-1/(AB50*CC50*(1-CG50))))/1000)+((BQ50*AS50*(1/(BA50*(1-CK50))-1/(AW50*CO50*(1-CS50))))/1000),4) | AJ50: =ROUND((AS50*(1/(BI50*(1-BY50))-1/(BE50*(1-CG50))))/1000*O50,4) | AK50: IL TRM v7 vol3 | AL50: 65, 69 | AM50: 2020-01-01 | AS50: 12000 | AT50: Allows for Capacity input in Tons; converts tons to BTUs | AW50: 8.583333333 | AX50: HSPFee | AY50: per PY2018 Metadata WHE | BA50: 8.2 | BB50: HSPFbase | BC50: IL TRM v7 vol3 | BD50: 68 | BE50: 12.5 | BF50: EERee | BG50: Calculated per PY2018 Metadata WHE | BI50: 11 | BJ50: EERbase | BK50: IL TRM v7 vol3 | BL50: 70 | BM50: 738 | BN50: EFLHcool | BO50: EFLHcool, from 2017 MO TRM | BP50: 85 | BQ50: 1376 | BR50: EFLHheat | BS50: The EFLH Cooling and Heating hours are based on a EnergyStar study that was normalized (based on HDD and CDD) to Kansas City. This was for both AC and HP units. | BU50: 8.2 | BV50: HSPFbase | BW50: IL TRM v7 vol3 | BX50: 68 | BY50: 0.1 | BZ50: Derating_Cool_Base | CA50: IL TRM v7 vol3 | CB50: 67 | CC50: 1.011 | CD50: SEERadj | CE50: IL TRM v7 vol3 | CF50: 69 (example) | CG50: 0.1 | CH50: Derating_Cool_Eff | CI50: IL TRM v7 vol3 | CJ50: 67 | CK50: 0.1 | CL50: Derating_Heat_Base | CM50: IL TRM v7 vol3 | CN50: 68 | CO50: 1.001 | CP50: HSPFadj | CQ50: IL TRM v7 vol3 | CR50: 69 (example) | CS50: 0.1 | CT50: Derating_Heat_Eff | CU50: IL TRM v7 vol3 | CV50: 68
A51: Heating, Cooling & Home Comfort | B51: ASHP SEER 15 - Early Replacement | C51: 31.3 | D51: Single Family | E51: HVAC | G51: per ton | H51: =DA51+DE51/DM51-DI51*(1+CW51)^(-X51) -> 196.2703269 | I51: IL TRM v7 vol3 | J51: 64 | K51: 1685.2531 | L51: Calculated Value | N51: =K51/U51 -> 2.283540786 | O51: 0.72 | P51: IL TRM v7 vol3 | Q51: 70 | R51: 0.505 | S51: Calculated Value | U51: 738 | V51: EFLHcool, from 2017 MO TRM | W51: 85 | X51: 6 | Y51: IL TRM v7 vol3 | Z51: 64 | AA51: SEERee | AB51: 15.17 | AC51: per PY2018 Metadata WHE | AE51: SEERexist | AF51: 9.3 | AG51: IL TRM v7 vol3 | AH51: 66 | AI51: =ROUND(((U51*AS51*(1/(AF51*(1-BY51))-1/(AB51*CC51*(1-CG51))))/1000)+((BQ51*AS51*(1/(BA51*(1-CK51))-1/(AW51*CO51*(1-CS51))))/1000),4) | AJ51: =ROUND((AS51*(1/(BI51*(1-BY51))-1/(BE51*(1-CG51))))/1000*O51,4) | AK51: IL TRM v7 vol3 | AL51: 65, 69 | AM51: 2020-01-01 | AS51: 12000 | AT51: Allows for Capacity input in Tons; converts tons to BTUs | AW51: 8.712142857 | AX51: HSPFee | AY51: per PY2018 Metadata WHE | BA51: 5.44 | BB51: HSPFbase | BC51: IL TRM v7 vol3 | BD51: 68 | BE51: =(-0.02*AB51^2)+(1.12*AB51) -> 12.387822 | BF51: EERee | BG51: Calculated per PY2018 Metadata WHE | BI51: 7.5 | BJ51: EERexist | BK51: IL TRM v7 vol3 | BL51: 70 | BM51: 738 | BN51: EFLHcool | BO51: EFLHcool, from 2017 MO TRM | BP51: 85 | BQ51: 1376 | BR51: EFLHheat | BS51: The EFLH Cooling and Heating hours are based on a EnergyStar study that was normalized (based on HDD and CDD) to Kansas City. This was for both AC and HP units. | BU51: 5.54 | BV51: HSPFexist | BW51: IL TRM v7 vol3 | BX51: 68 | BY51: 0.1 | BZ51: Derating_Cool_Base | CA51: IL TRM v7 vol3 | CB51: 67 | CC51: 1.011 | CD51: SEERadj | CE51: IL TRM v7 vol3 | CF51: 69 (example) | CG51: 0.1 | CH51: Derating_Cool_Eff | CI51: IL TRM v7 vol3 | CJ51: 67 | CK51: 0.1 | CL51: Derating_Heat_Base | CM51: IL TRM v7 vol3 | CN51: 68 | CO51: 1.001 | CP51: HSPFadj | CQ51: IL TRM v7 vol3 | CR51: 69 (example) | CS51: 0.1 | CT51: Derating_Heat_Eff | CU51: IL TRM v7 vol3 | CV51: 68 | CW51: 0.03 | CX51: Societal Discount Rate | CY51: Evergy Standard | DA51: 1381 | DB51: First Cost $/ton | DC51: IL TRM v7 vol3 | DD51: 64 | DE51: 303 | DF51: One-time per-system labor cost | DG51: IL TRM v7 vol3 | DH51: 64 | DI51: 1518 | DJ51: Deferred cost savings | DK51: IL TRM v7 vol3 | DL51: 65 | DM51: 3.5 | DN51: Assumed average system tons | DO51: Tracking Data
A52: Heating, Cooling & Home Comfort | B52: ASHP SEER 15 - Early Replacement (future) | C52: 32.3 | D52: Single Family | E52: HVAC | G52: per ton | H52: 0 | I52: IL TRM v7 vol3 | J52: 64 | K52: 194.8951 | L52: Calculated Value | N52: 0.2640855014 | O52: 0.72 | P52: IL TRM v7 vol3 | Q52: 70 | R52: 0.0978 | S52: Calculated Value | U52: 738 | V52: EFLHcool, from 2017 MO TRM | W52: 85 | X52: 10 | Y52: IL TRM v7 vol3 | Z52: 64 | AA52: SEERee | AB52: 15.17 | AC52: per PY2018 Metadata WHE | AE52: SEERbase | AF52: 14 | AG52: IL TRM v7 vol3 | AH52: 66 | AI52: =ROUND(((U52*AS52*(1/(AF52*(1-BY52))-1/(AB52*CC52*(1-CG52))))/1000)+((BQ52*AS52*(1/(BA52*(1-CK52))-1/(AW52*CO52*(1-CS52))))/1000),4) | AJ52: =ROUND((AS52*(1/(BI52*(1-BY52))-1/(BE52*(1-CG52))))/1000*O52,4) | AK52: IL TRM v7 vol3 | AL52: 65, 69 | AM52: 2020-01-01 | AS52: 12000 | AT52: Allows for Capacity input in Tons; converts tons to BTUs | AW52: 8.712142857 | AX52: HSPFee | AY52: per PY2018 Metadata WHE | BA52: 8.2 | BB52: HSPFexist | BC52: IL TRM v7 vol3 | BD52: 68 | BE52: =(-0.02*AB52^2)+(1.12*AB52) -> 12.387822 | BF52: EERee | BG52: Calculated per PY2018 Metadata WHE | BI52: 11 | BJ52: EERbase | BK52: IL TRM v7 vol3 | BL52: 70 | BM52: 738 | BN52: EFLHcool | BO52: EFLHcool, from 2017 MO TRM | BP52: 85 | BQ52: 1376 | BR52: EFLHheat | BS52: The EFLH Cooling and Heating hours are based on a EnergyStar study that was normalized (based on HDD and CDD) to Kansas City. This was for both AC and HP units. | BU52: 8.2 | BV52: HSPFbase | BW52: IL TRM v7 vol3 | BX52: 68 | BY52: 0.1 | BZ52: Derating_Cool_Base | CA52: IL TRM v7 vol3 | CB52: 67 | CC52: 1.011 | CD52: SEERadj | CE52: IL TRM v7 vol3 | CF52: 69 (example) | CG52: 0.1 | CH52: Derating_Cool_Eff | CI52: IL TRM v7 vol3 | CJ52: 67 | CK52: 0.1 | CL52: Derating_Heat_Base | CM52: IL TRM v7 vol3 | CN52: 68 | CO52: 1.001 | CP52: HSPFadj | CQ52: IL TRM v7 vol3 | CR52: 69 (example) | CS52: 0.1 | CT52: Derating_Heat_Eff | CU52: IL TRM v7 vol3 | CV52: 68 | CW52: 0.03 | CX52: Societal Discount Rate | CY52: Evergy Standard | DA52: 1381 | DB52: First Cost $/ton | DC52: IL TRM v7 vol3 | DD52: 64 | DE52: 303 | DF52: One-time per-system labor cost | DG52: IL TRM v7 vol3 | DH52: 64 | DI52: 1518 | DJ52: Deferred cost savings | DK52: IL TRM v7 vol3 | DL52: 65 | DM52: 3.5 | DN52: Assumed average system tons | DO52: Tracking Data
A53: Heating, Cooling & Home Comfort | B53: ASHP SEER 15 - Replace Electric Resistance Heat | C53: 33.3 | D53: Single Family | E53: HVAC | G53: per ton | H53: =303/3.5 -> 86.57142857 | I53: IL TRM v7 vol3 | J53: 64 | K53: 233.1933 | L53: Calculated Value | N53: =R53 -> 0.1198 | O53: 0.72 | P53: IL TRM v7 vol3 | Q53: 65 | R53: 0.1198 | S53: Calculated Value | U53: 738 | V53: EFLHcool, from 2017 MO TRM | W53: 85 | X53: 16 | Y53: IL TRM v7 vol3 | Z53: 64 | AA53: SEERee | AB53: 15.17 | AC53: per PY2018 Metadata WHE | AE53: SEERbase | AF53: 14 | AG53: IL TRM v7 vol3 | AH53: 67 | AI53: =ROUND(((U53*AS53*(1/(AF53*(1-BY53))-1/(AB53*CC53*(1-CG53))))/1000)+((BQ53*AS53*(1/(BA53*(1-CK53))-1/(AW53*CO53*(1-CS53))))/1000),4) | AJ53: =ROUND((AS53*(1/(BI53*(1-BY53))-1/(BE53*(1-CG53))))/1000*O53,4) | AK53: IL TRM v7 vol3 | AL53: 65, 69 | AM53: 2020-01-01 | AS53: 12000 | AT53: Allows for Capacity input in Tons; converts tons to BTUs | AW53: 8.873684211 | AX53: HSPFee | AY53: per PY2018 Metadata WHE | BA53: 8.2 | BB53: HSPFbase | BC53: IL TRM v7 vol3 | BD53: 68 | BE53: 12.75 | BF53: EERee | BG53: Calculated per PY2018 Metadata WHE | BI53: 11 | BJ53: EERbase | BK53: IL TRM v7 vol3 | BL53: 70 | BM53: 738 | BN53: EFLHcool | BO53: EFLHcool, from 2017 MO TRM | BP53: 85 | BQ53: 1376 | BR53: EFLHheat | BS53: The EFLH Cooling and Heating hours are based on a EnergyStar study that was normalized (based on HDD and CDD) to Kansas City. This was for both AC and HP units. | BU53: 8.2 | BV53: HSPFbase | BW53: IL TRM v7 vol3 | BX53: 68 | BY53: 0.1 | BZ53: Derating_Cool_Base | CA53: IL TRM v7 vol3 | CB53: 67 | CC53: 1.011 | CD53: SEERadj | CE53: IL TRM v7 vol3 | CF53: 69 (example) | CG53: 0.1 | CH53: Derating_Cool_Eff | CI53: IL TRM v7 vol3 | CJ53: 67 | CK53: 0.1 | CL53: Derating_Heat_Base | CM53: IL TRM v7 vol3 | CN53: 68 | CO53: 1.001 | CP53: HSPFadj | CQ53: IL TRM v7 vol3 | CR53: 69 (example) | CS53: 0.1 | CT53: Derating_Heat_Eff | CU53: IL TRM v7 vol3 | CV53: 68
A54: Heating, Cooling & Home Comfort | B54: ASHP SEER 15 - Replace Electric Resistance Heat - Early Replacement | C54: 314.2 | D54: Single Family | E54: HVAC | G54: per ton | H54: =DA54+DE54/DM54-DI54*(1+CW54)^(-X54) -> 196.2703269 | I54: IL TRM v7 vol3 | J54: 64 | K54: 3692.9583 | L54: Calculated Value | N54: =R54 -> 0.505 | O54: 0.72 | P54: IL TRM v7 vol3 | Q54: 65 | R54: 0.505 | S54: Calculated Value | U54: 738 | V54: EFLHcool, from 2017 MO TRM | W54: 85 | X54: 6 | Y54: IL TRM v7 vol3 | Z54: 64 | AA54: SEERee | AB54: 15.17 | AC54: per PY2018 Metadata WHE | AE54: SEERexist | AF54: 9.3 | AG54: IL TRM v7 vol3 | AH54: 66 | AI54: =ROUND(((U54*AS54*(1/(AF54*(1-BY54))-1/(AB54*CC54*(1-CG54))))/1000)+((BQ54*AS54*(1/(BA54*(1-CK54))-1/(AW54*CO54*(1-CS54))))/1000),4) | AJ54: =ROUND((AS54*(1/(BI54*(1-BY54))-1/(BE54*(1-CG54))))/1000*O54,4) | AK54: IL TRM v7 vol3 | AL54: 65, 69 | AM54: 2020-01-01 | AS54: 12000 | AT54: Allows for Capacity input in Tons; converts tons to BTUs | AW54: 8.712142857 | AX54: HSPFee | AY54: per PY2018 Metadata WHE | BA54: 3.41 | BB54: HSPFexist | BC54: IL TRM v7 vol3 | BD54: 68 | BE54: =(-0.02*AB54^2)+(1.12*AB54) -> 12.387822 | BF54: EERee | BG54: Calculated per PY2018 Metadata WHE | BI54: 7.5 | BJ54: EERexist | BK54: IL TRM v7 vol3 | BL54: 70 | BM54: 738 | BN54: EFLHcool | BO54: EFLHcool, from 2017 MO TRM | BP54: 85 | BQ54: 1376 | BR54: EFLHheat | BS54: The EFLH Cooling and Heating hours are based on a EnergyStar study that was normalized (based on HDD and CDD) to Kansas City. This was for both AC and HP units. | BU54: 3.41 | BV54: HSPFexist | BW54: IL TRM v7 vol3 | BX54: 68 | BY54: 0.1 | BZ54: Derating_Cool_Base | CA54: IL TRM v7 vol3 | CB54: 67 | CC54: 1.011 | CD54: SEERadj | CE54: IL TRM v7 vol3 | CF54: 69 (example) | CG54: 0.1 | CH54: Derating_Cool_Eff | CI54: IL TRM v7 vol3 | CJ54: 67 | CK54: 0.1 | CL54: Derating_Heat_Base | CM54: IL TRM v7 vol3 | CN54: 68 | CO54: 1.001 | CP54: HSPFadj | CQ54: IL TRM v7 vol3 | CR54: 69 (example) | CS54: 0.1 | CT54: Derating_Heat_Eff | CU54: IL TRM v7 vol3 | CV54: 68 | CW54: 0.03 | CX54: Societal Discount Rate | CY54: Evergy Standard | DA54: 1381 | DB54: First Cost $/ton | DC54: IL TRM v7 vol3 | DD54: 64 | DE54: 303 | DF54: One-time per-system labor cost | DG54: IL TRM v7 vol3 | DH54: 64 | DI54: 1518 | DJ54: Deferred cost savings | DK54: IL TRM v7 vol3 | DL54: 65 | DM54: 3.5 | DN54: Assumed average system tons | DO54: Tracking Data
A55: Heating, Cooling & Home Comfort | B55: ASHP SEER 15 - Replace Electric Resistance Heat - Early Replacement (future) | C55: 315.2 | D55: Single Family | E55: HVAC | G55: per ton | H55: 0 | I55: IL TRM v7 vol3 | J55: 65 | K55: 194.8951 | L55: Calculated Value | N55: =R55 -> 0.0978 | O55: 0.72 | P55: IL TRM v7 vol3 | Q55: 65 | R55: 0.0978 | S55: Calculated Value | U55: 738 | V55: EFLHcool, from 2017 MO TRM | W55: 85 | X55: 10 | Y55: IL TRM v7 vol3 | Z55: 64 | AA55: SEERee | AB55: 15.17 | AC55: per PY2018 Metadata WHE | AE55: SEERbase | AF55: 14 | AG55: IL TRM v7 vol3 | AH55: 67 | AI55: =ROUND(((U55*AS55*(1/(AF55*(1-BY55))-1/(AB55*CC55*(1-CG55))))/1000)+((BQ55*AS55*(1/(BA55*(1-CK55))-1/(AW55*CO55*(1-CS55))))/1000),4) | AJ55: =ROUND((AS55*(1/(BI55*(1-BY55))-1/(BE55*(1-CG55))))/1000*O55,4) | AK55: IL TRM v7 vol3 | AL55: 65, 69 | AM55: 2020-01-01 | AS55: 12000 | AT55: Allows for Capacity input in Tons; converts tons to BTUs | AW55: 8.712142857 | AX55: HSPFee | AY55: per PY2018 Metadata WHE | BA55: 8.2 | BB55: HSPFbase | BC55: IL TRM v7 vol3 | BD55: 68 | BE55: =(-0.02*AB55^2)+(1.12*AB55) -> 12.387822 | BF55: EERee | BG55: Calculated per PY2018 Metadata WHE | BI55: 11 | BJ55: EERbase | BK55: IL TRM v7 vol3 | BL55: 70 | BM55: 738 | BN55: EFLHcool | BO55: EFLHcool, from 2017 MO TRM | BP55: 85 | BQ55: 1376 | BR55: EFLHheat | BS55: The EFLH Cooling and Heating hours are based on a EnergyStar study that was normalized (based on HDD and CDD) to Kansas City. This was for both AC and HP units. | BU55: 8.2 | BV55: HSPFbase | BW55: IL TRM v7 vol3 | BX55: 68 | BY55: 0.1 | BZ55: Derating_Cool_Base | CA55: IL TRM v7 vol3 | CB55: 67 | CC55: 1.011 | CD55: SEERadj | CE55: IL TRM v7 vol3 | CF55: 69 (example) | CG55: 0.1 | CH55: Derating_Cool_Eff | CI55: IL TRM v7 vol3 | CJ55: 67 | CK55: 0.1 | CL55: Derating_Heat_Base | CM55: IL TRM v7 vol3 | CN55: 68 | CO55: 1.001 | CP55: HSPFadj | CQ55: IL TRM v7 vol3 | CR55: 69 (example) | CS55: 0.1 | CT55: Derating_Heat_Eff | CU55: IL TRM v7 vol3 | CV55: 68 | CW55: 0.03 | CX55: Societal Discount Rate | CY55: Evergy Standard | DA55: 1381 | DB55: First Cost $/ton | DC55: IL TRM v7 vol3 | DD55: 64 | DE55: 303 | DF55: One-time per-system labor cost | DG55: IL TRM v7 vol3 | DH55: 64 | DI55: 1518 | DJ55: Deferred cost savings | DK55: IL TRM v7 vol3 | DL55: 65 | DM55: 3.5 | DN55: Assumed average system tons | DO55: Tracking Data
A56: Heating, Cooling & Home Comfort | B56: ASHP SEER 16 | C56: 34.3 | D56: Single Family | E56: HVAC | G56: per ton | H56: =438/3.5 -> 125.1428571 | I56: IL TRM v7 vol3 | J56: 64 | K56: 314.7392 | L56: Calculated Value | N56: =R56 -> 0.1307 | O56: 0.72 | P56: IL TRM v7 vol3 | Q56: 65 | R56: 0.1307 | S56: Calculated Value | U56: 738 | V56: EFLHcool, from 2017 MO TRM | W56: 85 | X56: 16 | Y56: IL TRM v7 vol3 | Z56: 64 | AA56: SEERee | AB56: 16.04 | AC56: per PY2018 Metadata WHE | AE56: SEERbase | AF56: 14 | AG56: IL TRM v7 vol3 | AH56: 67 | AI56: =ROUND(((U56*AS56*(1/(AF56*(1-BY56))-1/(AB56*CC56*(1-CG56))))/1000)+((BQ56*AS56*(1/(BA56*(1-CK56))-1/(AW56*CO56*(1-CS56))))/1000),4) | AJ56: =ROUND((AS56*(1/(BI56*(1-BY56))-1/(BE56*(1-CG56))))/1000*O56,4) | AK56: IL TRM v7 vol3 | AL56: 65, 69 | AM56: 2020-01-01 | AS56: 12000 | AT56: Allows for Capacity input in Tons; converts tons to BTUs | AW56: 9.079166667 | AX56: HSPFee | AY56: per PY2018 Metadata WHE | BA56: 8.2 | BB56: HSPFbase | BC56: IL TRM v7 vol3 | BD56: 68 | BE56: 12.9375 | BF56: EERee | BG56: Calculated per PY2018 Metadata WHE | BI56: 11 | BJ56: EERbase | BK56: IL TRM v7 vol3 | BL56: 70 | BM56: 738 | BN56: EFLHcool | BO56: EFLHcool, from 2017 MO TRM | BP56: 85 | BQ56: 1376 | BR56: EFLHheat | BS56: The EFLH Cooling and Heating hours are based on a EnergyStar study that was normalized (based on HDD and CDD) to Kansas City. This was for both AC and HP units. | BU56: 8.2 | BV56: HSPFbase | BW56: IL TRM v7 vol3 | BX56: 68 | BY56: 0.1 | BZ56: Derating_Cool_Base | CA56: IL TRM v7 vol3 | CB56: 67 | CC56: 1.011 | CD56: SEERadj | CE56: IL TRM v7 vol3 | CF56: 69 (example) | CG56: 0.1 | CH56: Derating_Cool_Eff | CI56: IL TRM v7 vol3 | CJ56: 67 | CK56: 0.1 | CL56: Derating_Heat_Base | CM56: IL TRM v7 vol3 | CN56: 68 | CO56: 1.001 | CP56: HSPFadj | CQ56: IL TRM v7 vol3 | CR56: 69 (example) | CS56: 0.1 | CT56: Derating_Heat_Eff | CU56: IL TRM v7 vol3 | CV56: 68
A57: Heating, Cooling & Home Comfort | B57: ASHP SEER 16 - Early Replacement | C57: 35.3 | D57: Single Family | E57: HVAC | G57: per ton | H57: =DA57+DE57/DM57-DI57*(1+CW57)^(-X57) -> 196.2703269 | I57: IL TRM v7 vol3 | J57: 64 | K57: 1804.8718 | L57: Calculated Value | N57: =K57/U57 -> 2.445625745 | O57: 0.72 | P57: IL TRM v7 vol3 | Q57: 70 | R57: 0.5322 | S57: Calculated Value | U57: 738 | V57: EFLHcool, from 2017 MO TRM | W57: 85 | X57: 6 | Y57: IL TRM v7 vol3 | Z57: 64 | AA57: SEER | AB57: 16.08 | AC57: per PY2018 Metadata WHE | AE57: SEER | AF57: 9.12 | AG57: IL TRM v7 vol3 | AH57: 66 | AI57: =ROUND(((U57*AS57*(1/(AF57*(1-BY57))-1/(AB57*CC57*(1-CG57))))/1000)+((BQ57*AS57*(1/(BA57*(1-CK57))-1/(AW57*CO57*(1-CS57))))/1000),4) | AJ57: =ROUND((AS57*(1/(BI57*(1-BY57))-1/(BE57*(1-CG57))))/1000*O57,4) | AK57: IL TRM v7 vol3 | AL57: 65, 69 | AM57: 2020-01-01 | AS57: 12000 | AT57: Allows for Capacity input in Tons; converts tons to BTUs | AW57: 8.978571429 | AX57: HSPFee | AY57: per PY2018 Metadata WHE | BA57: 5.44 | BB57: HSPFbase | BC57: IL TRM v7 vol3 | BD57: 68 | BE57: =(-0.02*AB57^2)+(1.12*AB57) -> 12.838272 | BF57: EERee | BG57: Calculated per PY2018 Metadata WHE | BI57: 7.5 | BJ57: EERexist | BK57: IL TRM v7 vol3 | BL57: 70 | BM57: 738 | BN57: EFLHcool | BO57: EFLHcool, from 2017 MO TRM | BP57: 85 | BQ57: 1376 | BR57: EFLHheat | BS57: The EFLH Cooling and Heating hours are based on a EnergyStar study that was normalized (based on HDD and CDD) to Kansas City. This was for both AC and HP units. | BU57: 5.54 | BV57: HSPFexist | BW57: IL TRM v7 vol3 | BX57: 68 | BY57: 0.1 | BZ57: Derating_Cool_Base | CA57: IL TRM v7 vol3 | CB57: 67 | CC57: 1.011 | CD57: SEERadj | CE57: IL TRM v7 vol3 | CF57: 69 (example) | CG57: 0.1 | CH57: Derating_Cool_Eff | CI57: IL TRM v7 vol3 | CJ57: 67 | CK57: 0.1 | CL57: Derating_Heat_Base | CM57: IL TRM v7 vol3 | CN57: 68 | CO57: 1.001 | CP57: HSPFadj | CQ57: IL TRM v7 vol3 | CR57: 69 (example) | CS57: 0.1 | CT57: Derating_Heat_Eff | CU57: IL TRM v7 vol3 | CV57: 68 | CW57: 0.03 | CX57: Societal Discount Rate | CY57: Evergy Standard | DA57: 1381 | DB57: First Cost $/ton | DC57: IL TRM v7 vol3 | DD57: 64 | DE57: 303 | DF57: One-time per-system labor cost | DG57: IL TRM v7 vol3 | DH57: 64 | DI57: 1518 | DJ57: Deferred cost savings | DK57: IL TRM v7 vol3 | DL57: 65 | DM57: 3.5 | DN57: Assumed average system tons | DO57: Tracking Data
A58: Heating, Cooling & Home Comfort | B58: ASHP SEER 16 - Early Replacement (future) | C58: 36.3 | D58: Single Family | E58: HVAC | G58: per ton | H58: 0 | I58: IL TRM v7 vol3 | J58: 64 | K58: 108.9521 | L58: Calculated Value | N58: 0.1476315718 | O58: 0.72 | P58: IL TRM v7 vol3 | Q58: 70 | R58: 0.125 | S58: Calculated Value | U58: 738 | V58: EFLHcool, from 2017 MO TRM | W58: 85 | X58: 10 | Y58: IL TRM v7 vol3 | Z58: 64 | AA58: SEER | AB58: 16.08 | AC58: per PY2018 Metadata WHE | AE58: =BN58 -> SEERbase | AF58: =BM58 -> 14 | AG58: IL TRM v7 vol3 | AH58: 66 | AI58: =ROUND(((U58*AS58*(1/(AF58*(1-BY58))-1/(AB58*CC58*(1-CG58))))/1000)+((BQ58*AS58*(1/(BA58*(1-CK58))-1/(AW58*CO58*(1-CS58))))/1000),4) | AJ58: =ROUND((AS58*(1/(BI58*(1-BY58))-1/(BE58*(1-CG58))))/1000*O58,4) | AK58: IL TRM v7 vol3 | AL58: 65, 69 | AM58: 2020-01-01 | AS58: 12000 | AT58: Allows for Capacity input in Tons; converts tons to BTUs | AW58: 8.978571429 | AX58: HSPFee | AY58: per PY2018 Metadata WHE | BA58: 5.44 | BB58: HSPFexist | BC58: IL TRM v7 vol3 | BD58: 68 | BE58: =(-0.02*AB58^2)+(1.12*AB58) -> 12.838272 | BF58: EERee | BG58: Calculated per PY2018 Metadata WHE | BI58: 11 | BJ58: EERbase | BK58: IL TRM v7 vol3 | BL58: 70 | BM58: 14 | BN58: SEERbase | BO58: EFLHcool, from 2017 MO TRM | BP58: 85 | BQ58: =(-0.02*BM58^2)+(1.12*BM58) -> 11.76 | BR58: EERbase | BS58: Based on SEER base | BU58: 8.2 | BV58: HSPFbase | BW58: IL TRM v7 vol3 | BX58: 68 | BY58: 0.1 | BZ58: Derating_Cool_Base | CA58: IL TRM v7 vol3 | CB58: 67 | CC58: 1.011 | CD58: SEERadj | CE58: IL TRM v7 vol3 | CF58: 69 (example) | CG58: 0.1 | CH58: Derating_Cool_Eff | CI58: IL TRM v7 vol3 | CJ58: 67 | CK58: 0.1 | CL58: Derating_Heat_Base | CM58: IL TRM v7 vol3 | CN58: 68 | CO58: 1.001 | CP58: HSPFadj | CQ58: IL TRM v7 vol3 | CR58: 69 (example) | CS58: 0.1 | CT58: Derating_Heat_Eff | CU58: IL TRM v7 vol3 | CV58: 68 | CW58: 0.03 | CX58: Societal Discount Rate | CY58: Evergy Standard | DA58: 1381 | DB58: First Cost $/ton | DC58: IL TRM v7 vol3 | DD58: 64 | DE58: 303 | DF58: One-time per-system labor cost | DG58: IL TRM v7 vol3 | DH58: 64 | DI58: 1518 | DJ58: Deferred cost savings | DK58: IL TRM v7 vol3 | DL58: 65 | DM58: 3.5 | DN58: Assumed average system tons | DO58: Tracking Data
A59: Heating, Cooling & Home Comfort | B59: ASHP SEER 16 - Replace Electric Resistance Heat | C59: 37.3 | D59: Single Family | E59: HVAC | G59: per ton | H59: 793.1578947 | I59: IL TRM v5 | J59: 59 | K59: =ROUND((BM59*AS59*(1/AF59-1/AB59))/1000+(BQ59*AS59*(1/BA59-1/AW59)/1000),4) -> 273.2928 | L59: Calculated Value | N59: 0.3703154472 | O59: 0.72 | P59: Calculated Value | R59: =ROUND((AS59*(1/BI59-1/BE59)/1000)*O59,4) -> 0.0478 | S59: Calculated Value | U59: 738 | V59: EFLHcool, from 2017 MO TRM | W59: 85 | X59: 18 | Y59: IL TRM v5 vol3 | Z59: 59 | AA59: SEER | AB59: 16.11 | AC59: per PY2018 Metadata | AE59: SEERbase | AF59: 14 | AG59: IL TRM v5 vol3 | AH59: 62 | AI59: =cellformula(K59) -> =ROUND((BM59*AS59*(1/AF59-1/AB59))/1000+(BQ59*AS59*(1/BA59-1/AW59)/1000),4) | AJ59: =cellformula(R59) -> =ROUND((AS59*(1/BI59-1/BE59)/1000)*O59,4) | AK59: IL TRM v5 vol3 | AL59: 60, 63 | AM59: 2020-01-01 | AS59: 12000 | AT59: Allows for Capacity input in Tons; converts tons to BTUs | AW59: 9.056521739 | AX59: HSPFee | AY59: Calculated per PY2016 Metadata | BA59: 8.2 | BB59: HSPFbase | BC59: IL TRM v5 vol3 | BD59: 63 | BE59: 12.625 | BF59: EERee | BG59: Calculated per PY2016 Metadata | BI59: 11.8 | BJ59: EERbase | BK59: IL TRM v5 vol3 | BL59: 64 | BM59: 738 | BN59: EFLHcool | BO59: EFLHcool, from 2017 MO TRM | BP59: 85 | BQ59: 1376 | BR59: EFLHheat | BS59: The EFLH Cooling and Heating hours are based on a EnergyStar study that was normalized (based on HDD and CDD) to Kansas City. This was for both AC and HP units.
A60: Heating, Cooling & Home Comfort | B60: ASHP SEER 16 - Replace Electric Resistance Heat - Early Replacement | C60: 316.2 | D60: Single Family | E60: HVAC | G60: per ton | H60: =DA60+DE60/DM60-DI60*(1+CW60)^(-X60) -> 234.8417555 | I60: IL TRM v7 vol3 | J60: 64 | K60: =ROUND(((U60*AS60*(1/(AF60*(1-BY60))-1/(AB60*CC60*(1-CG60))))/1000)+((BQ60*AS60*(1/(BA60*(1-CK60))-1/(AW60*CO60*(1-CS60))))/1000),4) -> 3791.6941 | L60: Calculated Value | N60: =R60 -> 0.5322 | O60: 0.72 | P60: IL TRM v7 vol3 | Q60: 65 | R60: =ROUND((AS60*(1/(BI60*(1-BY60))-1/(BE60*(1-CG60))))/1000*O60,4) -> 0.5322 | S60: Calculated Value | U60: 738 | V60: EFLHcool, from 2017 MO TRM | W60: 85 | X60: 6 | Y60: IL TRM v7 vol3 | Z60: 64 | AA60: SEERee | AB60: 16.08 | AC60: per PY2018 Metadata WHE | AE60: SEERexist | AF60: 9.3 | AG60: IL TRM v7 vol3 | AH60: 66 | AI60: =ROUND(((U60*AS60*(1/(AF60*(1-BY60))-1/(AB60*CC60*(1-CG60))))/1000)+((BQ60*AS60*(1/(BA60*(1-CK60))-1/(AW60*CO60*(1-CS60))))/1000),4) | AJ60: =ROUND((AS60*(1/(BI60*(1-BY60))-1/(BE60*(1-CG60))))/1000*O60,4) | AK60: IL TRM v7 vol3 | AL60: 65, 69 | AM60: 2020-01-01 | AS60: 12000 | AT60: Allows for Capacity input in Tons; converts tons to BTUs | AW60: 8.978571429 | AX60: HSPFee | AY60: per PY2018 Metadata WHE | BA60: 3.41 | BB60: HSPFexist | BC60: IL TRM v7 vol3 | BD60: 68 | BE60: =(-0.02*AB60^2)+(1.12*AB60) -> 12.838272 | BF60: EERee | BG60: Calculated per PY2018 Metadata WHE | BI60: 7.5 | BJ60: EERexist | BK60: IL TRM v7 vol3 | BL60: 70 | BM60: 738 | BN60: EFLHcool | BO60: EFLHcool, from 2017 MO TRM | BP60: 85 | BQ60: 1376 | BR60: EFLHheat | BS60: The EFLH Cooling and Heating hours are based on a EnergyStar study that was normalized (based on HDD and CDD) to Kansas City. This was for both AC and HP units. | BU60: 3.41 | BV60: HSPFexist | BW60: IL TRM v7 vol3 | BX60: 68 | BY60: 0.1 | BZ60: Derating_Cool_Base | CA60: IL TRM v7 vol3 | CB60: 67 | CC60: 1.011 | CD60: SEERadj | CE60: IL TRM v7 vol3 | CF60: 69 (example) | CG60: 0.1 | CH60: Derating_Cool_Eff | CI60: IL TRM v7 vol3 | CJ60: 67 | CK60: 0.1 | CL60: Derating_Heat_Base | CM60: IL TRM v7 vol3 | CN60: 68 | CO60: 1.001 | CP60: HSPFadj | CQ60: IL TRM v7 vol3 | CR60: 69 (example) | CS60: 0.1 | CT60: Derating_Heat_Eff | CU60: IL TRM v7 vol3 | CV60: 68 | CW60: 0.03 | CX60: Societal Discount Rate | CY60: Evergy Standard | DA60: 1381 | DB60: First Cost $/ton | DC60: IL TRM v7 vol3 | DD60: 64 | DE60: 438 | DF60: One-time per-system labor cost | DG60: IL TRM v7 vol3 | DH60: 64 | DI60: 1518 | DJ60: Deferred cost savings | DK60: IL TRM v7 vol3 | DL60: 65 | DM60: 3.5 | DN60: Assumed average system tons | DO60: Tracking Data
A61: Heating, Cooling & Home Comfort | B61: ASHP SEER 16 - Replace Electric Resistance Heat - Early Replacement (future) | C61: 317.2 | D61: Single Family | E61: HVAC | G61: per ton | H61: 0 | I61: IL TRM v7 vol3 | J61: 65 | K61: =ROUND(((U61*AS61*(1/(AF61*(1-BY61))-1/(AB61*CC61*(1-CG61))))/1000)+((BQ61*AS61*(1/(BA61*(1-CK61))-1/(AW61*CO61*(1-CS61))))/1000),4) -> 293.6309 | L61: Calculated Value | N61: =R61 -> 0.125 | O61: 0.72 | P61: IL TRM v7 vol3 | Q61: 65 | R61: =ROUND((AS61*(1/(BI61*(1-BY61))-1/(BE61*(1-CG61))))/1000*O61,4) -> 0.125 | S61: Calculated Value | U61: 738 | V61: EFLHcool, from 2017 MO TRM | W61: 85 | X61: 10 | Y61: IL TRM v7 vol3 | Z61: 64 | AA61: SEERee | AB61: 16.08 | AC61: per PY2018 Metadata WHE | AE61: SEERbase | AF61: 14 | AG61: IL TRM v7 vol3 | AH61: 67 | AI61: =ROUND(((U61*AS61*(1/(AF61*(1-BY61))-1/(AB61*CC61*(1-CG61))))/1000)+((BQ61*AS61*(1/(BA61*(1-CK61))-1/(AW61*CO61*(1-CS61))))/1000),4) | AJ61: =ROUND((AS61*(1/(BI61*(1-BY61))-1/(BE61*(1-CG61))))/1000*O61,4) | AK61: IL TRM v7 vol3 | AL61: 65, 69 | AM61: 2020-01-01 | AS61: 12000 | AT61: Allows for Capacity input in Tons; converts tons to BTUs | AW61: 8.978571429 | AX61: HSPFee | AY61: per PY2018 Metadata WHE | BA61: 8.2 | BB61: HSPFbase | BC61: IL TRM v7 vol3 | BD61: 68 | BE61: =(-0.02*AB61^2)+(1.12*AB61) -> 12.838272 | BF61: EERee | BG61: Calculated per PY2018 Metadata WHE | BI61: 11 | BJ61: EERbase | BK61: IL TRM v7 vol3 | BL61: 70 | BM61: 738 | BN61: EFLHcool | BO61: EFLHcool, from 2017 MO TRM | BP61: 85 | BQ61: 1376 | BR61: EFLHheat | BS61: The EFLH Cooling and Heating hours are based on a EnergyStar study that was normalized (based on HDD and CDD) to Kansas City. This was for both AC and HP units. | BU61: 8.2 | BV61: HSPFbase | BW61: IL TRM v7 vol3 | BX61: 68 | BY61: 0.1 | BZ61: Derating_Cool_Base | CA61: IL TRM v7 vol3 | CB61: 67 | CC61: 1.011 | CD61: SEERadj | CE61: IL TRM v7 vol3 | CF61: 69 (example) | CG61: 0.1 | CH61: Derating_Cool_Eff | CI61: IL TRM v7 vol3 | CJ61: 67 | CK61: 0.1 | CL61: Derating_Heat_Base | CM61: IL TRM v7 vol3 | CN61: 68 | CO61: 1.001 | CP61: HSPFadj | CQ61: IL TRM v7 vol3 | CR61: 69 (example) | CS61: 0.1 | CT61: Derating_Heat_Eff | CU61: IL TRM v7 vol3 | CV61: 68 | CW61: 0.03 | CX61: Societal Discount Rate | CY61: Evergy Standard | DA61: 1381 | DB61: First Cost $/ton | DC61: IL TRM v7 vol3 | DD61: 64 | DE61: 438 | DF61: One-time per-system labor cost | DG61: IL TRM v7 vol3 | DH61: 64 | DI61: 1518 | DJ61: Deferred cost savings | DK61: IL TRM v7 vol3 | DL61: 65 | DM61: 3.5 | DN61: Assumed average system tons | DO61: Tracking Data
A62: Heating, Cooling & Home Comfort | B62: ASHP SEER 17 | C62: 38.3 | D62: Single Family | E62: HVAC | G62: per ton | H62: 411 | I62: IL TRM v5 | J62: 59 | K62: =ROUND((BM62*AS62*(1/AF62-1/AB62))/1000+(BQ62*AS62*(1/BA62-1/AW62)/1000),4) -> 318.3332 | L62: Calculated Value | N62: =K62/U62 -> 0.4313457995 | O62: 0.72 | P62: Calculated Value | R62: =ROUND((AS62*(1/BI62-1/BE62)/1000)*O62,4) -> 0.041 | S62: Calculated Value | U62: 738 | V62: EFLHcool, from 2017 MO TRM | W62: 85 | X62: 18 | Y62: IL TRM v5 vol3 | Z62: 59 | AA62: SEER | AB62: 17.25 | AC62: per PY2018 Metadata | AE62: SEER | AF62: 14 | AG62: IL TRM v5 vol3 | AH62: 62 | AI62: =ROUND((BM62*AS62*(1/AF62-1/AB62))/1000+(BQ62*AS62*(1/BA62-1/AW62)/1000),4) | AJ62: =ROUND((AS62*(1/BI62-1/BE62)/1000)*O62,4) | AK62: IL TRM v5 vol3 | AL62: 60, 63 | AM62: 2020-01-01 | AS62: 12000 | AT62: Allows for Capacity input in Tons; converts tons to BTUs | AW62: 9.1 | AX62: HSPFee | AY62: Calculated per PY2016 Metadata | BA62: 8.2 | BB62: HSPFbase | BC62: IL TRM v5 vol3 | BD62: 63 | BE62: 12.5 | BF62: EERee | BG62: Calculated per PY2016 Metadata | BI62: 11.8 | BJ62: EERbase | BK62: IL TRM v5 vol3 | BL62: 64 | BM62: 738 | BN62: EFLHcool | BO62: EFLHcool, from 2017 MO TRM | BP62: 85 | BQ62: 1376 | BR62: EFLHheat | BS62: The EFLH Cooling and Heating hours are based on a EnergyStar study that was normalized (based on HDD and CDD) to Kansas City. This was for both AC and HP units.
A63: Heating, Cooling & Home Comfort | B63: ASHP SEER 17 - Early Replacement | C63: 39.3 | D63: Single Family | E63: HVAC | G63: per ton | H63: =DA63+DE63/DM63-DI63*(1+CW63)^(-X63) -> 196.2703269 | I63: IL TRM v7 vol3 | J63: 64 | K63: =ROUND(((U63*AS63*(1/(AF63*(1-BY63))-1/(AB63*CC63*(1-CG63))))/1000)+((BQ63*AS63*(1/(BA63*(1-CK63))-1/(AW63*CO63*(1-CS63))))/1000),4) -> 2003.7332 | L63: Calculated Value | N63: 2.715085637 | O63: 0.72 | P63: IL TRM v7 vol3 | Q63: 70 | R63: =ROUND((AS63*(1/(BI63*(1-BY63))-1/(BE63*(1-CG63))))/1000*O63,4) -> 0.585 | S63: Calculated Value | U63: 738 | V63: EFLHcool, from 2017 MO TRM | W63: 85 | X63: 6 | Y63: IL TRM v7 vol3 | Z63: 64 | AA63: SEER | AB63: 18.34 | AC63: per PY2018 Metadata WHE | AE63: SEER | AF63: 9.12 | AG63: IL TRM v7 vol3 | AH63: 66 | AI63: =ROUND(((U63*AS63*(1/(AF63*(1-BY63))-1/(AB63*CC63*(1-CG63))))/1000)+((BQ63*AS63*(1/(BA63*(1-CK63))-1/(AW63*CO63*(1-CS63))))/1000),4) | AJ63: =ROUND((AS63*(1/(BI63*(1-BY63))-1/(BE63*(1-CG63))))/1000*O63,4) | AK63: IL TRM v7 vol3 | AL63: 65, 69 | AM63: 2020-01-01 | AS63: 12000 | AT63: Allows for Capacity input in Tons; converts tons to BTUs | AW63: 9.560606061 | AX63: HSPFee | AY63: per PY2018 Metadata WHE | BA63: 5.44 | BB63: HSPFbase | BC63: IL TRM v7 vol3 | BD63: 68 | BE63: =(-0.02*AB63^2)+(1.12*AB63) -> 13.813688 | BF63: EERee | BG63: Calculated per PY2018 Metadata WHE | BI63: 7.5 | BJ63: EERexist | BK63: IL TRM v7 vol3 | BL63: 70 | BM63: 738 | BN63: EFLHcool | BO63: EFLHcool, from 2017 MO TRM | BP63: 85 | BQ63: 1376 | BR63: EFLHheat | BS63: The EFLH Cooling and Heating hours are based on a EnergyStar study that was normalized (based on HDD and CDD) to Kansas City. This was for both AC and HP units. | BU63: 5.54 | BV63: HSPFexist | BW63: IL TRM v7 vol3 | BX63: 68 | BY63: 0.1 | BZ63: Derating_Cool_Base | CA63: IL TRM v7 vol3 | CB63: 67 | CC63: 1.011 | CD63: SEERadj | CE63: IL TRM v7 vol3 | CF63: 69 (example) | CG63: 0.1 | CH63: Derating_Cool_Eff | CI63: IL TRM v7 vol3 | CJ63: 67 | CK63: 0.1 | CL63: Derating_Heat_Base | CM63: IL TRM v7 vol3 | CN63: 68 | CO63: 1.001 | CP63: HSPFadj | CQ63: IL TRM v7 vol3 | CR63: 69 (example) | CS63: 0.1 | CT63: Derating_Heat_Eff | CU63: IL TRM v7 vol3 | CV63: 68 | CW63: 0.03 | CX63: Societal Discount Rate | CY63: Evergy Standard | DA63: 1381 | DB63: First Cost $/ton | DC63: IL TRM v7 vol3 | DD63: 64 | DE63: 303 | DF63: One-time per-system labor cost | DG63: IL TRM v7 vol3 | DH63: 64 | DI63: 1518 | DJ63: Deferred cost savings | DK63: IL TRM v7 vol3 | DL63: 65 | DM63: 3.5 | DN63: Assumed average system tons | DO63: Tracking Data
A64: Heating, Cooling & Home Comfort | B64: ASHP SEER 17 - Early Replacement (future) | C64: 40.3 | D64: Single Family | E64: HVAC | G64: per ton | H64: 0 | I64: IL TRM v7 vol3 | J64: 64 | K64: =ROUND(((U64*AS64*(1/(AF64*(1-BY64))-1/(AB64*CC64*(1-CG64))))/1000)+((BQ64*AS64*(1/(BA64*(1-CK64))-1/(AW64*CO64*(1-CS64))))/1000),4) -> 184.6019 | L64: Calculated Value | N64: 0.2501380759 | O64: 0.72 | P64: IL TRM v7 vol3 | Q64: 70 | R64: =ROUND((AS64*(1/(BI64*(1-BY64))-1/(BE64*(1-CG64))))/1000*O64,4) -> 0.1778 | S64: Calculated Value | U64: 738 | V64: EFLHcool, from 2017 MO TRM | W64: 85 | X64: 10 | Y64: IL TRM v7 vol3 | Z64: 64 | AA64: SEER | AB64: 18.34 | AC64: per PY2018 Metadata WHE | AE64: =BN64 -> SEERbase | AF64: =BM64 -> 14 | AG64: IL TRM v7 vol3 | AH64: 66 | AI64: =ROUND(((U64*AS64*(1/(AF64*(1-BY64))-1/(AB64*CC64*(1-CG64))))/1000)+((BQ64*AS64*(1/(BA64*(1-CK64))-1/(AW64*CO64*(1-CS64))))/1000),4) | AJ64: =ROUND((AS64*(1/(BI64*(1-BY64))-1/(BE64*(1-CG64))))/1000*O64,4) | AK64: IL TRM v7 vol3 | AL64: 65, 69 | AM64: 2020-01-01 | AS64: 12000 | AT64: Allows for Capacity input in Tons; converts tons to BTUs | AW64: 9.560606061 | AX64: HSPFee | AY64: per PY2018 Metadata WHE | BA64: 5.44 | BB64: HSPFexist | BC64: IL TRM v7 vol3 | BD64: 68 | BE64: =(-0.02*AB64^2)+(1.12*AB64) -> 13.813688 | BF64: EERee | BG64: Calculated per PY2018 Metadata WHE | BI64: 11 | BJ64: EERbase | BK64: IL TRM v7 vol3 | BL64: 70 | BM64: 14 | BN64: SEERbase | BO64: EFLHcool, from 2017 MO TRM | BP64: 85 | BQ64: =(-0.02*BM64^2)+(1.12*BM64) -> 11.76 | BR64: EERbase | BS64: Based on SEER base | BU64: 8.2 | BV64: HSPFbase | BW64: IL TRM v7 vol3 | BX64: 68 | BY64: 0.1 | BZ64: Derating_Cool_Base | CA64: IL TRM v7 vol3 | CB64: 67 | CC64: 1.011 | CD64: SEERadj | CE64: IL TRM v7 vol3 | CF64: 69 (example) | CG64: 0.1 | CH64: Derating_Cool_Eff | CI64: IL TRM v7 vol3 | CJ64: 67 | CK64: 0.1 | CL64: Derating_Heat_Base | CM64: IL TRM v7 vol3 | CN64: 68 | CO64: 1.001 | CP64: HSPFadj | CQ64: IL TRM v7 vol3 | CR64: 69 (example) | CS64: 0.1 | CT64: Derating_Heat_Eff | CU64: IL TRM v7 vol3 | CV64: 68 | CW64: 0.03 | CX64: Societal Discount Rate | CY64: Evergy Standard | DA64: 1381 | DB64: First Cost $/ton | DC64: IL TRM v7 vol3 | DD64: 64 | DE64: 303 | DF64: One-time per-system labor cost | DG64: IL TRM v7 vol3 | DH64: 64 | DI64: 1518 | DJ64: Deferred cost savings | DK64: IL TRM v7 vol3 | DL64: 65 | DM64: 3.5 | DN64: Assumed average system tons | DO64: Tracking Data
A65: Heating, Cooling & Home Comfort | B65: ASHP SEER 17 - Replace Electric Resistance Heat | C65: 41.3 | D65: Single Family | E65: HVAC | G65: per ton | H65: =724/3.5 -> 206.8571429 | I65: IL TRM v7 vol3 | J65: 64 | K65: =ROUND(((U65*AS65*(1/(AF65*(1-BY65))-1/(AB65*CC65*(1-CG65))))/1000)+((BQ65*AS65*(1/(BA65*(1-CK65))-1/(AW65*CO65*(1-CS65))))/1000),4) -> 503.9911 | L65: Calculated Value | N65: =R65 -> 0.2613 | O65: 0.72 | P65: IL TRM v7 vol3 | Q65: 65 | R65: =ROUND((AS65*(1/(BI65*(1-BY65))-1/(BE65*(1-CG65))))/1000*O65,4) -> 0.2613 | S65: Calculated Value | U65: 738 | V65: EFLHcool, from 2017 MO TRM | W65: 85 | X65: 16 | Y65: IL TRM v7 vol3 | Z65: 64 | AA65: SEERee | AB65: 18.27 | AC65: per PY2018 Metadata WHE | AE65: SEERbase | AF65: 14 | AG65: IL TRM v7 vol3 | AH65: 66 | AI65: =ROUND(((U65*AS65*(1/(AF65*(1-BY65))-1/(AB65*CC65*(1-CG65))))/1000)+((BQ65*AS65*(1/(BA65*(1-CK65))-1/(AW65*CO65*(1-CS65))))/1000),4) | AJ65: =ROUND((AS65*(1/(BI65*(1-BY65))-1/(BE65*(1-CG65))))/1000*O65,4) | AK65: IL TRM v7 vol3 | AL65: 65, 69 | AM65: 2020-01-01 | AS65: 12000 | AT65: Allows for Capacity input in Tons; converts tons to BTUs | AW65: 9.628571429 | AX65: HSPFee | AY65: per PY2018 Metadata WHE | BA65: 8.2 | BB65: HSPFbase | BC65: IL TRM v7 vol3 | BD65: 68 | BE65: 15.7 | BF65: EERee | BG65: Calculated per PY2018 Metadata WHE | BI65: 11 | BJ65: EERbase | BK65: IL TRM v7 vol3 | BL65: 70 | BM65: 738 | BN65: EFLHcool | BO65: EFLHcool, from 2017 MO TRM | BP65: 85 | BQ65: 1376 | BR65: EFLHheat | BS65: The EFLH Cooling and Heating hours are based on a EnergyStar study that was normalized (based on HDD and CDD) to Kansas City. This was for both AC and HP units. | BU65: 8.2 | BV65: HSPFbase | BW65: IL TRM v7 vol3 | BX65: 68 | BY65: 0.1 | BZ65: Derating_Cool_Base | CA65: IL TRM v7 vol3 | CB65: 67 | CC65: 1.011 | CD65: SEERadj | CE65: IL TRM v7 vol3 | CF65: 69 (example) | CG65: 0.1 | CH65: Derating_Cool_Eff | CI65: IL TRM v7 vol3 | CJ65: 67 | CK65: 0.1 | CL65: Derating_Heat_Base | CM65: IL TRM v7 vol3 | CN65: 68 | CO65: 1.001 | CP65: HSPFadj | CQ65: IL TRM v7 vol3 | CR65: 69 (example) | CS65: 0.1 | CT65: Derating_Heat_Eff | CU65: IL TRM v7 vol3 | CV65: 68
A66: Heating, Cooling & Home Comfort | B66: ASHP SEER 17 - Replace Electric Resistance Heat - Early Replacement | C66: 318.2 | D66: Single Family | E66: HVAC | G66: per ton | H66: =DA66+DE66/DM66-DI66*(1+CW66)^(-X66) -> 316.5560412 | I66: IL TRM v7 vol3 | J66: 64 | K66: =ROUND(((U66*AS66*(1/(AF66*(1-BY66))-1/(AB66*CC66*(1-CG66))))/1000)+((BQ66*AS66*(1/(BA66*(1-CK66))-1/(AW66*CO66*(1-CS66))))/1000),4) -> 3990.5555 | L66: Calculated Value | N66: =R66 -> 0.585 | O66: 0.72 | P66: IL TRM v7 vol3 | Q66: 65 | R66: =ROUND((AS66*(1/(BI66*(1-BY66))-1/(BE66*(1-CG66))))/1000*O66,4) -> 0.585 | S66: Calculated Value | U66: 738 | V66: EFLHcool, from 2017 MO TRM | W66: 85 | X66: 6 | Y66: IL TRM v7 vol3 | Z66: 64 | AA66: SEERee | AB66: 18.34 | AC66: per PY2018 Metadata WHE | AE66: SEERexist | AF66: 9.3 | AG66: IL TRM v7 vol3 | AH66: 66 | AI66: =ROUND(((U66*AS66*(1/(AF66*(1-BY66))-1/(AB66*CC66*(1-CG66))))/1000)+((BQ66*AS66*(1/(BA66*(1-CK66))-1/(AW66*CO66*(1-CS66))))/1000),4) | AJ66: =ROUND((AS66*(1/(BI66*(1-BY66))-1/(BE66*(1-CG66))))/1000*O66,4) | AK66: IL TRM v7 vol3 | AL66: 65, 69 | AM66: 2020-01-01 | AS66: 12000 | AT66: Allows for Capacity input in Tons; converts tons to BTUs | AW66: 9.560606061 | AX66: HSPFee | AY66: per PY2018 Metadata WHE | BA66: 3.41 | BB66: HSPFexist | BC66: IL TRM v7 vol3 | BD66: 68 | BE66: =(-0.02*AB66^2)+(1.12*AB66) -> 13.813688 | BF66: EERee | BG66: Calculated per PY2018 Metadata WHE | BI66: 7.5 | BJ66: EERexist | BK66: IL TRM v7 vol3 | BL66: 70 | BM66: 738 | BN66: EFLHcool | BO66: EFLHcool, from 2017 MO TRM | BP66: 85 | BQ66: 1376 | BR66: EFLHheat | BS66: The EFLH Cooling and Heating hours are based on a EnergyStar study that was normalized (based on HDD and CDD) to Kansas City. This was for both AC and HP units. | BU66: 3.41 | BV66: HSPFexist | BW66: IL TRM v7 vol3 | BX66: 68 | BY66: 0.1 | BZ66: Derating_Cool_Base | CA66: IL TRM v7 vol3 | CB66: 67 | CC66: 1.011 | CD66: SEERadj | CE66: IL TRM v7 vol3 | CF66: 69 (example) | CG66: 0.1 | CH66: Derating_Cool_Eff | CI66: IL TRM v7 vol3 | CJ66: 67 | CK66: 0.1 | CL66: Derating_Heat_Base | CM66: IL TRM v7 vol3 | CN66: 68 | CO66: 1.001 | CP66: HSPFadj | CQ66: IL TRM v7 vol3 | CR66: 69 (example) | CS66: 0.1 | CT66: Derating_Heat_Eff | CU66: IL TRM v7 vol3 | CV66: 68 | CW66: 0.03 | CX66: Societal Discount Rate | CY66: Evergy Standard | DA66: 1381 | DB66: First Cost $/ton | DC66: IL TRM v7 vol3 | DD66: 64 | DE66: 724 | DF66: One-time per-system labor cost | DG66: IL TRM v7 vol3 | DH66: 64 | DI66: 1518 | DJ66: Deferred cost savings | DK66: IL TRM v7 vol3 | DL66: 65 | DM66: 3.5 | DN66: Assumed average system tons | DO66: Tracking Data
A67: Heating, Cooling & Home Comfort | B67: ASHP SEER 17 - Replace Electric Resistance Heat - Early Replacement (future) | C67: 319.2 | D67: Single Family | E67: HVAC | G67: per ton | H67: 0 | I67: IL TRM v7 vol3 | J67: 65 | K67: =ROUND(((U67*AS67*(1/(AF67*(1-BY67))-1/(AB67*CC67*(1-CG67))))/1000)+((BQ67*AS67*(1/(BA67*(1-CK67))-1/(AW67*CO67*(1-CS67))))/1000),4) -> 492.4923 | L67: Calculated Value | N67: =R67 -> 0.1778 | O67: 0.72 | P67: IL TRM v7 vol3 | Q67: 65 | R67: =ROUND((AS67*(1/(BI67*(1-BY67))-1/(BE67*(1-CG67))))/1000*O67,4) -> 0.1778 | S67: Calculated Value | U67: 738 | V67: EFLHcool, from 2017 MO TRM | W67: 85 | X67: 10 | Y67: IL TRM v7 vol3 | Z67: 64 | AA67: SEERee | AB67: 18.34 | AC67: per PY2018 Metadata WHE | AE67: SEERbase | AF67: 14 | AG67: IL TRM v7 vol3 | AH67: 67 | AI67: =ROUND(((U67*AS67*(1/(AF67*(1-BY67))-1/(AB67*CC67*(1-CG67))))/1000)+((BQ67*AS67*(1/(BA67*(1-CK67))-1/(AW67*CO67*(1-CS67))))/1000),4) | AJ67: =ROUND((AS67*(1/(BI67*(1-BY67))-1/(BE67*(1-CG67))))/1000*O67,4) | AK67: IL TRM v7 vol3 | AL67: 65, 69 | AM67: 2020-01-01 | AS67: 12000 | AT67: Allows for Capacity input in Tons; converts tons to BTUs | AW67: 9.560606061 | AX67: HSPFee | AY67: per PY2018 Metadata WHE | BA67: 8.2 | BB67: HSPFbase | BC67: IL TRM v7 vol3 | BD67: 68 | BE67: =(-0.02*AB67^2)+(1.12*AB67) -> 13.813688 | BF67: EERee | BG67: Calculated per PY2018 Metadata WHE | BI67: 11 | BJ67: EERbase | BK67: IL TRM v7 vol3 | BL67: 70 | BM67: 738 | BN67: EFLHcool | BO67: EFLHcool, from 2017 MO TRM | BP67: 85 | BQ67: 1376 | BR67: EFLHheat | BS67: The EFLH Cooling and Heating hours are based on a EnergyStar study that was normalized (based on HDD and CDD) to Kansas City. This was for both AC and HP units. | BU67: 8.2 | BV67: HSPFbase | BW67: IL TRM v7 vol3 | BX67: 68 | BY67: 0.1 | BZ67: Derating_Cool_Base | CA67: IL TRM v7 vol3 | CB67: 67 | CC67: 1.011 | CD67: SEERadj | CE67: IL TRM v7 vol3 | CF67: 69 (example) | CG67: 0.1 | CH67: Derating_Cool_Eff | CI67: IL TRM v7 vol3 | CJ67: 67 | CK67: 0.1 | CL67: Derating_Heat_Base | CM67: IL TRM v7 vol3 | CN67: 68 | CO67: 1.001 | CP67: HSPFadj | CQ67: IL TRM v7 vol3 | CR67: 69 (example) | CS67: 0.1 | CT67: Derating_Heat_Eff | CU67: IL TRM v7 vol3 | CV67: 68 | CW67: 0.03 | CX67: Societal Discount Rate | CY67: Evergy Standard | DA67: 1381 | DB67: First Cost $/ton | DC67: IL TRM v7 vol3 | DD67: 64 | DE67: 724 | DF67: One-time per-system labor cost | DG67: IL TRM v7 vol3 | DH67: 64 | DI67: 1518 | DJ67: Deferred cost savings | DK67: IL TRM v7 vol3 | DL67: 65 | DM67: 3.5 | DN67: Assumed average system tons | DO67: Tracking Data
A68: Heating, Cooling & Home Comfort | B68: ASHP Dual-Speed Compressor | C68: 397 | D68: Single Family | E68: HVAC | G68: per ton | H68: =(1381*(AW68/12000)+438)/CK68 -> 1603.711864 | I68: IL TRM v6 vol3 | J68: 61 | K68: =ROUND(((AS68*AW68*(1/BA68-1/BE68))/1000/CK68)+((BI68*BM68*(1/BQ68-1/BU68))/1000/CO68),4) -> 275.5758 | L68: Calculated Value | N68: =R68/O68 -> 0.09388888889 | O68: 0.72 | P68: Calculated Value | R68: =ROUND((AW68*(1/BY68-1/CC68))/1000*CG68/CK68,4) -> 0.0676 | S68: Calculated Value | X68: 18 | Y68: IL TRM v6 vol3 | Z68: 61 | AA68: SEER | AB68: 16 | AC68: Goodman GSZC16 Indoor Units: CA*F3137*6A*+MBVC1200**-1A*+TX, G*VC80603B*C* | AE68: SEER | AF68: 14 | AG68: IL TRM v6 vol3 | AH68: 63 | AI68: =ROUND(((AS68*AW68*(1/BA68-1/BE68))/1000/CK68)+((BI68*BM68*(1/BQ68-1/BU68))/1000/CO68),4) | AJ68: =ROUND((AW68*(1/BY68-1/CC68))/1000*CG68/CK68,4) | AK68: IL TRM v6 vol3 | AL68: 62, 65 | AM68: 2020-01-01 | AS68: 1035 | AT68: FLH_cooling | AU68: IL TRM v6 vol3 | AV68: 63 | AW68: 23600 | AX68: Capacity_cooling | AY68: Goodman GSZC16 Indoor Units: CA*F3137*6A*+MBVC1200**-1A*+TX, G*VC80603B*C* | BA68: 14 | BB68: SEER_base | BC68: IL TRM v6 vol3 | BD68: 63 | BE68: 16 | BF68: SEER_ee | BG68: Goodman GSZC16 Indoor Units: CA*F3137*6A*+MBVC1200**-1A*+TX, G*VC80603B*C* | BI68: 1266 | BJ68: FLH_heat | BK68: IL TRM v6 vol3 | BL68: 64 | BM68: 22800 | BN68: Capacity_heating | BO68: Goodman GSZC16 Indoor Units: CA*F3137*6A*+MBVC1200**-1A*+TX, G*VC80603B*C* | BQ68: 8.2 | BR68: HSPF_base | BS68: IL TRM v6 vol3 | BT68: 64 | BU68: 9 | BV68: HSPF_ee | BW68: Goodman GSZC16 Indoor Units: CA*F3137*6A*+MBVC1200**-1A*+TX, G*VC80603B*C* | BY68: 11.8 | BZ68: EER_base | CA68: IL TRM v6 vol3 | CB68: 66 | CC68: 13 | CD68: EER_ee | CE68: Goodman GSZC16 Indoor Units: CA*F3137*6A*+MBVC1200**-1A*+TX, G*VC80603B*C* | CG68: 0.72 | CH68: CF | CI68: IL TRM v6 vol3 | CJ68: 66 | CK68: =AW68/12000 -> 1.966666667 | CL68: Cooling Capacity Tons | CM68: Goodman GSZC16 Indoor Units: CA*F3137*6A*+MBVC1200**-1A*+TX, G*VC80603B*C* | CO68: =BM68/12000 -> 1.9 | CP68: Heating Capacity Tons | CQ68: Goodman GSZC16 Indoor Units: CA*F3137*6A*+MBVC1200**-1A*+TX, G*VC80603B*C*
A69: Heating, Cooling & Home Comfort | B69: ASHP Variable-Speed Compressor | C69: 398 | D69: Single Family | E69: HVAC | G69: per ton | H69: =(1381*(AW69/12000)+724)/CK69 -> 1752.282051 | I69: IL TRM v6 vol3 | J69: 61 | K69: =ROUND(((AS69*AW69*(1/BA69-1/BE69))/1000/CK69)+((BI69*BM69*(1/BQ69-1/BU69))/1000/CO69),4) -> 629.1972 | L69: Calculated Value | N69: =R69/O69 -> 0.09388888889 | O69: 0.72 | P69: Calculated Value | R69: =ROUND((AW69*(1/BY69-1/CC69))/1000*CG69/CK69,4) -> 0.0676 | S69: Calculated Value | X69: 18 | Y69: IL TRM v6 vol3 | Z69: 61 | AA69: SEER | AB69: 21 | AC69: Daikin DZ20VC Inddor Units: CA*F3642*6D*+MBVC1200**-1A*+TXV | AE69: SEER | AF69: 14 | AG69: IL TRM v6 vol3 | AH69: 63 | AI69: =ROUND(((AS69*AW69*(1/BA69-1/BE69))/1000/CK69)+((BI69*BM69*(1/BQ69-1/BU69))/1000/CO69),4) | AJ69: =ROUND((AW69*(1/BY69-1/CC69))/1000*CG69/CK69,4) | AK69: IL TRM v6 vol3 | AL69: 62, 65 | AM69: 2020-01-01 | AS69: 1035 | AT69: FLH_cooling | AU69: IL TRM v6 vol3 | AV69: 63 | AW69: 23400 | AX69: Capacity_cooling | AY69: Daikin DZ20VC Inddor Units: CA*F3642*6D*+MBVC1200**-1A*+TXV | BA69: 14 | BB69: SEER_base | BC69: IL TRM v6 vol3 | BD69: 63 | BE69: 21 | BF69: SEER_ee | BG69: Daikin DZ20VC Inddor Units: CA*F3642*6D*+MBVC1200**-1A*+TXV | BI69: 1266 | BJ69: FLH_heat | BK69: IL TRM v6 vol3 | BL69: 64 | BM69: 23600 | BN69: Capacity_heating | BO69: Daikin DZ20VC Inddor Units: CA*F3642*6D*+MBVC1200**-1A*+TXV | BQ69: 8.2 | BR69: HSPF_base | BS69: IL TRM v6 vol3 | BT69: 64 | BU69: 10 | BV69: HSPF_ee | BW69: Daikin DZ20VC Inddor Units: CA*F3642*6D*+MBVC1200**-1A*+TXV | BY69: 11.8 | BZ69: EER_base | CA69: IL TRM v6 vol3 | CB69: 66 | CC69: 13 | CD69: EER_ee | CE69: Daikin DZ20VC Inddor Units: CA*F3642*6D*+MBVC1200**-1A*+TXV | CG69: 0.72 | CH69: CF | CI69: IL TRM v6 vol3 | CJ69: 66 | CK69: =AW69/12000 -> 1.95 | CL69: Cooling Capacity Tons | CM69: Daikin DZ20VC Inddor Units: CA*F3642*6D*+MBVC1200**-1A*+TXV | CO69: =BM69/12000 -> 1.966666667 | CP69: Heating Capacity Tons | CQ69: Daikin DZ20VC Inddor Units: CA*F3642*6D*+MBVC1200**-1A*+TXV
A70: Heating, Cooling & Home Comfort | B70: Furnace Filter Alarm | C70: 234.3 | D70: Single Family | E70: HVAC | F70: Kits | G70: per unit | H70: 2.8 | I70: Program Tracking Data | K70: =ROUND((AS70*BI70*AW70*BA70)+(AS70*BE70*AW70*BA70),4) -> 75.1527 | L70: Calculated Value | N70: =K70/U70 -> 0.04551950333 | O70: 0.647 | P70: PA TRM 2016 | Q70: 74 | R70: =ROUND(((AS70*BE70*AW70*BA70)/BE70)*O70,4) -> 0.023 | S70: Calculated Value | U70: 1651 | V70: MO TRM 2017 vol 3 | W70: 85 | X70: 14 | Y70: PA TRM 2016 | Z70: 73 | AA70: Furnace Filter Alarm | AE70: No Filter | AI70: =ROUND((AS70*BI70*AW70*BA70)+(AS70*BE70*AW70*BA70),4) | AJ70: =ROUND(((AS70*BE70*AW70*BA70)/BE70)*O70,4) | AK70: PA TRM 2016 | AL70: 73 | AM70: 2020-01-01 | AS70: 0.5 | AT70: Average motor full load electric demand | AU70: PA TRM 2016 | AV70: 74 | AW70: 0.15 | AX70: Efficiency Improvement | AY70: PA TRM 2016 | AZ70: 74 | BA70: 0.474 | BB70: ISR | BC70: PA TRM 2016 | BD70: 74 | BE70: 738 | BF70: EFLHcool | BG70: MO TRM | BH70: 85 | BI70: 1376 | BJ70: EFLHheat | BK70: The EFLH Cooling and Heating hours are based on a EnergyStar study that was normalized (based on HDD and CDD) to Kansas City. This was for both AC and HP units.
A71: Heating, Cooling & Home Comfort | B71: Indoor Coil Cleaning_SF:CAC | C71: 262.2 | D71: Single Family | E71: HVAC | G71: per measure | H71: 35 | I71: WI TRM 2017 | J71: 143 | K71: =ROUND(AW71*BA71/1000*(1/(BI71*BM71)-1/BI71),4) -> 148.1408 | L71: Calculated Value | N71: =BA71/1000*(1/(BE71*BM71)-1/BE71) -> 0.2855010263 | O71: 0.9 | P71: WI TRM 2017 | Q71: 144 | R71: =ROUND(N71*O71,4) -> 0.257 | S71: Calculated Value | X71: 3 | Y71: WI TRM 2017 | Z71: 144 | AA71: Coil cleaning of packaged air conditioning unit. | AC71: WI TRM 2017 | AD71: 143 | AE71: The baseline condition is an AC system with fouled condenser coils. | AG71: WI TRM 2017 | AH71: 143 | AI71: =ROUND(AW71*BA71/1000*(1/(BI71*BM71)-1/BI71),4) | AJ71: =ROUND(N71*O71,4) | AK71: WI TRM 2017 | AL71: 143, 144 | AM71: 2020-01-01 | AW71: 564 | AX71: Equivalent Full Load Hours for Mechanical Cooling | AY71: IL TRM v6 vol3 | AZ71: 127 | BA71: 36000 | BB71: Unit Cooling Capacity in Btu/hour | BC71: Installed Equipment; actual value | BE71: =-0.02*BI71^2+1.12*BI71 -> 9.2 | BF71: EER | BG71: Installed Equipment; actual nameplate EER | BI71: 10 | BJ71: SEER | BK71: Installed Equipment; actual nameplate EER | BM71: 0.932 | BN71: Condenser coil fouling efficiency degradation factor | BO71: WI TRM 2017 | BP71: 144
A72: Heating, Cooling & Home Comfort | B72: Indoor Coil Cleaning_SF:ASHP | C72: 263.2 | D72: Single Family | E72: HVAC | G72: per measure | H72: 35 | I72: WI TRM 2017 | J72: 143 | K72: =ROUND(AW72*BA72/1000*(1/(BI72*BM72)-1/BI72),4) -> 148.1408 | L72: Calculated Value | N72: =BA72/1000*(1/(BE72*BM72)-1/BE72) -> 0.2855010263 | O72: 0.9 | P72: WI TRM 2017 | Q72: 144 | R72: =ROUND(N72*O72,4) -> 0.257 | S72: Calculated Value | X72: 3 | Y72: WI TRM 2017 | Z72: 144 | AA72: Coil cleaning of packaged air conditioning unit. | AC72: WI TRM 2017 | AD72: 143 | AE72: The baseline condition is an AC system with fouled condenser coils. | AG72: WI TRM 2017 | AH72: 143 | AI72: =ROUND(AW72*BA72/1000*(1/(BI72*BM72)-1/BI72),4) | AJ72: =ROUND(N72*O72,4) | AK72: WI TRM 2017 | AL72: 143, 144 | AM72: 2020-01-01 | AW72: 564 | AX72: Equivalent Full Load Hours for Mechanical Cooling | AY72: IL TRM v6 vol3 | AZ72: 127 | BA72: 36000 | BB72: Unit Cooling Capacity in Btu/hour | BC72: Installed Equipment; actual value | BE72: =-0.02*BI72^2+1.12*BI72 -> 9.2 | BF72: EER | BG72: Installed Equipment; actual nameplate EER | BI72: 10 | BJ72: SEER | BK72: Installed Equipment; actual nameplate EER | BM72: 0.932 | BN72: Condenser coil fouling efficiency degradation factor | BO72: WI TRM 2017 | BP72: 144
A73: Heating, Cooling & Home Comfort | B73: Outdoor Coil Cleaning_SF:CAC | C73: 264.2 | D73: Single Family | E73: HVAC | G73: per measure | H73: 35 | I73: WI TRM 2017 | J73: 143 | K73: =ROUND(AW73*BA73/1000*(1/(BI73*BM73)-1/BI73),4) -> 148.1408 | L73: Calculated Value | N73: =BA73/1000*(1/(BE73*BM73)-1/BE73) -> 0.2855010263 | O73: 0.9 | P73: WI TRM 2017 | Q73: 144 | R73: =ROUND(N73*O73,4) -> 0.257 | S73: Calculated Value | X73: 3 | Y73: WI TRM 2017 | Z73: 144 | AA73: Coil cleaning of packaged air conditioning unit. | AC73: WI TRM 2017 | AD73: 143 | AE73: The baseline condition is an AC system with fouled condenser coils. | AG73: WI TRM 2017 | AH73: 143 | AI73: =cellformula(K73) -> =ROUND(AW73*BA73/1000*(1/(BI73*BM73)-1/BI73),4) | AJ73: =cellformula(R73) -> =ROUND(N73*O73,4) | AK73: WI TRM 2017 | AL73: 143, 144 | AM73: 2020-01-01 | AW73: 564 | AX73: Equivalent Full Load Hours for Mechanical Cooling | AY73: IL TRM v6 vol3 | AZ73: 127 | BA73: 36000 | BB73: Unit Cooling Capacity in Btu/hour | BC73: Installed Equipment; actual value | BE73: =-0.02*BI73^2+1.12*BI73 -> 9.2 | BF73: EER | BG73: Installed Equipment; actual nameplate EER | BI73: 10 | BJ73: SEER | BK73: Installed Equipment; actual nameplate EER | BM73: 0.932 | BN73: Condenser coil fouling efficiency degradation factor | BO73: WI TRM 2017 | BP73: 144
A74: Heating, Cooling & Home Comfort | B74: Outdoor Coil Cleaning_SF:ASHP | C74: 265.2 | D74: Single Family | E74: HVAC | G74: per measure | H74: 35 | I74: WI TRM 2017 | J74: 143 | K74: =ROUND(AW74*BA74/1000*(1/(BI74*BM74)-1/BI74),4) -> 148.1408 | L74: Calculated Value | N74: =BA74/1000*(1/(BE74*BM74)-1/BE74) -> 0.2855010263 | O74: 0.9 | P74: WI TRM 2017 | Q74: 144 | R74: =ROUND(N74*O74,4) -> 0.257 | S74: Calculated Value | X74: 3 | Y74: WI TRM 2017 | Z74: 144 | AA74: Coil cleaning of packaged air conditioning unit. | AC74: WI TRM 2017 | AD74: 143 | AE74: The baseline condition is an AC system with fouled condenser coils. | AG74: WI TRM 2017 | AH74: 143 | AI74: =ROUND(AW74*BA74/1000*(1/(BI74*BM74)-1/BI74),4) | AJ74: =ROUND(N74*O74,4) | AK74: WI TRM 2017 | AL74: 143, 144 | AM74: 2020-01-01 | AW74: 564 | AX74: Equivalent Full Load Hours for Mechanical Cooling | AY74: IL TRM v6 vol3 | AZ74: 127 | BA74: 36000 | BB74: Unit Cooling Capacity in Btu/hour | BC74: Installed Equipment; actual value | BE74: =-0.02*BI74^2+1.12*BI74 -> 9.2 | BF74: EER | BG74: Installed Equipment; actual nameplate EER | BI74: 10 | BJ74: SEER | BK74: Installed Equipment; actual nameplate EER | BM74: 0.932 | BN74: Condenser coil fouling efficiency degradation factor | BO74: WI TRM 2017 | BP74: 144
A75: Heating, Cooling & Home Comfort | B75: Refrigerant Charge Adjustment (RCA)_SF: CAC | C75: 266.2 | D75: Single Family | E75: HVAC | G75: per measure | H75: 175 | I75: IL TRM v5 vol3 | J75: 124 | K75: =ROUND((BM75*BA75*(1/BE75))/1000*AS75,4) -> 44.28 | L75: Calculated Value | N75: =K75/BM75 -> 0.06 | O75: 0.68 | P75: Calculated Value | R75: =ROUND(BA75*(1/BI75)/1000*AW75*O75,4) -> 0.0177 | S75: Calculated Value | X75: 2 | Y75: IL TRM v5 vol3 | Z75: 124 | AA75: Sub-measure of HVAC Maintenance and Tune-up | AC75: IL TRM v5 vol3 | AD75: 124 | AE75: The baseline condition is an AC system with incorrect refrigerant charge. | AG75: IL TRM v5 vol3 | AH75: 124 | AI75: =ROUND((BM75*BA75*(1/BE75))/1000*AS75,4) | AJ75: =ROUND(BA75*(1/BI75)/1000*AW75*O75,4) | AK75: IL TRM v5 vol3 | AL75: 125, 127 | AM75: 2020-01-01 | AS75: 0.05 | AT75: MFe | AU75: IL TRM v5 vol3 | AV75: 125 | AW75: 0.02 | AX75: MFd | AY75: IL TRM v5 vol3 | AZ75: 127 | BA75: 12000 | BB75: Allows for Capacity input in Tons; converts tons to BTUs | BE75: 10 | BF75: SEERCAC | BG75: IL TRM v5 vol3 | BH75: 126 | BI75: 9.2 | BJ75: EER | BK75: IL TRM v5 vol3 | BL75: Calculated Value | BM75: 738 | BN75: EFLHcool | BO75: The EFLH Cooling and Heating hours are based on a EnergyStar study that was normalized (based on HDD and CDD) to Kansas City. This was for both AC and HP units. | BQ75: 1376 | BR75: EFLHheat | BS75: The EFLH Cooling and Heating hours are based on a EnergyStar study that was normalized (based on HDD and CDD) to Kansas City. This was for both AC and HP units.
A76: Heating, Cooling & Home Comfort | B76: Refrigerant Charge Adjustment (RCA)_SF: ASHP | C76: 267.2 | D76: Single Family | E76: HVAC | G76: per measure | H76: 175 | I76: IL TRM v5 vol3 | J76: 124 | K76: =ROUND((BQ76*BA76*(1/BE76))/1000*AS76+(BU76*BA76*(1/BM76))/1000*AS76,4) -> 165.6918 | L76: Calculated Value | N76: =K76/BQ76 -> 0.2245146341 | O76: 0.72 | P76: Calculated Value | R76: =ROUND(BA76*(1/BI76)/1000*AW76*O76,4) -> 0.0188 | S76: Calculated Value | X76: 2 | Y76: IL TRM v5 vol3 | Z76: 124 | AA76: Sub-measure of HVAC Maintenance and Tune-up | AC76: IL TRM v5 vol3 | AD76: 124 | AE76: The baseline condition is a heat pump system with incorrect refrigerant charge. | AG76: IL TRM v5 vol3 | AH76: 124 | AI76: =ROUND((BQ76*BA76*(1/BE76))/1000*AS76+(BU76*BA76*(1/BM76))/1000*AS76,4) | AJ76: =ROUND(BA76*(1/BI76)/1000*AW76*O76,4) | AK76: IL TRM v5 vol3 | AL76: 125, 127 | AM76: 2020-01-01 | AS76: 0.05 | AT76: MFe | AU76: IL TRM v5 vol3 | AV76: 125 | AW76: 0.02 | AX76: MFd | AY76: IL TRM v5 vol3 | AZ76: 127 | BA76: 12000 | BB76: Allows for Capacity input in Tons; converts tons to BTUs | BE76: 10 | BF76: SEERASHP | BG76: IL TRM v5 vol3 | BH76: 126 | BI76: 9.2 | BJ76: EER | BK76: IL TRM v5 vol3 | BL76: Calculated Value | BM76: 6.8 | BN76: HSPFASHP | BO76: IL TRM v5 vol3 | BP76: 126 | BQ76: 738 | BR76: EFLHcool | BS76: The EFLH Cooling and Heating hours are based on a EnergyStar study that was normalized (based on HDD and CDD) to Kansas City. This was for both AC and HP units. | BU76: 1376 | BV76: EFLHheat | BW76: The EFLH Cooling and Heating hours are based on a EnergyStar study that was normalized (based on HDD and CDD) to Kansas City. This was for both AC and HP units.
A77: Heating, Cooling & Home Comfort | B77: HVAC Maintenance and Tune-up_SF: CAC | C77: 238.2 | D77: Single Family | E77: HVAC | G77: per measure | H77: 175 | I77: IL TRM v7 vol3 | J77: 127 | K77: =AS77*BE77*(1/AW77)/1000*BA77 -> 44.28 | L77: Calculated Value | N77: 0.0165 | O77: 0.68 | P77: IL TRM v7 vol3 | Q77: 127 | R77: =AS77*(1/BI77)/1000*BM77*O77 -> 0.01773913043 | S77: Calculated Value | U77: 738 | V77: EFLHcool, from 2017 MO TRM | W77: 85 | X77: 2 | Y77: IL TRM v7 vol3 | Z77: 127 | AA77: Maintenance and Tune-up on CAC unit | AE77: AC unit that has not been serviced for at least 3 years | AG77: IL TRM v7 vol3 | AH77: 127 | AI77: =AS77*BE77*(1/AW77)/1000*BA77 | AJ77: =AS77*(1/BI77)/1000*BM77*O77 | AK77: IL TRM v7 vol3 | AL77: 129 | AM77: 2020-01-01 | AS77: 12000 | AT77: Cooling capacity (1 ton) | AU77: IL TRM v7 vol3 | AV77: 128 | AW77: 10 | AX77: SEERcac | AY77: IL TRM v7 vol3 | AZ77: 128 | BA77: 0.05 | BB77: Maintenance Savings Factor | BC77: IL TRM v7 vol3 | BD77: 128 | BE77: 738 | BF77: EFLHcool, from 2017 MO TRM | BG77: 85 | BH77: 128 | BI77: =-0.02*AW77^2+1.12*AW77 -> 9.2 | BJ77: EER - calculated based on SEER | BK77: IL TRM v7 vol3 | BL77: 129 | BM77: 0.02 | BN77: Maintenance demand savings factor | BO77: IL TRM v7 vol3 | BP77: 130
A78: Heating, Cooling & Home Comfort | B78: GSHP - Early Replacement GSHP_SF: HVAC, replace ASHP | C78: 239.3 | D78: Single Family | E78: HVAC | G78: per unit | H78: 4859 | I78: IL TRM v7 vol3 | J78: 110 | K78: =ROUND(((BY78*AS78*(1/AF78)-(1/AB78))/1000)+((CC78*AS78*(1/AW78)-(1/(BA78*3.412)))/1000)+((BE78*BI78*(1/BM78)*BQ78)/1000),4) -> 6211.8058 | L78: Calculated Value | N78: =K78/U78 -> 8.41708103 | O78: 0.72 | P78: IL TRM v7 vol3 | Q78: 111 | R78: =ROUND(((AS78*(1/BU78)-(1/AB78))/1000)*O78,4) -> 1.0105 | S78: Calculated Value | U78: 738 | V78: EFLHcool, from 2017 MO TRM | W78: 85 | X78: 18 | Y78: IL TRM v7 vol3 | Z78: 110 | AA78: Part Load EER Efficiency of efficient GSHP unit | AB78: 23 | AC78: IL TRM v7 vol3 | AE78: SEER Efficiency of existing cooling unit = Actual, if available | AF78: 8.55 | AG78: IL TRM v7 vol3 | AH78: 113 | AI78: =ROUND(((BY78*AS78*(1/AF78)-(1/AB78))/1000)+((CC78*AS78*(1/AW78)-(1/(BA78*3.412)))/1000)+((BE78*BI78*(1/BM78)*BQ78)/1000),4) | AJ78: =ROUND(((AS78*(1/BU78)-(1/AB78))/1000)*O78,4) | AK78: IL TRM v7 vol3 | AL78: 111 | AM78: 2020-01-01 | AS78: 12000 | AT78: Allows for Capacity input in Tons; converts tons to BTUs | AW78: 5.44 | AX78: HSPFexist = Heating System Performance Factor of existing heating system 5.44 for replacing ASHP 3.41 for replacing Electric Resistance Heat | AY78: IL TRM v7 vol3 | AZ78: 114 | BA78: 4.5 | BB78: COPpl = Part Load Coefficient of Performance, Actual installed value | BC78: This example value is the mean of values listed in ENERGY STAR criteria here: https://www.energystar.gov/index.cfm?c=most_efficient.me_geothermal_heat_pumps , https://data.energystar.gov/Active-Specifications/ENERGY-STAR-Most-Efficient-Geothermal-Heat-Pumps/4c82-7ysy . Ideally this value would come from the specs of the actual unit installed. | BD78: 116 | BE78: 1 | BF78: ElecDHW: = 1 if HW system is electric = 0 if HW system is not electric | BG78: IL TRM v7 vol3 | BH78: 114 | BI78: 0.44 | BJ78: %DHWdisplaced = Percentage of total DHW load the GSHP will provide. = Actual, if known = 0% if no desuperheater installed = 44% if desuperheater installed and actual is unknown | BK78: IL TRM v7 vol3 | BL78: 114 | BM78: 2.0005 | BN78: Efelec = Energy Factor of electric WH. = Actual, if known = 0.96 – (0.0003 * rated volume in gallons) for 55+ gallon DHW = 2.057 – (0.00113 * rated volume in gallons) for < 55 gallon DHW | BO78: IL TRM v7 vol3 | BP78: 115 | BQ78: 9732988.447 | BR78: GSHP Coefficient = GPD * Household * 365.25 * γWater * (Tout - Tin) | BS78: IL TRM v7 vol3 | BT78: 115 | BU78: 8.55 | BV78: Energy Efficiency Ratio of existing cooling unit = Actual, if available = 8.55 for replacing ASHP = 8.15 for replacing Central AC | BW78: IL TRM v7 vol3 | BX78: 116 | BY78: 738 | BZ78: EFLHcool | CA78: EFLHcool, from 2017 MO TRM | CB78: 85 | CC78: 1376 | CD78: EFLHheat | CE78: The EFLH Cooling and Heating hours are based on a EnergyStar study that was normalized (based on HDD and CDD) to Kansas City. This was for both AC and HP units.
A79: Heating, Cooling & Home Comfort | B79: GSHP - Replace at Fail GSHP_SF: HVAC | C79: 240.3 | D79: Single Family | E79: HVAC | G79: per unit | H79: 3200 | I79: IL TRM v7 vol3 | J79: 110 | K79: 4959.4716 | L79: Calculated Value | N79: 6.72015122 | O79: 0.72 | P79: IL TRM v7 vol3 | Q79: 111 | R79: 0.7322 | S79: Calculated Value | U79: 738 | V79: EFLHcool, from 2017 MO TRM | W79: 85 | X79: 18 | Y79: IL TRM v7 vol3 | Z79: 110 | AA79: Part Load EER Efficiency of efficient GSHP unit | AB79: 23 | AC79: IL TRM v7 vol3 | AE79: GSHP replacing Failed GSHP – 23 EER minimum (EER) | AF79: 11 | AG79: IL TRM v7 vol3 | AH79: 113 | AI79: =ROUND(((BY79*AS79*(1/AF79)-(1/AB79))/1000)+((CC79*AS79*(1/AW79)-(1/(BA79*3.412)))/1000)+((BE79*BI79*(1/BM79)*BQ79)/1000),4) | AJ79: =ROUND(((AS79*(1/BU79)-(1/AB79))/1000)*O79,4) | AK79: IL TRM v7 vol3 | AL79: 111 | AM79: 2020-01-01 | AS79: 12000 | AT79: Allows for Capacity input in Tons; converts tons to BTUs | AW79: 8.2 | AX79: HSPFbase = Heating System Performance Factor of new replacement baseline heating system 8.2 for replacing ASHP 3.41 for replacing Electric Resistance Heat | AY79: IL TRM v7 vol3 | AZ79: 114 | BA79: 4.5 | BB79: COPpl = Part Load Coefficient of Performance, Actual installed value | BC79: This example value is the mean of values listed in ENERGY STAR criteria here: https://www.energystar.gov/index.cfm?c=most_efficient.me_geothermal_heat_pumps , https://data.energystar.gov/Active-Specifications/ENERGY-STAR-Most-Efficient-Geothermal-Heat-Pumps/4c82-7ysy . Ideally this value would come from the specs of the actual unit installed. | BD79: 116 | BE79: 1 | BF79: ElecDHW: = 1 if HW system is electric = 0 if HW system is not electric | BG79: IL TRM Version 7 Volume 5 | BH79: 114 | BI79: 0.44 | BJ79: %DHWdisplaced = Percentage of total DHW load the GSHP will provide. = Actual, if known = 0% if no desuperheater installed = 44% if desuperheater installed and actual is unknown | BK79: IL TRM Version 7 Volume 5 | BL79: 114 | BM79: 2.0005 | BN79: Efelec = Energy Factor of electric WH. = Actual, if known = 0.96 – (0.0003 * rated volume in gallons) for 55+ gallon DHW = 2.057 – (0.00113 * rated volume in gallons) for < 55 gallon DHW | BO79: IL TRM Version 7 Volume 5 | BP79: 115 | BQ79: 9732988.447 | BR79: GSHP Coefficient = GPD * Household * 365.25 * γWater * (Tout - Tin) | BS79: IL TRM v7 vol3 | BT79: 115 | BU79: 11.8 | BV79: EER Efficiency of new replacement ASHP | BW79: IL TRM v7 vol3 | BX79: 116 | BY79: 738 | BZ79: EFLHcool | CA79: EFLHcool, from 2017 MO TRM | CB79: 85 | CC79: 1376 | CD79: EFLHheat | CE79: The EFLH Cooling and Heating hours are based on a EnergyStar study that was normalized (based on HDD and CDD) to Kansas City. This was for both AC and HP units.
A80: Heating, Cooling & Home Comfort | B80: GSHP - AC + Early Replacement Electric Resistance Furnace_SF: HVAC | C80: 241.3 | D80: Single Family | E80: HVAC | G80: per unit | H80: 5250 | I80: IL TRM v7 vol3 | J80: 110 | K80: 8069.5767 | L80: Calculated Value | N80: 10.93438577 | O80: 0.72 | P80: IL TRM v7 vol3 | Q80: 111 | R80: 1.0601 | S80: Calculated Value | U80: 738 | V80: EFLHcool, from 2017 MO TRM | W80: 85 | X80: 18 | Y80: IL TRM v7 vol3 | Z80: 110 | AA80: Part Load EER Efficiency of efficient GSHP unit | AB80: 23 | AC80: IL TRM v7 vol3 | AE80: SEER Efficiency of existing cooling unit = Actual, if available | AF80: 8.15 | AG80: IL TRM v7 vol3 | AH80: 113 | AI80: =ROUND(((BY80*AS80*(1/AF80)-(1/AB80))/1000)+((CC80*AS80*(1/AW80)-(1/(BA80*3.412)))/1000)+((BE80*BI80*(1/BM80)*BQ80)/1000),4) | AJ80: =ROUND(((AS80*(1/BU80)-(1/AB80))/1000)*O80,4) | AK80: IL TRM v7 vol3 | AL80: 111 | AM80: 2020-01-01 | AS80: 12000 | AT80: Allows for Capacity input in Tons; converts tons to BTUs | AW80: 3.41 | AX80: HSPFexist = Heating System Performance Factor of existing heating system 5.44 for replacing ASHP 3.41 for replacing Electric Resistance Heat | AY80: IL TRM v7 vol3 | AZ80: 114 | BA80: 4.5 | BB80: COPpl = Part Load Coefficient of Performance, Actual installed value | BC80: This example value is the mean of values listed in ENERGY STAR criteria here: https://www.energystar.gov/index.cfm?c=most_efficient.me_geothermal_heat_pumps , https://data.energystar.gov/Active-Specifications/ENERGY-STAR-Most-Efficient-Geothermal-Heat-Pumps/4c82-7ysy . Ideally this value would come from the specs of the actual unit installed. | BD80: 116 | BE80: 1 | BF80: ElecDHW: = 1 if HW system is electric = 0 if HW system is not electric | BG80: IL TRM Version 7 Volume 7 | BH80: 114 | BI80: 0.44 | BJ80: %DHWdisplaced = Percentage of total DHW load the GSHP will provide. = Actual, if known = 0% if no desuperheater installed = 44% if desuperheater installed and actual is unknown | BK80: IL TRM Version 7 Volume 7 | BL80: 114 | BM80: 2.0005 | BN80: Efelec = Energy Factor of electric WH. = Actual, if known = 0.96 – (0.0003 * rated volume in gallons) for 55+ gallon DHW = 2.057 – (0.00113 * rated volume in gallons) for < 55 gallon DHW | BO80: IL TRM Version 7 Volume 7 | BP80: 115 | BQ80: 9732988.447 | BR80: GSHP Coefficient = GPD * Household * 365.25 * γWater * (Tout - Tin) | BS80: IL TRM v7 vol3 | BT80: 115 | BU80: 8.15 | BV80: Energy Efficiency Ratio of existing cooling unit = Actual, if available = 8.55 for replacing ASHP = 8.15 for replacing Central AC | BW80: IL TRM v7 vol3 | BX80: 116 | BY80: 738 | BZ80: EFLHcool | CA80: EFLHcool, from 2017 MO TRM | CB80: 85 | CC80: 1376 | CD80: EFLHheat | CE80: The EFLH Cooling and Heating hours are based on a EnergyStar study that was normalized (based on HDD and CDD) to Kansas City. This was for both AC and HP units.
A81: Heating, Cooling & Home Comfort | B81: GSHP - AC + Replace at Fail Electric Resistance Furnace_SF: HVAC | C81: 242.3 | D81: Single Family | E81: HVAC | G81: per unit | H81: 4717 | I81: IL TRM v7 vol3 | J81: 110 | K81: 7788.0418 | L81: Calculated Value | N81: 10.55290217 | O81: 0.72 | P81: IL TRM v7 vol3 | Q81: 111 | R81: 0.7854 | S81: Calculated Value | U81: 738 | V81: EFLHcool, from 2017 MO TRM | W81: 85 | X81: 18 | Y81: IL TRM v7 vol3 | Z81: 110 | AA81: Part Load EER Efficiency of efficient GSHP unit | AB81: 23 | AC81: IL TRM v7 vol3 | AE81: GSHP replacing failed AC w/ electric furnace – 23 EER minimum (EER) | AF81: 11 | AG81: IL TRM v7 vol3 | AH81: 113 | AI81: =ROUND(((BY81*AS81*(1/AF81)-(1/AB81))/1000)+((CC81*AS81*(1/AW81)-(1/(BA81*3.412)))/1000)+((BE81*BI81*(1/BM81)*BQ81)/1000),4) | AJ81: =ROUND(((AS81*(1/BU81)-(1/AB81))/1000)*O81,4) | AK81: IL TRM v7 vol3 | AL81: 111 | AM81: 2020-01-01 | AS81: 12000 | AT81: Allows for Capacity input in Tons; converts tons to BTUs | AW81: 3.41 | AX81: HSPFbase = Heating System Performance Factor of new replacement baseline heating system 8.2 for replacing ASHP 3.41 for replacing Electric Resistance Heat | AY81: IL TRM v7 vol3 | AZ81: 114 | BA81: 4.5 | BB81: COPpl = Part Load Coefficient of Performance, Actual installed value | BC81: This example value is the mean of values listed in ENERGY STAR criteria here: https://www.energystar.gov/index.cfm?c=most_efficient.me_geothermal_heat_pumps , https://data.energystar.gov/Active-Specifications/ENERGY-STAR-Most-Efficient-Geothermal-Heat-Pumps/4c82-7ysy . Ideally this value would come from the specs of the actual unit installed. | BD81: 116 | BE81: 1 | BF81: ElecDHW: = 1 if HW system is electric = 0 if HW system is not electric | BG81: IL TRM Version 7 Volume 9 | BH81: 114 | BI81: 0.44 | BJ81: %DHWdisplaced = Percentage of total DHW load the GSHP will provide. = Actual, if known = 0% if no desuperheater installed = 44% if desuperheater installed and actual is unknown | BK81: IL TRM Version 7 Volume 9 | BL81: 114 | BM81: 2.0005 | BN81: Efelec = Energy Factor of electric WH. = Actual, if known = 0.96 – (0.0003 * rated volume in gallons) for 55+ gallon DHW = 2.057 – (0.00113 * rated volume in gallons) for < 55 gallon DHW | BO81: IL TRM Version 7 Volume 9 | BP81: 115 | BQ81: 9732988.447 | BR81: GSHP Coefficient = GPD * Household * 365.25 * γWater * (Tout - Tin) | BS81: IL TRM v7 vol3 | BT81: 115 | BU81: 11 | BV81: EER Efficiency of new replacement Central AC | BW81: IL TRM v7 vol3 | BX81: 116 | BY81: 738 | BZ81: EFLHcool | CA81: EFLHcool, from 2017 MO TRM | CB81: 85 | CC81: 1376 | CD81: EFLHheat | CE81: The EFLH Cooling and Heating hours are based on a EnergyStar study that was normalized (based on HDD and CDD) to Kansas City. This was for both AC and HP units.
A82: Heating, Cooling & Home Comfort | B82: GSHP - ASHP + Early Replacement _SF: HVAC | C82: 243.3 | D82: Single Family | E82: HVAC | G82: per unit | H82: 5250 | I82: IL TRM v7 vol3 | J82: 110 | K82: 6211.8058 | L82: Calculated Value | N82: 8.41708103 | O82: 0.72 | P82: IL TRM v7 vol3 | Q82: 111 | R82: 1.0105 | S82: Calculated Value | U82: 738 | V82: EFLHcool, from 2017 MO TRM | W82: 85 | X82: 18 | Y82: IL TRM v7 vol3 | Z82: 110 | AA82: Part Load EER Efficiency of efficient GSHP unit | AB82: 23 | AC82: IL TRM v7 vol3 | AE82: SEER Efficiency of existing cooling unit = Actual, if available | AF82: 8.55 | AG82: IL TRM v7 vol3 | AH82: 113 | AI82: =ROUND(((BY82*AS82*(1/AF82)-(1/AB82))/1000)+((CC82*AS82*(1/AW82)-(1/(BA82*3.412)))/1000)+((BE82*BI82*(1/BM82)*BQ82)/1000),4) | AJ82: =ROUND(((AS82*(1/BU82)-(1/AB82))/1000)*O82,4) | AK82: IL TRM v7 vol3 | AL82: 111 | AM82: 2020-01-01 | AS82: 12000 | AT82: Allows for Capacity input in Tons; converts tons to BTUs | AW82: 5.44 | AX82: HSPFexist = Heating System Performance Factor of existing heating system 5.44 for replacing ASHP 3.41 for replacing Electric Resistance Heat | AY82: IL TRM v7 vol3 | AZ82: 114 | BA82: 4.5 | BB82: COPpl = Part Load Coefficient of Performance, Actual installed value | BC82: This example value is the mean of values listed in ENERGY STAR criteria here: https://www.energystar.gov/index.cfm?c=most_efficient.me_geothermal_heat_pumps , https://data.energystar.gov/Active-Specifications/ENERGY-STAR-Most-Efficient-Geothermal-Heat-Pumps/4c82-7ysy . Ideally this value would come from the specs of the actual unit installed. | BD82: 116 | BE82: 1 | BF82: ElecDHW: = 1 if HW system is electric = 0 if HW system is not electric | BG82: IL TRM Version 7 Volume 11 | BH82: 114 | BI82: 0.44 | BJ82: %DHWdisplaced = Percentage of total DHW load the GSHP will provide. = Actual, if known = 0% if no desuperheater installed = 44% if desuperheater installed and actual is unknown | BK82: IL TRM Version 7 Volume 11 | BL82: 114 | BM82: 2.0005 | BN82: Efelec = Energy Factor of electric WH. = Actual, if known = 0.96 – (0.0003 * rated volume in gallons) for 55+ gallon DHW = 2.057 – (0.00113 * rated volume in gallons) for < 55 gallon DHW | BO82: IL TRM Version 7 Volume 11 | BP82: 115 | BQ82: 9732988.447 | BR82: GSHP Coefficient = GPD * Household * 365.25 * γWater * (Tout - Tin) | BS82: IL TRM v7 vol3 | BT82: 115 | BU82: 8.55 | BV82: Energy Efficiency Ratio of existing cooling unit = Actual, if available = 8.55 for replacing ASHP = 8.15 for replacing Central AC | BW82: IL TRM v7 vol3 | BX82: 116 | BY82: 738 | BZ82: EFLHcool | CA82: EFLHcool, from 2017 MO TRM | CB82: 85 | CC82: 1376 | CD82: EFLHheat | CE82: The EFLH Cooling and Heating hours are based on a EnergyStar study that was normalized (based on HDD and CDD) to Kansas City. This was for both AC and HP units.
A83: Heating, Cooling & Home Comfort | B83: Duct Repair and Sealing | C83: 278 | D83: Single Family | E83: HVAC | G83: per home (25% to 10%) | H83: 497.62 | I83: Program Tracking Data | K83: =ROUND(((((AS83-AW83)/AS83)*BA83*BE83*BI83)/1000/BM83)+(((((AS83-AW83)/AS83))*BQ83*BU83*BY83)/CC83/3412),4) -> 1218.8362 | L83: Calculated Value | O83: 0.466 | P83: Calculated Value | R83: =ROUND(((((AS83-AW83)/AS83)*BA83*BE83*BI83)/1000/BM83)/BA83*O83,8) -> 0.09117391 | S83: Calculated Value | X83: 20 | Y83: IL TRM v6 vol3 | Z83: 77 | AA83: Duct sealing using mastic sealant or metal tape | AE83: Unsealed/leaking ductwork | AI83: =ROUND(((((AS83-AW83)/AS83)*BA83*BE83*BI83)/1000/BM83)+(((((AS83-AW83)/AS83))*BQ83*BU83*BY83)/CC83/3412),4) | AJ83: =ROUND(((((AS83-AW83)/AS83)*BA83*BE83*BI83)/1000/BM83)/BA83*O83,8) | AK83: IL TRM v6 vol3 | AL83: 78 - 85 | AM83: 2020-01-01 | AS83: 0.92 | AT83: Deafter | AU83: IL TRM v6 vol3, example rating | AV83: 84 | AW83: 0.85 | AX83: Debefore | AY83: IL TRM v6 vol3, example rating | AZ83: 84 | BA83: 1035 | BB83: FLHcool | BC83: IL TRM v6 vol3 for Single Family Home | BD83: 83 | BE83: 36000 | BF83: CapacityCool | BG83: IL TRM v6 vol3, Example Rating | BH83: 82 | BI83: 1 | BJ83: TRFcool | BK83: IL TRM v6 vol3 | BL83: 83 | BM83: 14 | BN83: ηCool | BO83: IL TRM v6 vol3 for heat pumps after 2015 (assuming upgrades as part of program participation) | BP83: 83 | BQ83: 1266 | BR83: FLHheat | BS83: IL TRM v6 vol3 | BT83: 84 | BU83: 36000 | BV83: OutputCapacityHeat | BW83: IL TRM v6 vol3 | BY83: 1 | BZ83: TRFheat | CA83: IL TRM v6 vol3 | CB83: 84 | CC83: 1 | CD83: ηHeat | CE83: IL TRM v6 vol3 | CF83: 84
A84: Income-Eligible Multi-Family | B84: Screw In - LEDs (In-Unit) | C84: 53.4 | D84: Multi-Family | E84: Lighting | F84: Kits | G84: per lamp | H84: 3.93 | I84: Program Tracking Data | K84: =ROUND(($AF84-$AB84)/1000*$U84*$AS84*$BA84,4) -> 37.3133 | L84: Calculated Value | N84: =K84/U84 -> 0.03426382002 | O84: 0.128 | P84: IL TRM v7 vol3 | Q84: 274 | R84: =ROUND(($AF84-$AB84)/1000*O84*$AW84*$BA84,4) -> 0.0045 | S84: Calculated Value | U84: 1089 | V84: IL TRM v7 vol3 | W84: 271 | X84: 10 | Y84: IL TRM v7 vol3 | Z84: 268 | AA84: Screw In - LEDs | AB84: 9 | AC84: Program Tracking Data | AE84: 43 watts based on halogen equivalent to average of bulbs sold in program | AF84: 43 | AG84: Program Tracking Database | AI84: =ROUND(($AF84-$AB84)/1000*$U84*$AS84*$BA84,4) | AJ84: =ROUND(($AF84-$AB84)/1000*O84*$AW84*$BA84,4) | AK84: IL TRM v7 vol3 | AL84: 269, 273 | AM84: 2020-01-01 | AS84: 1.04 | AT84: Waste Heat Factor, Energy | AU84: IL TRM v7 vol3 - Multifamily in unit | AV84: 279 | AW84: 1.07 | AX84: Waste Heat Factor, Demand | AY84: IL TRM v7 vol3 - Multifamily in unit | AZ84: 271 | BA84: 0.969 | BB84: ISR | BC84: IL TRM v7 vol3 | BD84: 270
A85: Income-Eligible Multi-Family | B85: Low Flow Faucet Aerator-Bathroom | C85: 268.2 | D85: Multi-Family | E85: Hot Water | F85: Kits | G85: per unit | H85: 8 | I85: IL TRM v5 vol3 | J85: 174 | K85: =ROUND(((AF85-AB85)*AW85*BA85*365.25)*AS85*BE85,4) -> 66.7349 | L85: Calculated Value | N85: 3.033404545 | O85: 0.022 | P85: IL TRM v5 vol3 | Q85: 179 | R85: =ROUND((((AF85-AB85)*AW85*BA85*365.25)*AS85*BE85)/U85*O85,4) -> 0.0667 | S85: Calculated Value | U85: 22 | V85: IL TRM v5 vol3 | W85: 179 | X85: 9 | Y85: IL TRM v5 vol3 | Z85: 174 | AA85: Low Flow (GPM) | AB85: 1 | AC85: Program Tracking Data | AE85: Standard (GPM) | AF85: 2.2 | AG85: Federal Baseline | AI85: =ROUND(((AF85-AB85)*AW85*BA85*365.25)*AS85*BE85,4) | AJ85: =ROUND((((AF85-AB85)*AW85*BA85*365.25)*AS85*BE85)/U85*O85,4) | AK85: IL TRM v5 vol3 | AL85: 175 | AM85: 2020-01-01 | AS85: 0.0795 | AT85: kWh per gallon hot water, bathroom | AU85: IL TRM v5 vol3 | AV85: 177 | AW85: =1.6*0.9/1.5 -> 0.96 | AX85: Faucet Coefficient, Bathroom: Minutes/day * Drain Factor / Faucets per Household | AY85: IL TRM v5 vol3 | AZ85: 176177 | BA85: 2.1 | BB85: Persons per household | BC85: IL TRM v5 vol3 | BD85: 176 | BE85: 0.95 | BF85: Installation Rate | BG85: IL TRM v5 vol3 | BH85: 178
A86: Income-Eligible Multi-Family | B86: Low Flow Faucet Aerator-Kitchen | C86: 269.2 | D86: Multi-Family | E86: Hot Water | F86: Kits | G86: per unit | H86: 8 | I86: IL TRM v5 vol3 | J86: 174 | K86: =ROUND(((AF86-AB86)*AW86*BA86*365.25)*AS86*BE86,4) -> 159.7889 | L86: Calculated Value | N86: 2.075180519 | O86: 0.022 | P86: IL TRM v5 vol3 | Q86: 179 | R86: =ROUND((((AF86-AB86)*AW86*BA86*365.25)*AS86*BE86)/U86*O86,4) -> 0.0457 | S86: Calculated Value | U86: 77 | V86: IL TRM v5 vol3 | W86: 179 | X86: 9 | Y86: IL TRM v5 vol3 | Z86: 174 | AA86: Low Flow (GPM) | AB86: 1.5 | AC86: Program Tracking Data | AE86: Standard (GPM) | AF86: 2.2 | AG86: Federal Baseline | AI86: =ROUND(((AF86-AB86)*AW86*BA86*365.25)*AS86*BE86,4) | AJ86: =ROUND((((AF86-AB86)*AW86*BA86*365.25)*AS86*BE86)/U86*O86,4) | AK86: IL TRM v5 vol3 | AL86: 175 | AM86: 2020-01-01 | AS86: 0.0969 | AT86: kWh per gallon hot water, kitchen | AU86: IL TRM v5 vol3 | AV86: 177 | AW86: =4.5*0.75/1 -> 3.375 | AX86: Faucet Coefficient, Kitchen | AY86: IL TRM v5 vol3 | AZ86: 176177 | BA86: 2.1 | BB86: Persons per household | BC86: IL TRM v5 vol3 | BD86: 176 | BE86: 0.91 | BF86: Installation Rate | BG86: IL TRM v5 vol3 | BH86: 178
A87: Income-Eligible Multi-Family | B87: Pipe Insulated | C87: 55.3 | D87: Multi-Family | E87: Hot Water | F87: Kits | G87: per unit | H87: 18 | I87: IL TRM v5 vol3 | J87: 160 | K87: =ROUND(((((AS87*PI()*BA87)/AF87) - ((AW87*PI()*BA87)/AB87))*BE87)/BI87/3412,4) -> 72.065 | L87: Calculated Value | N87: =K87/8766 -> 0.008220967374 | O87: 1 | P87: Calculated Value | R87: =ROUND(K87/8766,4) -> 0.0082 | S87: Calculated Value | U87: 8766 | V87: IL TRM v5 vol3 | W87: 161 | X87: 15 | Y87: IL TRM v5 vol3 | Z87: 160 | AA87: Efficient R-Value due to added insulation | AB87: =1+5 -> 6 | AC87: Program Tracking Data | AE87: R-Value of bare pipe | AF87: 1 | AG87: IL TRM v5 vol3 | AH87: 161 | AI87: =cellformula(K87) -> =ROUND(((((AS87*PI()*BA87)/AF87) - ((AW87*PI()*BA87)/AB87))*BE87)/BI87/3412,4) | AJ87: =cellformula(R87) -> =ROUND(K87/8766,4) | AK87: IL TRM v5 vol3 | AL87: 161162 | AM87: 2020-01-01 | AS87: =0.75/12 -> 0.0625 | AT87: Dbase = Pipe Diameter (ft) | AU87: IL TRM v5 vol3 | AV87: 161 | AW87: =(0.75+1*2)/12 -> 0.2291666667 | AX87: Dee = Updated Pipe Diameter, due to added insulation (ft) | AY87: IL TRM v5 vol3 | AZ87: 161 | BA87: 6 | BB87: Length of added pipe insulation | BC87: Program Tracking Data | BE87: =60*8766 -> 525960 | BF87: Pipe Insulated Coefficient 1 = ∆T * Hours = 60 * 8766 | BG87: IL TRM v5 vol3 | BH87: 161 | BI87: 0.98 | BJ87: Recovery efficiency of electric water heater | BK87: IL TRM v5 vol3 | BL87: 161
A88: Income-Eligible Multi-Family | B88: Low Flow Showerhead | C88: 56.3 | D88: Multi-Family | E88: Hot Water | F88: Kits | G88: per unit | H88: 12 | I88: IL TRM v5 vol3 | J88: 183 | K88: =ROUND(((AF88-AB88)*AW88*BA88*365.25)*AS88*BE88,4) -> 359.0933 | L88: Calculated Value | N88: =K88/U88 -> 1.447956855 | O88: 0.0278 | P88: IL TRM v5 vol3 | Q88: 183 | R88: =ROUND((((AF88-AB88)*AW88*BA88*365.25)*AS88*BE88)/U88*O88,4) -> 0.0403 | S88: Calculated Value | U88: 248 | V88: IL TRM v5 vol3 | W88: 187 | X88: 10 | Y88: IL TRM v5 vol3 | Z88: 183 | AA88: Low Flow (GPM) | AB88: 1.5 | AC88: Program Tracking Data | AE88: Standard (GPM) | AF88: 2.67 | AG88: IL TRM v5 vol3 | AH88: 184 | AI88: =ROUND(((AF88-AB88)*AW88*BA88*365.25)*AS88*BE88,4) | AJ88: =ROUND((((AF88-AB88)*AW88*BA88*365.25)*AS88*BE88)/U88*O88,4) | AK88: IL TRM v5 vol3 | AL88: 184186 | AM88: 2020-01-01 | AS88: 0.117 | AT88: kWh per gallon hot water | AU88: IL TRM v5 vol3 | AV88: 185 | AW88: =7.8*0.6/1.3 -> 3.6 | AX88: Showerhead Coefficient: Minutes per day * Showers per day / Showers per household | AY88: IL TRM v5 vol3 | AZ88: 185 | BA88: 2.1 | BB88: Persons per household | BC88: IL TRM v5 vol3 | BD88: 185 | BE88: 0.95 | BF88: Installation Rate | BG88: IL TRM v5 vol3 | BH88: 186
A89: Income-Eligible Multi-Family | B89: Water Heater Tank Wrap | C89: 57.1 | D89: Multi-Family | E89: Hot Water | F89: Kits | G89: per unit | H89: 20 | I89: Program Tracking Data | K89: =ROUND((AS89/AW89-BA89/BE89)*BI89*BM89/BQ89/BU89,4) -> 134.0948 | L89: Calculated Value | N89: =ROUND(0.0153,4) -> 0.0153 | O89: 1 | P89: IL TRM v7 vol3 | Q89: 203 | R89: =ROUND(0.0153,4) -> 0.0153 | S89: Calculated Value | U89: 8766 | V89: IL TRM v7 vol3 | W89: 204 | X89: 5 | Y89: IL TRM v7 vol3 | Z89: 203 | AA89: Water heater insulation increased from R12 to R22, 50gal | AC89: IL TRM v7 vol3 | AD89: 204 | AE89: R12, 50-gal water heater insulation (no wrap) | AG89: IL TRM v7 vol3 | AH89: 204 | AI89: =ROUND((AS89/AW89-BA89/BE89)*BI89*BM89/BQ89/BU89,4) | AJ89: =ROUND(0.0153,4) | AK89: IL TRM v7 vol3 | AL89: 203, 205 | AM89: 2020-01-01 | AS89: 24.99 | AT89: Abase | AU89: IL TRM v7 vol3 | AV89: 204 | AW89: 12 | AX89: Rbase | AY89: IL TRM v7 vol3 | AZ89: 204 | BA89: 27.06 | BB89: Ainsul | BC89: IL TRM v7 vol3 | BD89: 204 | BE89: 22 | BF89: Rinsul | BG89: IL TRM v7 vol3 | BH89: 204 | BI89: 60 | BJ89: deltaT | BK89: IL TRM v7 vol3 | BL89: 204 | BM89: 8766 | BN89: Hours | BO89: IL TRM v7 vol3 | BP89: 204 | BQ89: 0.98 | BR89: eta DHW | BS89: IL TRM v7 vol3 | BT89: 204 | BU89: 3412 | BV89: Conversion from BTU to kWh | BW89: IL TRM v7 vol3 | BX89: 204
A90: Income-Eligible Multi-Family | B90: Smart Power Strip - Wh7-Plug | C90: 248.2 | D90: Multi-Family | E90: Electronics | F90: Kits | G90: per unit | H90: 26 | I90: Program Tracking Data | K90: =ROUND(103,4) -> 103 | L90: Calculated Value | N90: =K90/U90 -> 0.01444802918 | O90: 0.8 | P90: IL TRM v5 vol3 | Q90: 55 | R90: =ROUND(0.0115,4) -> 0.0115 | S90: Calculated Value | U90: 7129 | V90: IL TRM v5 vol3 | W90: 54 | X90: 7 | Y90: IL TRM v6 vol3 | Z90: 53 | AA90: Smart strip | AC90: IL TRM v6 vol3 | AD90: 53 | AE90: Standard outlet strip | AG90: IL TRM v6 vol3 | AH90: 53 | AI90: =ROUND(103,4) | AJ90: =ROUND(0.0115,4) | AK90: IL TRM v6 vol3 | AL90: 53 | AM90: 2020-01-01
A91: Income-Eligible Multi-Family | B91: LED Exit Sign | C91: 59.2 | D91: Multi-Family | E91: Lighting | F91: Common Area - DI | G91: per unit | H91: 30 | I91: IL TRM v5 vol3 | J91: 254 | K91: =ROUND((AF91-AB91)/1000*U91*AS91,4) -> 82.0498 | L91: Calculated Value | N91: =(AF91-AB91)/1000*AW91 -> 0.00963 | O91: 1 | P91: IL TRM v5 vol3 | Q91: 254 | R91: =ROUND(N91*O91,4) -> 0.0096 | S91: Calculated Value | U91: 8766 | V91: IL TRM v5 vol3 | W91: 255 | X91: 16 | Y91: IL TRM v5 vol3 | Z91: 254 | AA91: LED (watts) | AB91: 2 | AC91: IL TRM v5 vol3 | AD91: 255 | AE91: Fluorescent (watts) | AF91: 11 | AG91: IL TRM v5 vol3 | AH91: 255 | AI91: =ROUND((AF91-AB91)/1000*U91*AS91,4) | AJ91: =ROUND(N91*O91,4) | AK91: IL TRM v5 vol3 | AL91: 255256 | AM91: 2020-01-01 | AS91: 1.04 | AT91: Waste Heat Factor (energy) | AU91: IL TRM v5 vol3 | AV91: 255 | AW91: 1.07 | AX91: Waste Heat Factor (demand) | AY91: IL TRM v5 vol3 | AZ91: 256
A92: Income-Eligible Multi-Family | B92: High Bay Fluorescent Fixture w/ HE Electronic Ballast (T5 >4 lamps) | C92: 60.1 | D92: Multi-Family | E92: Lighting | F92: Common Area - DI | G92: per fixture | H92: 100 | I92: IL TRM v6 vol2 | J92: 413 | K92: =ROUND((AF92-AB92)/1000*U92*AS92,4) -> 701.0069 | L92: Calculated Value | N92: 0.21574 | O92: 0.66 | P92: IL TRM v6 vol2 | Q92: 412 | R92: =ROUND(N92*O92,4) -> 0.1424 | S92: Calculated Value | U92: 3088 | V92: IL TRM v6 vol2 | W92: 338 | X92: 15 | Y92: IL TRM v6 vol2 | Z92: 410 | AA92: High Bay - T5 >4 lamp | AB92: 295 | AC92: Program Tracking Database (weighted average( | AE92: Metal Halide (watts) | AF92: 456 | AG92: IL TRM v6 vol2 | AH92: 412 | AI92: =_xlfn.FORMULATEXT(K92) -> =ROUND((AF92-AB92)/1000*U92*AS92,4) | AJ92: =_xlfn.FORMULATEXT(R92) -> =ROUND(N92*O92,4) | AK92: IL TRM v6 vol2 | AL92: 411412 | AM92: 2020-01-01 | AS92: 1.41 | AT92: Waste Heat Factor | AU92: IL TRM v6 vol2 | AV92: 337 (portfolio weighted average) | AW92: 1.34 | AX92: Waste Heat Factor | AY92: IL TRM v6 vol2 | AZ92: 337 (portfolio weighted average)
A93: Income-Eligible Multi-Family | B93: Low Wattage T8 Lamp | C93: 61.1 | D93: Multi-Family | E93: Lighting | F93: Common Area - DI | G93: per lamp | H93: 2 | I93: IL TRM v6 vol2 | J93: 358 | K93: =ROUND((AF93-AB93)/1000*U93*AS93,4) -> 21.1219 | L93: Calculated Value | N93: 0.00792 | O93: 0.66 | P93: IL TRM v6 vol2 | Q93: 354 | R93: =ROUND(N93*O93,4) -> 0.0052 | S93: Calculated Value | U93: 3088 | V93: IL TRM v6 vol2 | W93: 338 | X93: 10 | Y93: IL TRM v6 vol2 | Z93: 361 | AA93: Low Wattage T8 (watts) | AB93: 22 | AC93: IL TRM v6 vol2 | AD93: 358 | AE93: Standard T8 (watts) | AF93: 28 | AG93: IL TRM v6 vol2 | AH93: 358 | AI93: =ROUND((AF93-AB93)/1000*U93*AS93,4) | AJ93: =ROUND(N93*O93,4) | AK93: IL TRM v6 vol2 | AL93: 353354 | AM93: 2020-01-01 | AS93: 1.14 | AT93: Waste Heat Factor, Energy | AU93: IL TRM v6 vol2 | AV93: 338 | AW93: 1.32 | AX93: Waste Heat Factor, Demand | AY93: IL TRM v6 vol2 | AZ93: 338
A94: Income-Eligible Multi-Family | B94: LED Flood Light (<15W) (Exterior) | C94: 62.2 | D94: Multi-Family | E94: Lighting | F94: Common Area - DI | G94: per lamp | H94: 3.93 | I94: IL TRM v5 vol3 | J94: 265 | K94: =ROUND(($AF94-$AB94)/1000*$U94*$AS94*$BA94,4) -> 212.465 | L94: Calculated Value | N94: 0.04601 | O94: 0 | P94: IL TRM v6 vol2 | Q94: 338 | R94: =ROUND(($AF94-$AB94)/1000*$O94*$AW94*$BA94,4) -> 0 | U94: 4903 | V94: IL TRM v6 vol2 | W94: 338 | X94: 10 | Y94: IL TRM v6 vol2 | Z94: 374 | AA94: LED (watts) | AB94: 8.7 | AC94: Program Tracking Data | AE94: Metal Halide (watts) | AF94: 51.7 | AG94: IL TRM v6 vol2 | AH94: 364 | AI94: =ROUND(($AF94-$AB94)/1000*$U94*$AS94*$BA94,4) | AJ94: =ROUND(($AF94-$AB94)/1000*$O94*$AW94*$BA94,4) | AK94: IL TRM v6 vol2 | AL94: 364368 | AM94: 2020-01-01 | AS94: 1.04 | AT94: Waste Heat Factor (energy) | AU94: IL TRM v5 vol3 | AW94: 1.07 | AX94: Waste Heat Factor (demand) | AY94: IL TRM v5 vol3 | BA94: 0.969 | BB94: ISR | BC94: IL TRM v5 vol3 | BD94: 260
A95: Income-Eligible Multi-Family | B95: Screw In - LEDs - Common Area (Interior) | C95: 249.2 | D95: Multi-Family | E95: Lighting | F95: Common Area - DI | G95: per lamp | H95: 3.93 | I95: IL TRM v5 vol3 | J95: 265 | K95: =ROUND(($AF95-$AB95)/1000*$U95*$AS95*$BA95,4) -> 29.5796 | L95: Calculated Value | N95: =K95/U95 -> 0.0349227863 | O95: 0.081 | P95: IL TRM v5 vol3 | Q95: 258 | R95: 0.003 | S95: Calculated Value | U95: 847 | V95: IL TRM v5 vol3 | W95: 208 | X95: 5 | Y95: IL TRM v5 vol3 | Z95: 205 | AA95: LED (watts) | AB95: 9 | AC95: Program Tracking Data | AE95: EISA tier 1 compliant Halogen (watts) | AF95: 43 | AG95: IL TRM v5 vol3 | AH95: 265 | AI95: =ROUND(($AF95-$AB95)/1000*$U95*$AS95*$BA95,4) | AJ95: =ROUND(($AF95-$AB95)/1000*$O95*$AW95*$BA95,4) | AK95: IL TRM v5 vol3 | AL95: 259263 | AM95: 2020-01-01 | AS95: 1.06 | AT95: Waste Heat Factor (energy) | AU95: IL TRM v5 vol3 | AV95: 261 | AW95: 1.11 | AX95: Waste Heat Factor (demand) | AY95: IL TRM v5 vol3 | AZ95: 264 | BA95: 0.969 | BB95: ISR | BC95: IL TRM v5 vol3 | BD95: 260
A96: Income-Eligible Multi-Family | B96: Screw In - LEDs - Common Area (Exterior) | C96: 250.2 | D96: Multi-Family | E96: Lighting | F96: Common Area - DI | G96: per lamp | H96: 3.93 | I96: IL TRM v5 vol3 | J96: 265 | K96: =ROUND(($AF96-$AB96)/1000*$U96*$AS96*$BA96,4) -> 81.5414 | L96: Calculated Value | N96: 0.0329460202 | O96: 0.273 | P96: IL TRM v5 vol3 | Q96: 258 | R96: 0.009 | S96: Calculated Value | U96: 2475 | V96: IL TRM v5 vol3 | W96: 208 | X96: 5 | Y96: IL TRM v5 vol3 | Z96: 205 | AA96: LED (watts) | AB96: 9 | AC96: Program Tracking Data | AE96: EISA tier 1 compliant Halogen (watts) | AF96: 43 | AG96: IL TRM v5 vol3 | AH96: 265 | AI96: =ROUND(($AF96-$AB96)/1000*$U96*$AS96*$BA96,4) | AJ96: =ROUND(($AF96-$AB96)/1000*$O96*$AW96*$BA96,4) | AK96: IL TRM v5 vol3 | AL96: 259263 | AM96: 2020-01-01 | AS96: 1 | AT96: Waste Heat Factor (energy) | AU96: IL TRM v5 vol3 | AV96: 261 | AW96: 1 | AX96: Waste Heat Factor (demand) | AY96: IL TRM v5 vol3 | AZ96: 264 | BA96: 0.969 | BB96: ISR | BC96: IL TRM v5 vol3 | BD96: 260
A97: Income-Eligible Multi-Family | B97: Air Sealing (Infiltration reduction) - 30% MF LI DI electric furnace base/electric resistance | C97: 441 | D97: Multi-Family | E97: HVAC - Shell | G97: per sq ft (floor area) | H97: 0.12 | I97: Program tracking data, with 50% co-delivery costs shared with Spire Missouri | K97: =ROUND(0.285,4) -> 0.285 | L97: Calculated Value | O97: 0 | P97: Calculated Value | R97: =ROUND(O97*K97,4) -> 0 | S97: No cooling savings, no coincident savings | X97: 15 | Y97: MO TRM 2017 | Z97: 162 | AA97: air leaks are detected and sealed | AE97: air leaks | AI97: =ROUND(0.285,4) | AJ97: =ROUND(O97*K97,4) | AM97: 2020-01-01 | AS97: 3263 | AT97: Square footage installed | AU97: PY2016 average
A98: Income-Eligible Multi-Family | B98: Air Sealing (Infiltration reduction) - 30% MF LI DI ASHP base- Heating Only | C98: 442 | D98: Multi-Family | E98: HVAC - Shell | G98: per sq ft (floor area) | H98: 0.12 | I98: Program tracking data, with 50% co-delivery costs shared with Spire Missouri | K98: =ROUND(0.208,4) -> 0.208 | L98: Calculated Value | O98: 0 | P98: Calculated Value | R98: =ROUND(O98*K98,4) -> 0 | S98: No cooling savings, no coincident savings | X98: 15 | Y98: MO TRM 2017 | Z98: 162 | AA98: air leaks are detected and sealed | AE98: air leaks | AI98: =ROUND(0.208,4) | AJ98: =ROUND(O98*K98,4) | AM98: 2020-01-01 | AS98: 3263 | AT98: Square footage installed | AU98: PY2016 average
A99: Income-Eligible Multi-Family | B99: Air Sealing (Infiltration reduction) - 30% MF LI DI CAC or ASHP- Cooling Only | C99: 452 | D99: Multi-Family | E99: HVAC - Shell | G99: per sq ft (floor area) | H99: 0.12 | I99: Program tracking data, with 50% co-delivery costs shared with Spire Missouri | K99: =ROUND(0.043,4) -> 0.043 | L99: Calculated Value | O99: 0.0009474181 | P99: Calculated Value | R99: =ROUND(K99*O99,8) -> 4.074e-05 | S99: Calculated Value | X99: 15 | Y99: MO TRM 2017 | Z99: 162 | AA99: air leaks are detected and sealed | AE99: air leaks | AI99: =ROUND(0.043,4) | AJ99: =ROUND(K99*O99,8) | AM99: 2020-01-01 | AS99: 3263 | AT99: Square footage installed | AU99: PY2016 average
A100: Income-Eligible Multi-Family | B100: Interior Directional LED Lamp replacing 50-70W Lamp | C100: 321 | D100: Multi-Family | E100: Lighting | G100: per lamp | H100: 1.65 | I100: IL TRM v7 vol3 | J100: 251 | K100: =ROUND((AF100-AB100)/1000*U100*AS100*BA100,4) -> 48.6547 | L100: Calculated Value | N100: =R100/O100 -> 0.05234375 | O100: 0.128 | P100: IL TRM v7 vol3 | Q100: 251 | R100: =ROUND((AF100-AB100)*AW100*BA100*O100/1000,4) -> 0.0067 | S100: Calculated Value | U100: 974 | V100: IL TRM v7 vol3 | W100: 255 | X100: 10 | Y100: IL TRM v7 vol3 | Z100: 250 | AA100: Interior Directional LED Lamp | AB100: 9.496 | AC100: IL TRM v7 vol3 | AD100: 253 | AE100: 50-70Watts Lamp | AF100: 60 | AG100: IL TRM v7 vol3 | AH100: 253 | AI100: =ROUND((AF100-AB100)/1000*U100*AS100*BA100,4) | AJ100: =ROUND((AF100-AB100)*AW100*BA100*O100/1000,4) | AK100: IL TRM v7 vol3 | AL100: 251, 259 | AM100: 2020-01-01 | AS100: 1.05 | AT100: Waste Heat Factor_Energy | AU100: IL TRM v7 vol3 | AV100: 255 | AW100: 1.1 | AX100: Waste Heat Factor_Demand | AY100: IL TRM v7 vol3 | AZ100: 259 | BA100: 0.942 | BB100: ISR | BC100: Navigant MEEIA Cycle 1 Research
A101: Income-Eligible Multi-Family | B101: Interior LED 2X4 Retrofit Kit replacing T8, T12 or T5/T5HO | C101: 322 | D101: Multi-Family | E101: Lighting | G101: per unit | H101: 26 | I101: IL TRM v7 vol3 | J101: 278 | K101: =ROUND((AF101-AB101)/1000*U101*AS101*BA101,4) -> 63.6796 | L101: Calculated Value | N101: =R101/O101 -> 0.06875 | O101: 0.128 | P101: IL TRM v7 vol3 | Q101: 278 | R101: =ROUND((AF101-AB101)*AW101*BA101*O101/1000,4) -> 0.0088 | S101: Calculated Value | U101: 974 | V101: IL TRM v7 vol3 | W101: 255 | X101: 15 | Y101: IL TRM v7 vol3 | Z101: 277 | AA101: LED 2X4 Retrofit Kits | AB101: 22.4 | AC101: IL TRM v7 vol3 | AD101: 278 | AE101: 2x4 T8, T12 or T5 Fluorescents | AF101: 88.5 | AG101: IL TRM v7 vol3 | AH101: 278 | AI101: =_xlfn.FORMULATEXT(K101) -> =ROUND((AF101-AB101)/1000*U101*AS101*BA101,4) | AJ101: =_xlfn.FORMULATEXT(R101) -> =ROUND((AF101-AB101)*AW101*BA101*O101/1000,4) | AK101: IL TRM v7 vol3 | AL101: 278, 281 | AM101: 2020-01-01 | AS101: 1.05 | AT101: Waste Heat Factor_Energy | AU101: IL TRM v7 vol3 | AV101: 279 | AW101: 1.1 | AX101: Waste Heat Factor_Demand | AY101: IL TRM v7 vol3 | AZ101: 281 | BA101: 0.942 | BB101: ISR | BC101: Navigant MEEIA Cycle 1 Research
A102: Income-Eligible Multi-Family | B102: ECM Auto Fan Early Replacement - MF | C102: 390 | D102: Multi-Family | E102: Motor | G102: per unit | H102: 97 | I102: WI TRM 2018 | J102: 915 | K102: =ROUND(AS102*BE102*12*(1/AW102-1/BA102)*BM102+BQ102*BU102+BY102*CC102,4) -> 1084.7825 | L102: Calculated Value | N102: 0.8147058824 | O102: 0.68 | P102: WI TRM 2018 | Q102: 916 | R102: =ROUND(AS102*12*(1/CG102-1/CK102)*O102*BM102,4) -> 0.554 | S102: Calculated Value | X102: 6 | Y102: WI TRM 2018 - total is 18 years | Z102: 916 | AA102: ECM Blower Motor | AE102: Non-ECM Blower Motor | AI102: =ROUND(AS102*BE102*12*(1/AW102-1/BA102)*BM102+BQ102*BU102+BY102*CC102,4) | AJ102: =ROUND(AS102*12*(1/CG102-1/CK102)*O102*BM102,4) | AK102: WI TRM 2018 | AL102: 916 | AM102: 2020-01-01 | AS102: 2.425 | AT102: Air conditioner capacity in tons | AU102: WI TRM 2018 | AV102: 916 | AW102: 8.86 | AX102: SEERexist | AY102: This value is from IL TRM v6 vol3 but should be actual equipment SEER value. | BA102: 13 | BB102: SEERecm | BC102: WI TRM 2018 | BD102: 916 | BE102: 738 | BF102: FLH_cooling | BG102: MO TRM 2017 | BH102: 85 | BI102: 0.68 | BJ102: CF | BK102: WI TRM 2018 | BL102: 916 | BM102: 0.925 | BN102: Percentage of furnaces with AC | BO102: WI TRM 2018 | BP102: 916 | BQ102: 1376 | BR102: EFLHheat | BS102: The EFLH Cooling and Heating hours are based on a EnergyStar study that was normalized (based on HDD and CDD) to Kansas City. This was for both AC and HP units. | BU102: 0.116 | BV102: Energy savings in heating | BW102: WI TRM 2018 | BX102: 916 | BY102: 1020 | BZ102: Hours of fan-only operation | CA102: WI TRM 2018 | CB102: 916 | CC102: 0.207 | CD102: Energy savings in fan-only | CE102: WI TRM 2018 | CF102: 916 | CG102: =-0.02*AW102^2+1.12*AW102 -> 8.353208 | CH102: EERexist | CI102: Value Calculated from SEER | CK102: =-0.02*BA102^2+1.12*BA102 -> 11.18 | CL102: EERecm | CM102: Value Calculated from SEER
A103: Income-Eligible Multi-Family | B103: ECM Auto Fan Early Replacement (future) - MF | C103: 391 | D103: Multi-Family | E103: Motor | G103: per unit | H103: 0 | I103: WI TRM 2018 | J103: 915 | K103: 498.0965 | L103: Calculated Value | N103: 0.1413235294 | O103: 0.68 | P103: WI TRM 2018 | Q103: 916 | R103: 0.0961 | S103: Calculated Value | X103: 12 | Y103: WI TRM 2018 - total is 18 years | Z103: 916 | AA103: ECM Blower Motor | AE103: Non-ECM Blower Motor | AI103: =ROUND(AS103*BE103*12*(1/AW103-1/BA103)*BM103+BQ103*BU103+BY103*CC103,4) | AJ103: =ROUND(AS103*12*(1/CG103-1/CK103)*O103*BM103,4) | AK103: WI TRM 2018 | AL103: 916 | AM103: 2020-01-01 | AS103: 2.425 | AT103: Air conditioner capacity in tons | AU103: WI TRM 2018 | AV103: 916 | AW103: 12 | AX103: SEERbase | AY103: WI TRM 2018 | AZ103: 916 | BA103: 13 | BB103: SEERecm | BC103: WI TRM 2018 | BD103: 916 | BE103: 738 | BF103: FLH_cooling | BG103: MO TRM 2017 | BH103: 85 | BI103: 0.68 | BJ103: CF | BK103: WI TRM 2018 | BL103: 916 | BM103: 0.925 | BN103: Percentage of furnaces with AC | BO103: WI TRM 2018 | BP103: 916 | BQ103: 1376 | BR103: EFLHheat | BS103: The EFLH Cooling and Heating hours are based on a EnergyStar study that was normalized (based on HDD and CDD) to Kansas City. This was for both AC and HP units. | BU103: 0.116 | BV103: Energy savings in heating | BW103: WI TRM 2018 | BX103: 916 | BY103: 1020 | BZ103: Hours of fan-only operation | CA103: WI TRM 2018 | CB103: 916 | CC103: 0.207 | CD103: Energy savings in fan-only | CE103: WI TRM 2018 | CF103: 916 | CG103: 10.56 | CH103: EERbase | CI103: WI TRM 2018 | CJ103: 916 | CK103: 11.18 | CL103: EERecm | CM103: WI TRM 2018 | CN103: 916
A104: Income-Eligible Multi-Family | B104: ECM Continous Fan Early Replacement - MF | C104: 393 | D104: Multi-Family | E104: Motor | G104: per unit | H104: 97 | I104: WI TRM 2018 | J104: 915 | K104: 1084.7825 | L104: Calculated Value | N104: 0.8147058824 | O104: 0.68 | P104: WI TRM 2018 | Q104: 916 | R104: 0.554 | S104: Calculated Value | X104: 6 | Y104: WI TRM 2018 - total is 18 years | Z104: 916 | AA104: ECM Blower Motor | AE104: Non-ECM Blower Motor | AI104: =ROUND(AS104*BE104*12*(1/AW104-1/BA104)*BM104+BQ104*BU104+BY104*CC104,4) | AJ104: =ROUND(AS104*12*(1/CG104-1/CK104)*O104*BM104,4) | AK104: WI TRM 2018 | AL104: 916 | AM104: 2020-01-01 | AS104: 2.425 | AT104: Air conditioner capacity in tons | AU104: WI TRM 2018 | AV104: 916 | AW104: 8.86 | AX104: SEERexist | AY104: This value is from IL TRM v6 vol3 but should be actual equipment SEER value. | BA104: 13 | BB104: SEERecm | BC104: WI TRM 2018 | BD104: 916 | BE104: 738 | BF104: FLH_cooling | BG104: MO TRM 2017 | BH104: 85 | BI104: 0.68 | BJ104: CF | BK104: WI TRM 2018 | BL104: 916 | BM104: 0.925 | BN104: Percentage of furnaces with AC | BO104: WI TRM 2018 | BP104: 916 | BQ104: 1376 | BR104: EFLHheat | BS104: The EFLH Cooling and Heating hours are based on a EnergyStar study that was normalized (based on HDD and CDD) to Kansas City. This was for both AC and HP units. | BU104: 0.116 | BV104: Energy savings in heating | BW104: WI TRM 2018 | BX104: 916 | BY104: 1020 | BZ104: Hours of fan-only operation | CA104: WI TRM 2018 | CB104: 916 | CC104: 0.207 | CD104: Energy savings in fan-only | CE104: WI TRM 2018 | CF104: 916 | CG104: 8.353208 | CH104: EERexist | CI104: Value Calculated from SEER | CK104: 11.18 | CL104: EERecm | CM104: Value Calculated from SEER
A105: Income-Eligible Multi-Family | B105: ECM Continous Fan Early Replacement (future) - MF | C105: 394 | D105: Multi-Family | E105: Motor | G105: per unit | H105: 0 | I105: WI TRM 2018 | J105: 915 | K105: 498.0965 | L105: Calculated Value | N105: 0.1413235294 | O105: 0.68 | P105: WI TRM 2018 | Q105: 916 | R105: 0.0961 | S105: Calculated Value | X105: 12 | Y105: WI TRM 2018 - total is 18 years | Z105: 916 | AA105: ECM Blower Motor | AE105: Non-ECM Blower Motor | AI105: =ROUND(AS105*BE105*12*(1/AW105-1/BA105)*BM105+BQ105*BU105+BY105*CC105,4) | AJ105: =ROUND(AS105*12*(1/CG105-1/CK105)*O105*BM105,4) | AK105: WI TRM 2018 | AL105: 916 | AM105: 2020-01-01 | AS105: 2.425 | AT105: Air conditioner capacity in tons | AU105: WI TRM 2018 | AV105: 916 | AW105: 12 | AX105: SEERbase | AY105: WI TRM 2018 | AZ105: 916 | BA105: 13 | BB105: SEERecm | BC105: WI TRM 2018 | BD105: 916 | BE105: 738 | BF105: FLH_cooling | BG105: MO TRM 2017 | BH105: 85 | BI105: 0.68 | BJ105: CF | BK105: WI TRM 2018 | BL105: 916 | BM105: 0.925 | BN105: Percentage of furnaces with AC | BO105: WI TRM 2018 | BP105: 916 | BQ105: 1376 | BR105: EFLHheat | BS105: The EFLH Cooling and Heating hours are based on a EnergyStar study that was normalized (based on HDD and CDD) to Kansas City. This was for both AC and HP units. | BU105: 0.116 | BV105: Energy savings in heating | BW105: WI TRM 2018 | BX105: 916 | BY105: 1020 | BZ105: Hours of fan-only operation | CA105: WI TRM 2018 | CB105: 916 | CC105: 0.207 | CD105: Energy savings in fan-only | CE105: WI TRM 2018 | CF105: 916 | CG105: 10.56 | CH105: EERbase | CI105: WI TRM 2018 | CJ105: 916 | CK105: 11.18 | CL105: EERecm | CM105: WI TRM 2018 | CN105: 916
A106: Income-Eligible Multi-Family | B106: Refrigerator - Early Replacement - MF | C106: 405 | D106: Multi-Family | E106: Appliances | G106: per unit | H106: 451 | I106: IL TRM v6 vol3 | J106: 28 | K106: =ROUND((BI106-BE106),4) -> 696 | L106: Calculated Value | R106: =ROUND((K106/DE106)*CW106*DA106,4) -> 0.1049 | S106: Calculated Value | U106: 8766 | V106: IL TRM v6 vol3 | W106: 30 | X106: 4 | Y106: IL TRM v6 vol3 | Z106: 28 | AA106: UEC | AB106: =BE106 -> 331.7 | AC106: IL TRM v6 vol3 | AD106: 28 | AE106: UEC | AF106: =BI106 -> 1027.7 | AG106: IL TRM v6 vol3 | AH106: 28 | AI106: =cellformula(K106) -> =ROUND((BI106-BE106),4) | AJ106: =cellformula(R106) -> =ROUND((K106/DE106)*CW106*DA106,4) | AK106: IL TRM v6 vol3 | AL106: 28, 30 | AM106: 2020-01-01 | AS106: 14.75 | AT106: Fresh Volume_ee (ft3) | AU106: IL TRM v6 vol3 | AV106: 31 | AW106: 6.76 | AX106: Freezer Volume_ee (ft3) | AY106: IL TRM v6 vol3 | AZ106: 31 | BA106: =ROUND(AS106+1.63*AW106,2) -> 25.77 | BB106: Adjusted Volume_ee | BC106: IL TRM v6 vol3 | BD106: 31 | BE106: =ROUND(6.11*BA106+174.2,1) -> 331.7 | BF106: UECEE | BG106: IL TRM v6 vol3 | BH106: 28 | BI106: =ROUND((83.32+(BM106*3.68)+(BQ106*485.04)+(BU106*27.15)+(BY106*406.78)+(CC106*161.86)+(CG106*CK106*15.37)+(CO106*CK106-11.07))*CS106,1) -> 1027.7 | BJ106: UECEXIST | BK106: IL TRM v6 vol3 | BL106: 28 | BM106: 10 | BN106: Age | BO106: IL TRM v6 vol3 | BP106: 30 | BQ106: 0 | BR106: Pre-1990 | BS106: IL TRM v6 vol3 | BT106: 30 | BU106: 21.5 | BV106: Size (ft3) | BW106: IL TRM v6 vol3 | BX106: 30 | BY106: 1 | BZ106: Side-by-side | CA106: IL TRM v6 vol3 | CB106: 30 | CC106: 1 | CD106: Proportion of Primary Appliances | CE106: IL TRM v6 vol3 | CF106: 30 | CG106: =1570/365 -> 4.301369863 | CH106: CDD/365 | CI106: IL TRM v6 vol3 | CJ106: 30 | CK106: 0 | CL106: Unconditioned | CM106: IL TRM v6 vol3 | CN106: 30 | CO106: =4379/365 -> 11.99726027 | CP106: HDD/365 | CQ106: IL TRM v6 vol3 | CR106: 30 | CS106: =ROUND(0.814729665,4) -> 0.8147 | CT106: Part Use Factor | CU106: IL TRM v6 vol3 | CV106: 29 | CW106: 1.25 | CX106: TAF | CY106: IL TRM v6 vol3 | CZ106: 30 | DA106: 1.057 | DB106: LSAF | DC106: IL TRM v6 vol3 | DD106: 31 | DE106: 8766 | DF106: Hours | DG106: IL TRM v6 vol3 | DH106: 30
A107: Income-Eligible Multi-Family | B107: Refrigerator - Early Replacement (future) - MF | C107: 406 | D107: Multi-Family | E107: Appliances | G107: per measure | H107: 0 | I107: IL TRM v6 vol3 | J107: 28 | K107: =ROUND((BI107-BE107),4) -> 36.9 | L107: Calculated Value | R107: =ROUND((K107/BU107)*BM107*BQ107,4) -> 0.0056 | S107: Calculated Value | U107: 8766 | V107: IL TRM v6 vol3 | W107: 30 | X107: 8 | Y107: IL TRM v6 vol3 | Z107: 28 | AA107: UEC | AB107: =BE107 -> 331.7 | AC107: IL TRM v6 vol3 | AD107: 30 | AE107: UEC | AF107: =BI107 -> 368.6 | AG107: IL TRM v6 vol3 | AH107: 30 | AI107: =ROUND((BI107-BE107),4) | AJ107: =ROUND((K107/BU107)*BM107*BQ107,4) | AK107: IL TRM v6 vol3 | AL107: 28, 30 | AM107: 2020-01-01 | AS107: 14.75 | AT107: Fresh Volume_ee (ft3) | AU107: IL TRM v6 vol3 | AV107: 31 | AW107: 6.76 | AX107: Freezer Volume_ee (ft3) | AY107: IL TRM v6 vol3 | AZ107: 31 | BA107: =ROUND(AS107+1.63*AW107,2) -> 25.77 | BB107: Adjusted Volume_ee | BC107: IL TRM v6 vol3 | BD107: 31 | BE107: =ROUND(6.11*BA107+174.2,1) -> 331.7 | BF107: UECEE | BG107: IL TRM v6 vol3 | BH107: 30 | BI107: =ROUND(6.79*BA107+193.6,1) -> 368.6 | BJ107: UECBASE | BK107: IL TRM v6 vol3 | BL107: 30 | BM107: 1.25 | BN107: TAF | BO107: IL TRM v6 vol3 | BP107: 30 | BQ107: 1.057 | BR107: LSAF | BS107: IL TRM v6 vol3 | BT107: 31 | BU107: 8766 | BV107: Hours | BW107: IL TRM v6 vol3 | BX107: 30
A108: Income-Eligible Multi-Family | B108: Commercial Grade Washing Machines | C108: 407 | D108: Common Area MF | E108: Appliances | G108: per unit | H108: 65 | I108: IL TRM v6 vol3 | J108: 8 | K108: =ROUND((AS108*1/AW108*BA108*(BE108+(BI108*BM108)+(BQ108*BU108)))-(AS108*1/BY108*BA108*(CC108+(CG108*CK108)+(CO108*CS108))),4) -> 162.7706 | L108: Calculated Value | N108: =K108/U108 ->  | O108: 0.038 | P108: IL TRM v6 vol3 | Q108: 11 | R108: =ROUND(K108/CW108*DA108,4) -> 0.021 | S108: Calculated Value | X108: 14 | Y108: IL TRM v6 vol3 | Z108: 8 | AA108: IMEF | AB108: 2.26 | AC108: IL TRM v6 vol3 | AD108: 10 | AE108: IMEF | AF108: 1.66 | AG108: IL TRM v6 vol3 | AH108: 9 | AI108: =ROUND((AS108*1/AW108*BA108*(BE108+(BI108*BM108)+(BQ108*BU108)))-(AS108*1/BY108*BA108*(CC108+(CG108*CK108)+(CO108*CS108))),4) | AJ108: =ROUND(K108/CW108*DA108,4) | AK108: IL TRM v6 vol3 | AL108: 10, 11 | AM108: 2020-01-01 | AS108: 3.45 | AT108: Capacity | AU108: IL TRM v6 vol3 | AV108: 9 | AW108: 1.66 | AX108: IMEFbase | AY108: IL TRM v6 vol3 | AZ108: 9 | BA108: 295 | BB108: Ncycles | BC108: IL TRM v6 vol3 | BD108: 9 | BE108: 0.076 | BF108: %Cwbase | BG108: IL TRM v6 vol3 | BH108: 10 | BI108: 0.312 | BJ108: %DHWbase | BK108: IL TRM v6 vol3 | BL108: 10 | BM108: 1 | BN108: %Electric_DHW | BO108: IL TRM v6 vol3 | BP108: 10 | BQ108: 0.612 | BR108: %Dryerbase | BS108: IL TRM v6 vol3 | BT108: 10 | BU108: 1 | BV108: %Electric_dryer | BW108: IL TRM v6 vol3 | BX108: 10 | BY108: 2.26 | BZ108: IMEFeff | CA108: IL TRM v6 vol3 | CB108: 10 | CC108: 0.081 | CD108: %Cweff | CE108: IL TRM v6 vol3 | CF108: 10 | CG108: 0.234 | CH108: %DHWeff | CI108: IL TRM v6 vol3 | CJ108: 10 | CK108: 1 | CL108: %Electric_DHW | CM108: IL TRM v6 vol3 | CN108: 10 | CO108: 0.685 | CP108: %Dryereff | CQ108: IL TRM v6 vol3 | CR108: 10 | CS108: 1 | CT108: %Electric_Dryer | CU108: IL TRM v6 vol3 | CV108: 10 | CW108: 295 | CX108: Hours | CY108: IL TRM v6 vol3 | CZ108: 11 | DA108: 0.038 | DB108: CF | DC108: IL TRM v6 vol3 | DD108: 9
A109: Income-Eligible Multi-Family | B109: Commercial Grade Dryers | C109: 408 | D109: Common Area MF | E109: Appliances | G109: per unit | H109: 152 | I109: IL TRM v6 vol3 | J109: 46 | K109: =ROUND((AS109/AW109-AS109/BA109)*BE109*BI109,4) -> 160.4368 | L109: Calculated Value | N109: =K109/U109 -> 0.5669144876 | O109: 0.038 | P109: IL TRM v6 vol3 | Q109: 48 | R109: =ROUND(K109/BM109*BQ109,4) -> 0.0215 | S109: Calculated Value | U109: 283 | V109: IL TRM v6 vol3 | W109: 48 | X109: 14 | Y109: IL TRM v6 vol3 | Z109: 48 | AA109: CEF | AB109: 3.93 | AC109: IL TRM v6 vol3 | AD109: 47 | AE109: CEF | AF109: 3.11 | AG109: IL TRM v6 vol3 | AH109: 47 | AI109: =ROUND((AS109/AW109-AS109/BA109)*BE109*BI109,4) | AJ109: =ROUND(K109/BM109*BQ109,4) | AK109: IL TRM v6 vol3 | AL109: 47, 48 | AM109: 2020-01-01 | AS109: 8.45 | AT109: Load | AU109: IL TRM v6 vol3 | AV109: 47 | AW109: 3.11 | AX109: CEF_base | AY109: IL TRM v6 vol3 | AZ109: 47 | BA109: 3.93 | BB109: CEF_eff | BC109: IL TRM v6 vol3 | BD109: 47 | BE109: 283 | BF109: N_cycles | BG109: IL TRM v6 vol3 | BH109: 48 | BI109: 1 | BJ109: %Electric | BK109: IL TRM v6 vol3 | BL109: 48 | BM109: 283 | BN109: Hours | BO109: IL TRM v6 vol3 | BP109: 48 | BQ109: 0.038 | BR109: CF | BS109: IL TRM v6 vol3 | BT109: 46
A110: Income-Eligible Multi-Family | B110: Shower Start 1.5 gpm electric water heater | C110: 409 | D110: Multi-Family | E110: Hot Water | G110: per unit | H110: 30 | I110: IL TRM v5 vol3 | J110: 198 | K110: =ROUND((((AF110*AW110)*BA110*BE110*BI110)/BM110)*AS110*BQ110,4) -> 46.7518 | L110: Calculated Value | N110: =K110/U110 -> 1.652007067 | O110: 0.0022 | P110: IL TRM v5 vol3 | Q110: 202 | R110: =ROUND((((AF110-AB110)*AW110*BA110*365.25)*AS110*BQ110)/U110*O110,4) -> 0.0069 | S110: Calculated Value | U110: 28.3 | V110: IL TRM v5 vol3 | W110: 202 | X110: 10 | Y110: IL TRM v5 vol3 | Z110: 198 | AA110: Low Flow (GPM) | AB110: 1.5 | AC110: Program Tracking Data | AE110: Standard (GPM) | AF110: 2.67 | AG110: IL TRM Version 5 | AH110: 199 | AI110: =ROUND((((AF110*AW110)*BA110*BE110*BI110)/BM110)*AS110*BQ110,4) | AJ110: =ROUND((((AF110-AB110)*AW110*BA110*365.25)*AS110*BQ110)/U110*O110,4) | AK110: IL TRM Version 5 | AL110: 199, 202 | AM110: 2020-01-01 | AS110: 0.117 | AT110: kWh per gallon hot water | AU110: IL TRM v5 vol3 | AV110: 201 | AW110: 0.89 | AX110: Hot water waste time avoided | AY110: IL TRM v5 vol3 | AZ110: 199 | BA110: 2.1 | BB110: Persons per household | BC110: IL TRM v5 vol3 | BD110: 200 | BE110: 0.3 | BF110: Showers per capita per day | BG110: IL TRM v5 vol3 | BH110: 200 | BI110: 365.25 | BJ110: Days per year | BK110: IL TRM v5 vol3 | BL110: 200 | BM110: 1.3 | BN110: Showers per hoursehold | BO110: IL TRM v5 vol3 | BP110: 200 | BQ110: 0.95 | BR110: In Service Rate | BS110: IL TRM v5 vol3 | BT110: 201
A111: Income-Eligible Multi-Family | B111: CAC Tune-up /Indoor Coil (Evaporator) Cleaning MF | C111: 410 | D111: Multi-Family | E111: HVAC | G111: per ton | H111: 35 | I111: WI TRM 2017 | J111: 143 | K111: =ROUND(AW111*BA111/1000*(1/(BI111*BM111)-1/BI111),4) -> 148.1408 | L111: Calculated Value | N111: =BA111/1000*(1/(BE111*BM111)-1/BE111) -> 0.2855010263 | O111: 0.9 | P111: WI TRM 2017 | Q111: 144 | R111: =ROUND(N111*O111,4) -> 0.257 | S111: Calculated Value | X111: 3 | Y111: WI TRM 2017 | Z111: 144 | AA111: Coil cleaning of packaged air conditioning unit. | AC111: WI TRM 2017 | AD111: 143 | AE111: The baseline condition is an AC system with fouled condenser coils. | AG111: WI TRM 2017 | AH111: 143 | AI111: =ROUND(AW111*BA111/1000*(1/(BI111*BM111)-1/BI111),4) | AJ111: =ROUND(N111*O111,4) | AK111: IL TRM v6 vol3 | AL111: 143, 144 | AM111: 2020-01-01 | AW111: 564 | AX111: Equivalent Full Load Hours for Mechanical Cooling | AY111: IL TRM v6 vol3 | AZ111: 127 | BA111: 36000 | BB111: Unit Cooling Capacity in Btu/hour | BC111: Installed Equipment; actual value | BE111: =-0.02*BI111^2+1.12*BI111 -> 9.2 | BF111: EER | BG111: Installed Equipment; actual nameplate EER | BI111: 10 | BJ111: SEER | BK111: Installed Equipment; actual nameplate EER | BM111: 0.932 | BN111: Condenser coil fouling efficiency degradation factor | BO111: WI TRM 2017 | BP111: 144
A112: Income-Eligible Multi-Family | B112: CAC Tune-up /Outdoor Coil (Condenser) Cleaning MF | C112: 411 | D112: Multi-Family | E112: HVAC | F112: Kits | G112: per ton | H112: 35 | I112: WI TRM 2017 | J112: 143 | K112: =ROUND(AW112*BA112/1000*(1/(BI112*BM112)-1/BI112),4) -> 148.1408 | L112: Calculated Value | N112: =BA112/1000*(1/(BE112*BM112)-1/BE112) -> 0.2855010263 | O112: 0.9 | P112: WI TRM 2017 | Q112: 144 | R112: =ROUND(N112*O112,4) -> 0.257 | S112: Calculated Value | X112: 3 | Y112: WI TRM 2017 | Z112: 144 | AA112: Coil cleaning of packaged air conditioning unit. | AC112: WI TRM 2017 | AD112: 143 | AE112: The baseline condition is an AC system with fouled condenser coils. | AG112: WI TRM 2017 | AH112: 143 | AI112: =ROUND(AW112*BA112/1000*(1/(BI112*BM112)-1/BI112),4) | AJ112: =ROUND(N112*O112,4) | AK112: IL TRM v6 vol3 | AL112: 143, 144 | AM112: 2020-01-01 | AW112: 564 | AX112: Equivalent Full Load Hours for Mechanical Cooling | AY112: IL TRM v6 vol3 | AZ112: 127 | BA112: 36000 | BB112: Unit Cooling Capacity in Btu/hour | BC112: Installed Equipment; actual value | BE112: =-0.02*BI112^2+1.12*BI112 -> 9.2 | BF112: EER | BG112: Installed Equipment; actual nameplate EER | BI112: 10 | BJ112: SEER | BK112: Installed Equipment; actual nameplate EER | BM112: 0.932 | BN112: Condenser coil fouling efficiency degradation factor | BO112: WI TRM 2017 | BP112: 144
A113: Income-Eligible Multi-Family | B113: CAC SEER 15 - Early Replacement: MF | C113: 443 | D113: Multi-Family | E113: HVAC | G113: per ton | H113: =DA113+DE113/DM113-DI113/DM113*(1+CW113)^(-X113) -> 231.514124 | I113: IL TRM v7 vol3 | J113: 77 | K113: =ROUND(((U113*AW113*(1/BA113-1/BI113))/1000),4) -> 295.2 | L113: Calculated Value | N113: =R113/O113 -> 0.3044117647 | O113: 0.68 | P113: IL TRM v6 vol3 | Q113: 73 | R113: =ROUND(((AW113*(1/BM113-1/BU113))/1000*BY113),4) -> 0.207 | S113: Calculated Value | U113: 738 | V113: EFLHcool, from 2017 MO TRM | W113: 122 | X113: 6 | Y113: IL TRM v6 vol3 | Z113: 72 | AA113: SEER | AB113: 15 | AC113: As Installed | AE113: SEER | AF113: 10 | AG113: IL TRM v6 vol3 | AH113: 74 | AI113: =ROUND(((U113*AW113*(1/BA113-1/BI113))/1000),4) | AJ113: =ROUND(((AW113*(1/BM113-1/BU113))/1000*BY113),4) | AK113: IL TRM v6 vol3 | AL113: Energy Page 73, Demand Page 75 | AM113: 2020-01-01 | AW113: 12000 | AX113: Capacity (Btu/hr) | AY113: IL TRM v6 vol3 | AZ113: 74 | BA113: 10 | BB113: SEERexist | BC113: IL TRM v6 vol3 | BD113: 74 | BE113: 13 | BF113: SEERbase | BG113: IL TRM v6 vol3 | BH113: 74 | BI113: 15 | BJ113: SEERee | BK113: Program Tracking Data | BM113: 9.2 | BN113: EERexist | BO113: IL TRM v6 vol3 | BP113: 75 | BQ113: 11.2 | BR113: EERbase | BS113: IL TRM v6 vol3 | BT113: 75 | BU113: 12 | BV113: EERee | BW113: IL TRM v6 vol3 | BX113: 75 | BY113: 0.68 | BZ113: CF | CA113: IL TRM v6 vol3 | CB113: 75 | CW113: 0.03 | CX113: Societal Discount Rate | CY113: Evergy Standard | DA113: 952 | DB113: First Cost $/ton | DC113: IL TRM v7 vol3 | DD113: 77 | DE113: 108 | DF113: One-time per-system labor cost | DG113: IL TRM v7 vol3 | DH113: 77 | DI113: 3140 | DJ113: Deferred cost savings, per UNIT | DK113: IL TRM v7 vol3 | DL113: 78 | DM113: 3.5 | DN113: Assumed average system tons | DO113: Tracking Data
A114: Income-Eligible Multi-Family | B114: CAC SEER 15 - Early Replacement: MF (future) | C114: 444 | D114: Multi-Family | E114: HVAC | G114: per ton | H114: 0 | I114: IL TRM v7 vol3 | J114: 77 | K114: 295.2 | L114: Calculated Value | N114: 0.07147058824 | O114: 0.68 | P114: IL TRM v6 vol3 | Q114: 73 | R114: =ROUND(((AW114*(1/BQ114-1/BU114))/1000*BY114),4) -> 0.0486 | S114: Calculated Value | U114: 738 | V114: EFLHcool, from 2017 MO TRM | W114: 122 | X114: 12 | Y114: IL TRM v6 vol3 | Z114: 72 | AA114: SEER | AB114: 15 | AC114: As Installed | AE114: SEER | AF114: 13 | AG114: IL TRM v6 vol3 | AH114: 74 | AI114: =ROUND(((U114*AW114*(1/BA114-1/BI114))/1000),4) | AJ114: =ROUND(((AW114*(1/BQ114-1/BU114))/1000*BY114),4) | AK114: IL TRM v6 vol3 | AL114: Energy Page 73, Demand Page 75 | AM114: 2020-01-01 | AW114: 12000 | AX114: Capacity (Btu/hr) | AY114: IL TRM v6 vol3 | AZ114: 74 | BA114: 10 | BB114: SEERexist | BC114: IL TRM v6 vol3 | BD114: 74 | BE114: 13 | BF114: SEERbase | BG114: IL TRM v6 vol3 | BH114: 74 | BI114: 15 | BJ114: SEERee | BK114: Program Tracking Data | BM114: 9.2 | BN114: EERexist | BO114: IL TRM v6 vol3 | BP114: 75 | BQ114: 11.2 | BR114: EERbase | BS114: IL TRM v6 vol3 | BT114: 75 | BU114: 12 | BV114: EERee | BW114: IL TRM v6 vol3 | BX114: 75 | BY114: 0.68 | BZ114: CF | CA114: IL TRM v6 vol3 | CB114: 75 | CW114: 0.03 | CX114: Societal Discount Rate | CY114: Evergy Standard | DA114: 952 | DB114: First Cost $/ton | DC114: IL TRM v7 vol3 | DD114: 77 | DE114: 108 | DF114: One-time per-system labor cost | DG114: IL TRM v7 vol3 | DH114: 77 | DI114: 3140 | DJ114: Deferred cost savings, per UNIT | DK114: IL TRM v7 vol3 | DL114: 78 | DM114: 3.5 | DN114: Assumed average system tons | DO114: Tracking Data
A115: Income-Eligible Multi-Family | B115: CAC SEER 15 - Replace at Fail: MF | C115: 445 | D115: Multi-Family | E115: HVAC | G115: per ton | H115: 108 | I115: IL TRM v7 vol3 | J115: 77 | K115: 295.2 | L115: Calculated Value | N115: 0.07147058824 | O115: 0.68 | P115: IL TRM v6 vol3 | Q115: 73 | R115: =ROUND(((AW115*(1/BQ115-1/BU115))/1000*BY115),4) -> 0.0486 | S115: Calculated Value | U115: 738 | V115: EFLHcool, from 2017 MO TRM | W115: 122 | X115: 18 | Y115: IL TRM v6 vol3 | Z115: 72 | AA115: SEER | AB115: 15 | AC115: As Installed | AE115: SEER | AF115: 13 | AG115: IL TRM v6 vol3 | AH115: 74 | AI115: =ROUND(((U115*AW115*(1/BA115-1/BI115))/1000),4) | AJ115: =ROUND(((AW115*(1/BQ115-1/BU115))/1000*BY115),4) | AK115: IL TRM v6 vol3 | AL115: Energy Page 73, Demand Page 75 | AM115: 2020-01-01 | AW115: 12000 | AX115: Capacity (Btu/hr) | AY115: IL TRM v6 vol3 | AZ115: 74 | BA115: 10 | BB115: SEERexist | BC115: IL TRM v6 vol3 | BD115: 74 | BE115: 13 | BF115: SEERbase | BG115: IL TRM v6 vol3 | BH115: 74 | BI115: 15 | BJ115: SEERee | BK115: Program Tracking Data | BM115: 9.2 | BN115: EERexist | BO115: IL TRM v6 vol3 | BP115: 75 | BQ115: 11.2 | BR115: EERbase | BS115: IL TRM v6 vol3 | BT115: 75 | BU115: 12 | BV115: EERee | BW115: IL TRM v6 vol3 | BX115: 75 | BY115: 0.68 | BZ115: CF | CA115: IL TRM v6 vol3 | CB115: 75
A116: Income-Eligible Multi-Family | B116: CAC SEER 16 - Early Replacement: MF | C116: 446 | D116: Multi-Family | E116: HVAC | G116: per ton | H116: =DA116+DE116/DM116-DI116/DM116*(1+CW116)^(-X116) -> 263.7998383 | I116: IL TRM v7 vol3 | J116: 77 | K116: 332.1 | L116: Calculated Value | N116: 0.3044117647 | O116: 0.68 | P116: IL TRM v6 vol3 | Q116: 73 | R116: =ROUND(((AW116*(1/BM116-1/BU116))/1000*BY116),4) -> 0.207 | S116: Calculated Value | U116: 738 | V116: EFLHcool, from 2017 MO TRM | W116: 122 | X116: 6 | Y116: IL TRM v6 vol3 | Z116: 72 | AA116: SEER | AB116: 16 | AC116: As Installed | AE116: SEER | AF116: 10 | AG116: IL TRM v6 vol3 | AH116: 74 | AI116: =ROUND(((U116*AW116*(1/BA116-1/BI116))/1000),4) | AJ116: =ROUND(((AW116*(1/BM116-1/BU116))/1000*BY116),4) | AK116: IL TRM v6 vol3 | AL116: Energy Page 73, Demand Page 75 | AM116: 2020-01-01 | AW116: 12000 | AX116: Capacity (Btu/hr) | AY116: IL TRM v6 vol3 | AZ116: 74 | BA116: 10 | BB116: SEERexist | BC116: IL TRM v6 vol3 | BD116: 74 | BE116: 13 | BF116: SEERbase | BG116: IL TRM v6 vol3 | BH116: 74 | BI116: 16 | BJ116: SEERee | BK116: Program Tracking Data | BM116: 9.2 | BN116: EERexist | BO116: IL TRM v6 vol3 | BP116: 75 | BQ116: 11.2 | BR116: EERbase | BS116: IL TRM v6 vol3 | BT116: 75 | BU116: 12 | BV116: EERee | BW116: IL TRM v6 vol3 | BX116: 75 | BY116: 0.68 | BZ116: CF | CA116: IL TRM v6 vol3 | CB116: 75 | CW116: 0.03 | CX116: Societal Discount Rate | CY116: Evergy Standard | DA116: 952 | DB116: First Cost $/ton | DC116: IL TRM v7 vol3 | DD116: 77 | DE116: 221 | DF116: One-time per-system labor cost | DG116: IL TRM v7 vol3 | DH116: 77 | DI116: 3140 | DJ116: Deferred cost savings, per UNIT | DK116: IL TRM v7 vol3 | DL116: 78 | DM116: 3.5 | DN116: Assumed average system tons | DO116: Tracking Data
A117: Income-Eligible Multi-Family | B117: CAC SEER 16 - Early Replacement: MF (future) | C117: 447 | D117: Multi-Family | E117: HVAC | G117: per ton | H117: 0 | I117: IL TRM v7 vol3 | J117: 77 | K117: 332.1 | L117: Calculated Value | N117: 0.07147058824 | O117: 0.68 | P117: IL TRM v6 vol3 | Q117: 73 | R117: =ROUND(((AW117*(1/BQ117-1/BU117))/1000*BY117),4) -> 0.0486 | S117: Calculated Value | U117: 738 | V117: EFLHcool, from 2017 MO TRM | W117: 122 | X117: 12 | Y117: IL TRM v6 vol3 | Z117: 72 | AA117: SEER | AB117: 16 | AC117: As Installed | AE117: SEER | AF117: 13 | AG117: IL TRM v6 vol3 | AH117: 74 | AI117: =ROUND(((U117*AW117*(1/BA117-1/BI117))/1000),4) | AJ117: =ROUND(((AW117*(1/BQ117-1/BU117))/1000*BY117),4) | AK117: IL TRM v6 vol3 | AL117: Energy Page 73, Demand Page 75 | AM117: 2020-01-01 | AW117: 12000 | AX117: Capacity (Btu/hr) | AY117: IL TRM v6 vol3 | AZ117: 74 | BA117: 10 | BB117: SEERexist | BC117: IL TRM v6 vol3 | BD117: 74 | BE117: 13 | BF117: SEERbase | BG117: IL TRM v6 vol3 | BH117: 74 | BI117: 16 | BJ117: SEERee | BK117: Program Tracking Data | BM117: 9.2 | BN117: EERexist | BO117: IL TRM v6 vol3 | BP117: 75 | BQ117: 11.2 | BR117: EERbase | BS117: IL TRM v6 vol3 | BT117: 75 | BU117: 12 | BV117: EERee | BW117: IL TRM v6 vol3 | BX117: 75 | BY117: 0.68 | BZ117: CF | CA117: IL TRM v6 vol3 | CB117: 75 | CW117: 0.03 | CX117: Societal Discount Rate | CY117: Evergy Standard | DA117: 952 | DB117: First Cost $/ton | DC117: IL TRM v7 vol3 | DD117: 77 | DE117: 221 | DF117: One-time per-system labor cost | DG117: IL TRM v7 vol3 | DH117: 77 | DI117: 3140 | DJ117: Deferred cost savings, per UNIT | DK117: IL TRM v7 vol3 | DL117: 78 | DM117: 3.5 | DN117: Assumed average system tons | DO117: Tracking Data
A118: Income-Eligible Multi-Family | B118: CAC SEER 16 - Replace at Fail: MF | C118: 448 | D118: Multi-Family | E118: HVAC | G118: per ton | H118: 221 | I118: IL TRM v7 vol3 | J118: 77 | K118: 332.1 | L118: Calculated Value | N118: 0.07147058824 | O118: 0.68 | P118: IL TRM v6 vol3 | Q118: 73 | R118: =ROUND(((AW118*(1/BQ118-1/BU118))/1000*BY118),4) -> 0.0486 | S118: Calculated Value | U118: 738 | V118: EFLHcool, from 2017 MO TRM | W118: 122 | X118: 18 | Y118: IL TRM v6 vol3 | Z118: 72 | AA118: SEER | AB118: 16 | AC118: As Installed | AE118: SEER | AF118: 13 | AG118: IL TRM v6 vol3 | AH118: 74 | AI118: =ROUND(((U118*AW118*(1/BA118-1/BI118))/1000),4) | AJ118: =ROUND(((AW118*(1/BQ118-1/BU118))/1000*BY118),4) | AK118: IL TRM v6 vol3 | AL118: Energy Page 73, Demand Page 75 | AM118: 2020-01-01 | AW118: 12000 | AX118: Capacity (Btu/hr) | AY118: IL TRM v6 vol3 | AZ118: 74 | BA118: 10 | BB118: SEERexist | BC118: IL TRM v6 vol3 | BD118: 74 | BE118: 13 | BF118: SEERbase | BG118: IL TRM v6 vol3 | BH118: 74 | BI118: 16 | BJ118: SEERee | BK118: Program Tracking Data | BM118: 9.2 | BN118: EERexist | BO118: IL TRM v6 vol3 | BP118: 75 | BQ118: 11.2 | BR118: EERbase | BS118: IL TRM v6 vol3 | BT118: 75 | BU118: 12 | BV118: EERee | BW118: IL TRM v6 vol3 | BX118: 75 | BY118: 0.68 | BZ118: CF | CA118: IL TRM v6 vol3 | CB118: 75
A119: Income-Eligible Multi-Family | B119: CAC SEER 17+ - Early Replacement: MF | C119: 449 | D119: Multi-Family | E119: HVAC | G119: per ton | H119: =DA119+DE119/DM119-DI119/DM119*(1+CW119)^(-X119) -> 377.7998383 | I119: IL TRM v7 vol3 | J119: 77 | K119: 364.6588 | L119: Calculated Value | N119: 0.3044117647 | O119: 0.68 | P119: IL TRM v6 vol3 | Q119: 73 | R119: =ROUND(((AW119*(1/BM119-1/BU119))/1000*BY119),4) -> 0.207 | S119: Calculated Value | U119: 738 | V119: EFLHcool, from 2017 MO TRM | W119: 122 | X119: 6 | Y119: IL TRM v6 vol3 | Z119: 72 | AA119: SEER | AB119: 17 | AC119: As Installed | AE119: SEER | AF119: 10 | AG119: IL TRM v6 vol3 | AH119: 74 | AI119: =ROUND(((U119*AW119*(1/BA119-1/BI119))/1000),4) | AJ119: =ROUND(((AW119*(1/BM119-1/BU119))/1000*BY119),4) | AK119: IL TRM v6 vol3 | AL119: Energy Page 73, Demand Page 75 | AM119: 2020-01-01 | AW119: 12000 | AX119: Capacity (Btu/hr) | AY119: IL TRM v6 vol3 | AZ119: 74 | BA119: 10 | BB119: SEERexist | BC119: IL TRM v6 vol3 | BD119: 74 | BE119: 13 | BF119: SEERbase | BG119: IL TRM v6 vol3 | BH119: 74 | BI119: 17 | BJ119: SEERee | BK119: Program Tracking Data | BM119: 9.2 | BN119: EERexist | BO119: IL TRM v6 vol3 | BP119: 75 | BQ119: 11.2 | BR119: EERbase | BS119: IL TRM v6 vol3 | BT119: 75 | BU119: 12 | BV119: EERee | BW119: IL TRM v6 vol3 | BX119: 75 | BY119: 0.68 | BZ119: CF | CA119: IL TRM v6 vol3 | CB119: 75 | CW119: 0.03 | CX119: Societal Discount Rate | CY119: Evergy Standard | DA119: 952 | DB119: First Cost $/ton | DC119: IL TRM v7 vol3 | DD119: 77 | DE119: 620 | DF119: One-time per-system labor cost | DG119: IL TRM v7 vol3 | DH119: 77 | DI119: 3140 | DJ119: Deferred cost savings, per UNIT | DK119: IL TRM v7 vol3 | DL119: 78 | DM119: 3.5 | DN119: Assumed average system tons | DO119: Tracking Data
A120: Income-Eligible Multi-Family | B120: CAC SEER 17+ - Early Replacement: MF (future) | C120: 450 | D120: Multi-Family | E120: HVAC | G120: per ton | H120: 0 | I120: IL TRM v7 vol3 | J120: 77 | K120: 364.6588 | L120: Calculated Value | N120: 0.07147058824 | O120: 0.68 | P120: IL TRM v6 vol3 | Q120: 73 | R120: =ROUND(((AW120*(1/BQ120-1/BU120))/1000*BY120),4) -> 0.0486 | S120: Calculated Value | U120: 738 | V120: EFLHcool, from 2017 MO TRM | W120: 122 | X120: 12 | Y120: IL TRM v6 vol3 | Z120: 72 | AA120: SEER | AB120: 17 | AC120: As Installed | AE120: SEER | AF120: 13 | AG120: IL TRM v6 vol3 | AH120: 74 | AI120: =ROUND(((U120*AW120*(1/BA120-1/BI120))/1000),4) | AJ120: =ROUND(((AW120*(1/BQ120-1/BU120))/1000*BY120),4) | AK120: IL TRM v6 vol3 | AL120: Energy Page 73, Demand Page 75 | AM120: 2020-01-01 | AW120: 12000 | AX120: Capacity (Btu/hr) | AY120: IL TRM v6 vol3 | AZ120: 74 | BA120: 10 | BB120: SEERexist | BC120: IL TRM v6 vol3 | BD120: 74 | BE120: 13 | BF120: SEERbase | BG120: IL TRM v6 vol3 | BH120: 74 | BI120: 17 | BJ120: SEERee | BK120: Program Tracking Data | BM120: 9.2 | BN120: EERexist | BO120: IL TRM v6 vol3 | BP120: 75 | BQ120: 11.2 | BR120: EERbase | BS120: IL TRM v6 vol3 | BT120: 75 | BU120: 12 | BV120: EERee | BW120: IL TRM v6 vol3 | BX120: 75 | BY120: 0.68 | BZ120: CF | CA120: IL TRM v6 vol3 | CB120: 75 | CW120: 0.03 | CX120: Societal Discount Rate | CY120: Evergy Standard | DA120: 952 | DB120: First Cost $/ton | DC120: IL TRM v7 vol3 | DD120: 77 | DE120: 620 | DF120: One-time per-system labor cost | DG120: IL TRM v7 vol3 | DH120: 77 | DI120: 3140 | DJ120: Deferred cost savings, per UNIT | DK120: IL TRM v7 vol3 | DL120: 78 | DM120: 3.5 | DN120: Assumed average system tons | DO120: Tracking Data
A121: Income-Eligible Multi-Family | B121: CAC SEER 17+ - Replace at Fail: MF | C121: 451 | D121: Multi-Family | E121: HVAC | G121: per ton | H121: 620 | I121: IL TRM v7 vol3 | J121: 77 | K121: 364.6588 | L121: Calculated Value | N121: 0.07147058824 | O121: 0.68 | P121: IL TRM v6 vol3 | Q121: 73 | R121: =ROUND(((AW121*(1/BQ121-1/BU121))/1000*BY121),4) -> 0.0486 | S121: Calculated Value | U121: 738 | V121: EFLHcool, from 2017 MO TRM | W121: 122 | X121: 18 | Y121: IL TRM v6 vol3 | Z121: 72 | AA121: SEER | AB121: 17 | AC121: As Installed | AE121: SEER | AF121: 13 | AG121: IL TRM v6 vol3 | AH121: 74 | AI121: =ROUND(((U121*AW121*(1/BA121-1/BI121))/1000),4) | AJ121: =ROUND(((AW121*(1/BQ121-1/BU121))/1000*BY121),4) | AK121: IL TRM v6 vol3 | AL121: Energy Page 73, Demand Page 75 | AM121: 2020-01-01 | AW121: 12000 | AX121: Capacity (Btu/hr) | AY121: IL TRM v6 vol3 | AZ121: 74 | BA121: 10 | BB121: SEERexist | BC121: IL TRM v6 vol3 | BD121: 74 | BE121: 13 | BF121: SEERbase | BG121: IL TRM v6 vol3 | BH121: 74 | BI121: 17 | BJ121: SEERee | BK121: Program Tracking Data | BM121: 9.2 | BN121: EERexist | BO121: IL TRM v6 vol3 | BP121: 75 | BQ121: 11.2 | BR121: EERbase | BS121: IL TRM v6 vol3 | BT121: 75 | BU121: 12 | BV121: EERee | BW121: IL TRM v6 vol3 | BX121: 75 | BY121: 0.68 | BZ121: CF | CA121: IL TRM v6 vol3 | CB121: 75
A122: Income-Eligible Multi-Family | B122: Ductless ASHP Replace Electric Resistance - Early Replacement: MF | C122: 453 | D122: Multi-Family | E122: HVAC | G122: per ton | H122: 3000 | I122: IL TRM v6 vol3 | J122: 137 | K122: =ROUND(2539.3656,4) -> 2539.3656 | L122: Calculated Value | N122: 0.5348611111 | O122: 0.72 | P122: IL TRM v6 vol3 | Q122: 138 | R122: =ROUND(0.3851,4) -> 0.3851 | S122: Calculated Value | X122: 6 | Y122: IL TRM v6 vol3 | Z122: 137 | AI122: =ROUND(2539.3656,4) | AJ122: =ROUND(0.3851,4) | AK122: IL TRM v6 vol3 | AL122: 139142 | AM122: 2020-01-01
A123: Income-Eligible Multi-Family | B123: Ductless ASHP Replace Electric Resistance - Early Replacement: MF (future) | C123: 454 | D123: Multi-Family | E123: HVAC | G123: per ton | H123: 0 | I123: IL TRM v6 vol3 | J123: 137 | K123: =ROUND(194.4823,4) -> 194.4823 | L123: Calculated Value | N123: 0.07944444444 | O123: 0.72 | P123: IL TRM v6 vol3 | Q123: 138 | R123: =ROUND(0.0572,4) -> 0.0572 | S123: Calculated Value | X123: 12 | Y123: IL TRM v6 vol3 | Z123: 137 | AI123: =ROUND(194.4823,4) | AJ123: =ROUND(0.0572,4) | AK123: IL TRM v6 vol3 | AL123: 139142 | AM123: 2020-01-01
A124: Income-Eligible Multi-Family | B124: ASHP SEER 16 - replace electric furnace / CAC - Early Replacement: MF | C124: 462 | D124: Multi-Family | E124: HVAC | G124: per ton | H124: =DA124+DE124/DM124-DI124*(1+CW124)^(-X124) -> 234.8417555 | I124: IL TRM v7 vol3 | J124: 64 | K124: =ROUND(((U124*AS124*(1/(AF124*(1-BY124))-1/(AB124*CC124*(1-CG124))))/1000)+((BQ124*AS124*(1/(BA124*(1-CK124))-1/(AW124*CO124*(1-CS124))))/1000),4) -> 3791.6941 | L124: Calculated Value | N124: =R124 -> 0.4953 | O124: 0.67 | P124: IL TRM v7 vol3 | Q124: 65 | R124: =ROUND((AS124*(1/(BI124*(1-BY124))-1/(BE124*(1-CG124))))/1000*O124,4) -> 0.4953 | S124: Calculated Value | U124: 738 | V124: EFLHcool, from 2017 MO TRM | W124: 85 | X124: 6 | Y124: IL TRM v7 vol3 | Z124: 64 | AA124: SEERee | AB124: 16.08 | AC124: per PY2018 Metadata WHE | AE124: SEERexist | AF124: 9.3 | AG124: IL TRM v7 vol3 | AH124: 66 | AI124: =ROUND((BQ53*AW53*(1/AJ53-1/AF53))/1000+(BU53*AW53*(1/BE53-1/BA53)/1000),4) | AJ124: =ROUND((AW53*(1/BM53-1/BI53)/1000)*S53,4) | AK124: IL TRM v7 vol3 | AL124: 65, 69 | AM124: 2020-01-01 | AS124: 12000 | AT124: Allows for Capacity input in Tons; converts tons to BTUs | AW124: 8.978571429 | AX124: HSPFee | AY124: per PY2018 Metadata WHE | BA124: 3.41 | BB124: HSPFbase | BC124: IL TRM v7 vol3 | BD124: 68 | BE124: 12.838272 | BF124: EERee | BG124: Calculated per PY2018 Metadata WHE | BI124: 7.5 | BJ124: EERexist | BK124: IL TRM v7 vol3 | BL124: 70 | BM124: 738 | BN124: EFLHcool | BO124: EFLHcool, from 2017 MO TRM | BP124: 85 | BQ124: 1376 | BR124: EFLHheat | BS124: The EFLH Cooling and Heating hours are based on a EnergyStar study that was normalized (based on HDD and CDD) to Kansas City. This was for both AC and HP units. | BU124: 3.41 | BV124: HSPFexist | BW124: IL TRM v7 vol3 | BX124: 68 | BY124: 0.1 | BZ124: Derating_Cool_Base | CA124: IL TRM v7 vol3 | CB124: 67 | CC124: 1.011 | CD124: SEERadj | CE124: IL TRM v7 vol3 | CF124: 69 (example) | CG124: 0.1 | CH124: Derating_Cool_Eff | CI124: IL TRM v7 vol3 | CJ124: 67 | CK124: 0.1 | CL124: Derating_Heat_Base | CM124: IL TRM v7 vol3 | CN124: 68 | CO124: 1.001 | CP124: HSPFadj | CQ124: IL TRM v7 vol3 | CR124: 69 (example) | CS124: 0.1 | CT124: Derating_Heat_Eff | CU124: IL TRM v7 vol3 | CV124: 68 | CW124: 0.03 | CX124: Societal Discount Rate | CY124: Evergy Standard | DA124: 1381 | DB124: First Cost $/ton | DC124: IL TRM v7 vol3 | DD124: 64 | DE124: 438 | DF124: One-time per-system labor cost | DG124: IL TRM v7 vol3 | DH124: 64 | DI124: 1518 | DJ124: Deferred cost savings | DK124: IL TRM v7 vol3 | DL124: 65 | DM124: 3.5 | DN124: Assumed average system tons | DO124: Tracking Data
A125: Income-Eligible Multi-Family | B125: ASHP SEER 16 - replace electric furnace / CAC - Early Replacement: MF (future) | C125: 463 | D125: Multi-Family | E125: HVAC | G125: per ton | H125: 0 | I125: IL TRM v7 vol3 | J125: 65 | K125: 293.6309 | L125: Calculated Value | N125: 0.1163 | O125: 0.67 | P125: IL TRM v7 vol3 | Q125: 65 | R125: 0.1163 | S125: Calculated Value | U125: 738 | V125: EFLHcool, from 2017 MO TRM | W125: 85 | X125: 10 | Y125: IL TRM v7 vol3 | Z125: 64 | AA125: SEERee | AB125: 16.08 | AC125: per PY2018 Metadata WHE | AE125: SEERbase | AF125: 14 | AG125: IL TRM v7 vol3 | AH125: 67 | AI125: =ROUND((CC54*AW54*(1/BQ54-1/AF54))/1000+(CG54*AW54*(1/BY54-1/BA54)/1000),4) | AJ125: =ROUND((AW54*(1/BU54-1/BI54)/1000)*S54,4) | AK125: IL TRM v7 vol3 | AL125: 65, 69 | AM125: 2020-01-01 | AS125: 12000 | AT125: Allows for Capacity input in Tons; converts tons to BTUs | AW125: 8.978571429 | AX125: HSPFee | AY125: per PY2018 Metadata WHE | BA125: 8.2 | BB125: HSPFexist | BC125: IL TRM v7 vol3 | BD125: 68 | BE125: 12.838272 | BF125: EERee | BG125: Calculated per PY2018 Metadata WHE | BI125: 11 | BJ125: EERbase | BK125: IL TRM v7 vol3 | BL125: 70 | BM125: 738 | BN125: EFLHcool | BO125: EFLHcool, from 2017 MO TRM | BP125: 85 | BQ125: 1376 | BR125: EFLHheat | BS125: The EFLH Cooling and Heating hours are based on a EnergyStar study that was normalized (based on HDD and CDD) to Kansas City. This was for both AC and HP units. | BU125: 8.2 | BV125: HSPFbase | BW125: IL TRM v7 vol3 | BX125: 68 | BY125: 0.1 | BZ125: Derating_Cool_Base | CA125: IL TRM v7 vol3 | CB125: 67 | CC125: 1.011 | CD125: SEERadj | CE125: IL TRM v7 vol3 | CF125: 69 (example) | CG125: 0.1 | CH125: Derating_Cool_Eff | CI125: IL TRM v7 vol3 | CJ125: 67 | CK125: 0.1 | CL125: Derating_Heat_Base | CM125: IL TRM v7 vol3 | CN125: 68 | CO125: 1.001 | CP125: HSPFadj | CQ125: IL TRM v7 vol3 | CR125: 69 (example) | CS125: 0.1 | CT125: Derating_Heat_Eff | CU125: IL TRM v7 vol3 | CV125: 68 | CW125: 0.03 | CX125: Societal Discount Rate | CY125: Evergy Standard | DA125: 1381 | DB125: First Cost $/ton | DC125: IL TRM v7 vol3 | DD125: 64 | DE125: 438 | DF125: One-time per-system labor cost | DG125: IL TRM v7 vol3 | DH125: 64 | DI125: 1518 | DJ125: Deferred cost savings | DK125: IL TRM v7 vol3 | DL125: 65 | DM125: 3.5 | DN125: Assumed average system tons | DO125: Tracking Data
A126: Income-Eligible Multi-Family | B126: ASHP SEER 16 - replace electric furnace / CAC: MF | C126: 455 | D126: Multi-Family | E126: HVAC | G126: per ton | H126: =438/3.5 -> 125.1428571 | I126: IL TRM v7 vol3 | J126: 64 | K126: 312.3281 | L126: Calculated Value | N126: 0.1045 | O126: 0.67 | P126: IL TRM v7 vol3 | Q126: 65 | R126: 0.1045 | S126: Calculated Value | U126: 738 | V126: EFLHcool, from 2017 MO TRM | W126: 85 | X126: 16 | Y126: IL TRM v7 vol3 | Z126: 64 | AA126: SEERee | AB126: 16.11 | AC126: per PY2018 Metadata WHE | AE126: SEERbase | AF126: 14 | AG126: IL TRM v7 vol3 | AH126: 66 | AI126: =cellformula(K126) -> =ROUND(((U126*AS126*(1/(AF126*(1-BY126))-1/(AB126*CC126*(1-CG126))))/1000)+((BQ126*AS126*(1/(BA126*(1-CK126))-1/(AW126*CO126*(1-CS126))))/1000),4) | AJ126: =cellformula(R126) -> =ROUND((AS126*(1/(BI126*(1-BY126))-1/(BE126*(1-CG126))))/1000*O126,4) | AK126: IL TRM v7 vol3 | AL126: 65, 69 | AM126: 2020-01-01 | AS126: 12000 | AT126: Allows for Capacity input in Tons; converts tons to BTUs | AW126: 9.056521739 | AX126: HSPFee | AY126: per PY2018 Metadata WHE | BA126: 8.2 | BB126: HSPFbase | BC126: IL TRM v7 vol3 | BD126: 68 | BE126: 12.625 | BF126: EERee | BG126: Calculated per PY2018 Metadata WHE | BI126: 11 | BJ126: EERbase | BK126: IL TRM v7 vol3 | BL126: 70 | BM126: 738 | BN126: EFLHcool | BO126: EFLHcool, from 2017 MO TRM | BP126: 85 | BQ126: 1376 | BR126: EFLHheat | BS126: The EFLH Cooling and Heating hours are based on a EnergyStar study that was normalized (based on HDD and CDD) to Kansas City. This was for both AC and HP units. | BU126: 8.2 | BV126: HSPFbase | BW126: IL TRM v7 vol3 | BX126: 68 | BY126: 0.1 | BZ126: Derating_Cool_Base | CA126: IL TRM v7 vol3 | CB126: 67 | CC126: 1.011 | CD126: SEERadj | CE126: IL TRM v7 vol3 | CF126: 69 (example) | CG126: 0.1 | CH126: Derating_Cool_Eff | CI126: IL TRM v7 vol3 | CJ126: 67 | CK126: 0.1 | CL126: Derating_Heat_Base | CM126: IL TRM v7 vol3 | CN126: 68 | CO126: 1.001 | CP126: HSPFadj | CQ126: IL TRM v7 vol3 | CR126: 69 (example) | CS126: 0.1 | CT126: Derating_Heat_Eff | CU126: IL TRM v7 vol3 | CV126: 68
A127: Income-Eligible Multi-Family | B127: ASHP SEER 17 - replace electric furnace / CAC: MF | C127: 456 | D127: Multi-Family | E127: HVAC | G127: per ton | H127: =724/3.5 -> 206.8571429 | I127: IL TRM v7 vol3 | J127: 64 | K127: 503.9911 | L127: Calculated Value | N127: 0.2431 | O127: 0.67 | P127: IL TRM v7 vol3 | Q127: 65 | R127: 0.2431 | S127: Calculated Value | U127: 738 | V127: EFLHcool, from 2017 MO TRM | W127: 85 | X127: 16 | Y127: IL TRM v7 vol3 | Z127: 64 | AA127: SEERee | AB127: 18.27 | AC127: per PY2018 Metadata WHE | AE127: SEERbase | AF127: 14 | AG127: IL TRM v7 vol3 | AH127: 66 | AI127: =cellformula(K127) -> =ROUND(((U127*AS127*(1/(AF127*(1-BY127))-1/(AB127*CC127*(1-CG127))))/1000)+((BQ127*AS127*(1/(BA127*(1-CK127))-1/(AW127*CO127*(1-CS127))))/1000),4) | AJ127: =cellformula(R127) -> =ROUND((AS127*(1/(BI127*(1-BY127))-1/(BE127*(1-CG127))))/1000*O127,4) | AK127: IL TRM v7 vol3 | AL127: 65, 69 | AM127: 2020-01-01 | AS127: 12000 | AT127: Allows for Capacity input in Tons; converts tons to BTUs | AW127: 9.628571429 | AX127: HSPFee | AY127: per PY2018 Metadata WHE | BA127: 8.2 | BB127: HSPFbase | BC127: IL TRM v7 vol3 | BD127: 68 | BE127: 15.7 | BF127: EERee | BG127: Calculated per PY2018 Metadata WHE | BI127: 11 | BJ127: EERbase | BK127: IL TRM v7 vol3 | BL127: 70 | BM127: 738 | BN127: EFLHcool | BO127: EFLHcool, from 2017 MO TRM | BP127: 85 | BQ127: 1376 | BR127: EFLHheat | BS127: The EFLH Cooling and Heating hours are based on a EnergyStar study that was normalized (based on HDD and CDD) to Kansas City. This was for both AC and HP units. | BU127: 8.2 | BV127: HSPFbase | BW127: IL TRM v7 vol3 | BX127: 68 | BY127: 0.1 | BZ127: Derating_Cool_Base | CA127: IL TRM v7 vol3 | CB127: 67 | CC127: 1.011 | CD127: SEERadj | CE127: IL TRM v7 vol3 | CF127: 69 (example) | CG127: 0.1 | CH127: Derating_Cool_Eff | CI127: IL TRM v7 vol3 | CJ127: 67 | CK127: 0.1 | CL127: Derating_Heat_Base | CM127: IL TRM v7 vol3 | CN127: 68 | CO127: 1.001 | CP127: HSPFadj | CQ127: IL TRM v7 vol3 | CR127: 69 (example) | CS127: 0.1 | CT127: Derating_Heat_Eff | CU127: IL TRM v7 vol3 | CV127: 68
A128: Income-Eligible Multi-Family | B128: ASHP SEER 18 - replace electric furnace / CAC: MF | C128: 457 | D128: Multi-Family | E128: HVAC | G128: per ton | H128: =724/3.5 -> 206.8571429 | I128: IL TRM v7 vol3 | J128: 64 | K128: 496.0001 | L128: Calculated Value | N128: 0.2431 | O128: 0.67 | P128: IL TRM v7 vol3 | Q128: 65 | R128: 0.2431 | S128: Calculated Value | U128: 738 | V128: EFLHcool, from 2017 MO TRM | W128: 85 | X128: 16 | Y128: IL TRM v7 vol3 | Z128: 64 | AA128: SEERee | AB128: 18 | AC128: Measure Definition | AE128: SEERbase | AF128: 14 | AG128: IL TRM v7 vol3 | AH128: 66 | AI128: =cellformula(K128) -> =ROUND(((U128*AS128*(1/(AF128*(1-BY128))-1/(AB128*CC128*(1-CG128))))/1000)+((BQ128*AS128*(1/(BA128*(1-CK128))-1/(AW128*CO128*(1-CS128))))/1000),4) | AJ128: =cellformula(R128) -> =ROUND((AS128*(1/(BI128*(1-BY128))-1/(BE128*(1-CG128))))/1000*O128,4) | AK128: IL TRM v7 vol3 | AL128: 65, 69 | AM128: 2020-01-01 | AS128: 12000 | AT128: Allows for Capacity input in Tons; converts tons to BTUs | AW128: 9.628571429 | AX128: HSPFee | AY128: per PY2018 Metadata WHE (borrowed from SEER 17 measure) | BA128: 8.2 | BB128: HSPFbase | BC128: IL TRM v7 vol3 | BD128: 68 | BE128: 15.7 | BF128: EERee | BG128: Calculated per PY2018 Metadata WHE (borrowed from SEER 17 measure) | BI128: 11 | BJ128: EERbase | BK128: IL TRM v7 vol3 | BL128: 70 | BM128: 738 | BN128: EFLHcool | BO128: EFLHcool, from 2017 MO TRM | BP128: 85 | BQ128: 1376 | BR128: EFLHheat | BS128: The EFLH Cooling and Heating hours are based on a EnergyStar study that was normalized (based on HDD and CDD) to Kansas City. This was for both AC and HP units. | BU128: 8.2 | BV128: HSPFbase | BW128: IL TRM v7 vol3 | BX128: 68 | BY128: 0.1 | BZ128: Derating_Cool_Base | CA128: IL TRM v7 vol3 | CB128: 67 | CC128: 1.011 | CD128: SEERadj | CE128: IL TRM v7 vol3 | CF128: 69 (example) | CG128: 0.1 | CH128: Derating_Cool_Eff | CI128: IL TRM v7 vol3 | CJ128: 67 | CK128: 0.1 | CL128: Derating_Heat_Base | CM128: IL TRM v7 vol3 | CN128: 68 | CO128: 1.001 | CP128: HSPFadj | CQ128: IL TRM v7 vol3 | CR128: 69 (example) | CS128: 0.1 | CT128: Derating_Heat_Eff | CU128: IL TRM v7 vol3 | CV128: 68
A129: Income-Eligible Multi-Family | B129: ASHP SEER 17 - replace ASHP - Early Replacement: MF | C129: 458 | D129: Multi-Family | E129: HVAC | G129: per ton | H129: =DA129+DE129/DM129-DI129*(1+CW129)^(-X129) -> 316.5560412 | I129: IL TRM v7 vol3 | J129: 64 | K129: 1797.7003 | L129: Calculated Value | N129: 0.5444 | O129: 0.67 | P129: IL TRM v7 vol3 | Q129: 65 | R129: 0.5444 | S129: Calculated Value | U129: 738 | V129: EFLHcool, from 2017 MO TRM | W129: 85 | X129: 6 | Y129: IL TRM v7 vol3 | Z129: 64 | AA129: SEERee | AB129: 18.34 | AC129: per PY2018 Metadata WHE | AE129: SEERexist | AF129: 9.3 | AG129: IL TRM v7 vol3 | AH129: 66 | AI129: =ROUND((BQ58*AW58*(1/AJ58-1/AF58))/1000+(BU58*AW58*(1/BE58-1/BA58)/1000),4) | AJ129: =ROUND((AW58*(1/BM58-1/BI58)/1000)*S58,4) | AK129: IL TRM v7 vol3 | AL129: 65, 69 | AM129: 2020-01-01 | AS129: 12000 | AT129: Allows for Capacity input in Tons; converts tons to BTUs | AW129: 8.978571429 | AX129: HSPFee | AY129: per PY2018 Metadata WHE | BA129: 5.54 | BB129: HSPFbase | BC129: IL TRM v7 vol3 | BD129: 68 | BE129: 13.813688 | BF129: EERee | BG129: Calculated per PY2018 Metadata WHE | BI129: 7.5 | BJ129: EERexist | BK129: IL TRM v7 vol3 | BL129: 70 | BM129: 738 | BN129: EFLHcool | BO129: EFLHcool, from 2017 MO TRM | BP129: 85 | BQ129: 1376 | BR129: EFLHheat | BS129: The EFLH Cooling and Heating hours are based on a EnergyStar study that was normalized (based on HDD and CDD) to Kansas City. This was for both AC and HP units. | BU129: 5.54 | BV129: HSPFexist | BW129: IL TRM v7 vol3 | BX129: 68 | BY129: 0.1 | BZ129: Derating_Cool_Base | CA129: IL TRM v7 vol3 | CB129: 67 | CC129: 1.011 | CD129: SEERadj | CE129: IL TRM v7 vol3 | CF129: 69 (example) | CG129: 0.1 | CH129: Derating_Cool_Eff | CI129: IL TRM v7 vol3 | CJ129: 67 | CK129: 0.1 | CL129: Derating_Heat_Base | CM129: IL TRM v7 vol3 | CN129: 68 | CO129: 1.001 | CP129: HSPFadj | CQ129: IL TRM v7 vol3 | CR129: 69 (example) | CS129: 0.1 | CT129: Derating_Heat_Eff | CU129: IL TRM v7 vol3 | CV129: 68 | CW129: 0.03 | CX129: Societal Discount Rate | CY129: Evergy Standard | DA129: 1381 | DB129: First Cost $/ton | DC129: IL TRM v7 vol3 | DD129: 64 | DE129: 724 | DF129: One-time per-system labor cost | DG129: IL TRM v7 vol3 | DH129: 64 | DI129: 1518 | DJ129: Deferred cost savings | DK129: IL TRM v7 vol3 | DL129: 65 | DM129: 3.5 | DN129: Assumed average system tons | DO129: Tracking Data
A130: Income-Eligible Multi-Family | B130: ASHP SEER 17 - replace ASHP - Early Replacement: MF (future) | C130: 459 | D130: Multi-Family | E130: HVAC | G130: per ton | H130: 0 | I130: IL TRM v7 vol3 | J130: 65 | K130: 395.4579 | L130: Calculated Value | N130: 0.1654 | O130: 0.67 | P130: IL TRM v7 vol3 | Q130: 65 | R130: 0.1654 | S130: Calculated Value | U130: 738 | V130: EFLHcool, from 2017 MO TRM | W130: 85 | X130: 10 | Y130: IL TRM v7 vol3 | Z130: 64 | AA130: SEERee | AB130: 18.34 | AC130: per PY2018 Metadata WHE | AE130: SEERbase | AF130: 14 | AG130: IL TRM v7 vol3 | AH130: 67 | AI130: =ROUND((CC59*AW59*(1/BQ59-1/AF59))/1000+(CG59*AW59*(1/BY59-1/BA59)/1000),4) | AJ130: =ROUND((AW59*(1/BU59-1/BI59)/1000)*S59,4) | AK130: IL TRM v7 vol3 | AL130: 65, 69 | AM130: 2020-01-01 | AS130: 12000 | AT130: Allows for Capacity input in Tons; converts tons to BTUs | AW130: 9.1 | AX130: HSPFee | AY130: per PY2018 Metadata WHE | BA130: 8.2 | BB130: HSPFexist | BC130: IL TRM v7 vol3 | BD130: 68 | BE130: 13.813688 | BF130: EERee | BG130: Calculated per PY2018 Metadata WHE | BI130: 11 | BJ130: EERbase | BK130: IL TRM v7 vol3 | BL130: 70 | BM130: 738 | BN130: EFLHcool | BO130: EFLHcool, from 2017 MO TRM | BP130: 85 | BQ130: 1376 | BR130: EFLHheat | BS130: The EFLH Cooling and Heating hours are based on a EnergyStar study that was normalized (based on HDD and CDD) to Kansas City. This was for both AC and HP units. | BU130: 8.2 | BV130: HSPFbase | BW130: IL TRM v7 vol3 | BX130: 68 | BY130: 0.1 | BZ130: Derating_Cool_Base | CA130: IL TRM v7 vol3 | CB130: 67 | CC130: 1.011 | CD130: SEERadj | CE130: IL TRM v7 vol3 | CF130: 69 (example) | CG130: 0.1 | CH130: Derating_Cool_Eff | CI130: IL TRM v7 vol3 | CJ130: 67 | CK130: 0.1 | CL130: Derating_Heat_Base | CM130: IL TRM v7 vol3 | CN130: 68 | CO130: 1.001 | CP130: HSPFadj | CQ130: IL TRM v7 vol3 | CR130: 69 (example) | CS130: 0.1 | CT130: Derating_Heat_Eff | CU130: IL TRM v7 vol3 | CV130: 68 | CW130: 0.03 | CX130: Societal Discount Rate | CY130: Evergy Standard | DA130: 1381 | DB130: First Cost $/ton | DC130: IL TRM v7 vol3 | DD130: 64 | DE130: 724 | DF130: One-time per-system labor cost | DG130: IL TRM v7 vol3 | DH130: 64 | DI130: 1518 | DJ130: Deferred cost savings | DK130: IL TRM v7 vol3 | DL130: 65 | DM130: 3.5 | DN130: Assumed average system tons | DO130: Tracking Data
A131: Income-Eligible Multi-Family | B131: ASHP SEER 18 - replace ASHP - Early Replacement: MF | C131: 460 | D131: Multi-Family | E131: HVAC | G131: per ton | H131: =DA131+DE131/DM131-DI131*(1+CW131)^(-X131) -> 316.5560412 | I131: IL TRM v7 vol3 | J131: 64 | K131: 1925.4818 | L131: Calculated Value | N131: 0.6221 | O131: 0.67 | P131: IL TRM v7 vol3 | Q131: 65 | R131: 0.6221 | S131: Calculated Value | U131: 738 | V131: EFLHcool, from 2017 MO TRM | W131: 85 | X131: 6 | Y131: IL TRM v7 vol3 | Z131: 64 | AA131: SEERee | AB131: 18 | AC131: Measure Definition | AE131: SEERexist | AF131: 9.3 | AG131: IL TRM v7 vol3 | AH131: 66 | AI131: =cellformula(K131) -> =ROUND(((U131*AS131*(1/(AF131*(1-BY131))-1/(AB131*CC131*(1-CG131))))/1000)+((BQ131*AS131*(1/(BA131*(1-CK131))-1/(AW131*CO131*(1-CS131))))/1000),4) | AJ131: =cellformula(R131) -> =ROUND((AS131*(1/(BI131*(1-BY131))-1/(BE131*(1-CG131))))/1000*O131,4) | AK131: IL TRM v7 vol3 | AL131: 65, 69 | AM131: 2020-01-01 | AS131: 12000 | AT131: Allows for Capacity input in Tons; converts tons to BTUs | AW131: 9.628571429 | AX131: HSPFee | AY131: per PY2018 Metadata WHE (borrowed from SEER 17 measure) | BA131: 5.54 | BB131: HSPFbase | BC131: IL TRM v7 vol3 | BD131: 68 | BE131: 15.7 | BF131: EERee | BG131: Calculated per PY2018 Metadata WHE (borrowed from SEER 17 measure) | BI131: 7.5 | BJ131: EERexist | BK131: IL TRM v7 vol3 | BL131: 70 | BM131: 738 | BN131: EFLHcool | BO131: EFLHcool, from 2017 MO TRM | BP131: 85 | BQ131: 1376 | BR131: EFLHheat | BS131: The EFLH Cooling and Heating hours are based on a EnergyStar study that was normalized (based on HDD and CDD) to Kansas City. This was for both AC and HP units. | BU131: 5.54 | BV131: HSPFexist | BW131: IL TRM v7 vol3 | BX131: 68 | BY131: 0.1 | BZ131: Derating_Cool_Base | CA131: IL TRM v7 vol3 | CB131: 67 | CC131: 1.011 | CD131: SEERadj | CE131: IL TRM v7 vol3 | CF131: 69 (example) | CG131: 0.1 | CH131: Derating_Cool_Eff | CI131: IL TRM v7 vol3 | CJ131: 67 | CK131: 0.1 | CL131: Derating_Heat_Base | CM131: IL TRM v7 vol3 | CN131: 68 | CO131: 1.001 | CP131: HSPFadj | CQ131: IL TRM v7 vol3 | CR131: 69 (example) | CS131: 0.1 | CT131: Derating_Heat_Eff | CU131: IL TRM v7 vol3 | CV131: 68 | CW131: 0.03 | CX131: Societal Discount Rate | CY131: Evergy Standard | DA131: 1381 | DB131: First Cost $/ton | DC131: IL TRM v7 vol3 | DD131: 64 | DE131: 724 | DF131: One-time per-system labor cost | DG131: IL TRM v7 vol3 | DH131: 64 | DI131: 1518 | DJ131: Deferred cost savings | DK131: IL TRM v7 vol3 | DL131: 65 | DM131: 3.5 | DN131: Assumed average system tons | DO131: Tracking Data
A132: Income-Eligible Multi-Family | B132: ASHP SEER 18 - replace ASHP - Early Replacement: MF (future) | C132: 461 | D132: Multi-Family | E132: HVAC | G132: per ton | H132: 0 | I132: IL TRM v7 vol3 | J132: 65 | K132: 496.0001 | L132: Calculated Value | N132: 0.2431 | O132: 0.67 | P132: IL TRM v7 vol3 | Q132: 65 | R132: 0.2431 | S132: Calculated Value | U132: 738 | V132: EFLHcool, from 2017 MO TRM | W132: 85 | X132: 10 | Y132: IL TRM v7 vol3 | Z132: 64 | AA132: SEERee | AB132: 18 | AC132: Measure Definition | AE132: SEERbase | AF132: 14 | AG132: IL TRM v7 vol3 | AH132: 67 | AI132: =ROUND(((U132*AS132*(1/(AF132*(1-BY132))-1/(AB132*CC132*(1-CG132))))/1000)+((BQ132*AS132*(1/(BA132*(1-CK132))-1/(AW132*CO132*(1-CS132))))/1000),4) | AJ132: =ROUND((AS132*(1/(BI132*(1-BY132))-1/(BE132*(1-CG132))))/1000*O132,4) | AK132: IL TRM v7 vol3 | AL132: 65, 69 | AM132: 2020-01-01 | AS132: 12000 | AT132: Allows for Capacity input in Tons; converts tons to BTUs | AW132: 9.628571429 | AX132: HSPFee | AY132: per PY2018 Metadata WHE (borrowed from SEER 17 measure) | BA132: 8.2 | BB132: HSPFexist | BC132: IL TRM v7 vol3 | BD132: 68 | BE132: 15.7 | BF132: EERee | BG132: Calculated per PY2018 Metadata WHE (borrowed from SEER 17 measure) | BI132: 11 | BJ132: EERbase | BK132: IL TRM v7 vol3 | BL132: 70 | BM132: 738 | BN132: EFLHcool | BO132: EFLHcool, from 2017 MO TRM | BP132: 85 | BQ132: 1376 | BR132: EFLHheat | BS132: The EFLH Cooling and Heating hours are based on a EnergyStar study that was normalized (based on HDD and CDD) to Kansas City. This was for both AC and HP units. | BU132: 8.2 | BV132: HSPFbase | BW132: IL TRM v7 vol3 | BX132: 68 | BY132: 0.1 | BZ132: Derating_Cool_Base | CA132: IL TRM v7 vol3 | CB132: 67 | CC132: 1.011 | CD132: SEERadj | CE132: IL TRM v7 vol3 | CF132: 69 (example) | CG132: 0.1 | CH132: Derating_Cool_Eff | CI132: IL TRM v7 vol3 | CJ132: 67 | CK132: 0.1 | CL132: Derating_Heat_Base | CM132: IL TRM v7 vol3 | CN132: 68 | CO132: 1.001 | CP132: HSPFadj | CQ132: IL TRM v7 vol3 | CR132: 69 (example) | CS132: 0.1 | CT132: Derating_Heat_Eff | CU132: IL TRM v7 vol3 | CV132: 68 | CW132: 0.03 | CX132: Societal Discount Rate | CY132: Evergy Standard | DA132: 1381 | DB132: First Cost $/ton | DC132: IL TRM v7 vol3 | DD132: 64 | DE132: 724 | DF132: One-time per-system labor cost | DG132: IL TRM v7 vol3 | DH132: 64 | DI132: 1518 | DJ132: Deferred cost savings | DK132: IL TRM v7 vol3 | DL132: 65 | DM132: 3.5 | DN132: Assumed average system tons | DO132: Tracking Data
A133: Residential Demand Response | B133: Smart Thermostat | C133: 65.2 | D133: All | E133: HVAC | G133: per unit | H133: 350 | I133: Program Tracking Data | K133: =ROUND(197,4) -> 197 | L133: Navigant PY2017 Regression Analysis of participant monthly billing data from May 2017 through April 2018 | R133: =ROUND(1.4,4) -> 1.4 | S133: Navigant PY2017 Regression Analysis of participant hourly interval usage data for DR events during the summer of 2017 | X133: 10 | Y133: IL TRM v6 vol3 | Z133: 160 | AA133: PCT | AE133: No PCT | AI133: =ROUND(197,4) | AJ133: =ROUND(1.4,4) | AM133: 2020-01-01
A134: Residential Demand Response | B134: Smart Thermostat - BYO | C134: 311 | D134: All | E134: HVAC | G134: per unit | H134: 250 | I134: Program Tracking Data | K134: =ROUND(197,4) -> 197 | L134: Navigant PY2017 Regression Analysis of participant monthly billing data from May 2017 through April 2018 | R134: =ROUND(1.4,4) -> 1.4 | S134: Navigant PY2017 Regression Analysis of participant hourly interval usage data for DR events during the summer of 2017 | X134: 10 | Y134: IL TRM v6 vol3 | Z134: 160 | AA134: PCT | AE134: No PCT | AI134: =ROUND(197,4) | AJ134: =ROUND(1.4,4) | AM134: 2020-01-01
A135: Residential Demand Response | B135: DR Water Heater DLC | C135: 308 | D135: All | E135: Hot Water | G135: per customer | H135: 200 | I135: MN TRM v2.2 | J135: 357 | K135: =ROUND(0.4,4) -> 0.4 | L135: Calculated Value | R135: =ROUND(0.6,4) -> 0.6 | S135: Calculated Value | X135: 15 | Y135: MN TRM v2.2 | Z135: 355 | AA135: Electric water heater during curtailment event. | AE135: Electric water heater on non-curtailment event days. | AI135: =ROUND(0.4,4) | AJ135: =ROUND(0.6,4) | AM135: 2020-01-01 | AS135: Average # of events | AT135: Average number of load control events during a typical year, provided by utility, assumed to be 2 based on MN TRM v2.2.
A136: Business Smart Thermostat | B136: Smart Thermostat | C136: 66.2 | D136: All | E136: HVAC | G136: per unit | H136: 350 | I136: Program Tracking Data | K136: =ROUND(197,4) -> 197 | L136: Navigant PY2017 Regression Analysis of participant monthly billing data from May 2017 through April 2018 | R136: =ROUND(1.4,4) -> 1.4 | S136: Navigant PY2017 Regression Analysis of participant hourly interval usage data for DR events during the summer of 2017 | X136: 10 | Y136: IL TRM v6 vol3 | Z136: 160 | AA136: PCT | AE136: No PCT | AI136: =ROUND(197,4) | AJ136: =ROUND(1.4,4) | AM136: 2020-01-01
A137: Business Standard | B137: Interior Daylighting Controls Replacing No Controls | C137: 67.2 | D137: Small C&I | E137: Lighting | G137: per sensor | H137: 66 | I137: Program Tracking Data | K137: 692.634 | L137: Calculated Value | N137: 0.21316318 | O137: 0.66 | P137: IL TRM v6 vol2 | Q137: 338 | R137: 0.1407 | S137: Calculated Value | U137: 3088 | V137: IL TRM v6 vol2 | W137: 338 | X137: 8 | Y137: IL TRM v6 vol2 | Z137: 402 | AA137: Photocell Occupancy Sensor | AB137: 587 | AC137: Program Tracking Database (watts controlled) | AE137: No Control | AI137: =ROUND(AG235/1000*BF235*Z235*AX235,4) | AJ137: =ROUND(S235*T235,4) | AK137: IL TRM v6 vol2 | AL137: 403, 404 | AM137: 2020-01-01 | AS137: 1.41 | AT137: Waste Heat Factor Energy | AU137: IL TRM v6 vol2 | AV137: 337 (portfolio weighted average) | AW137: 1.34 | AX137: Waste Heat Factor Demand | AY137: IL TRM v6 vol2 | AZ137: 337 (portfolio weighted average) | BA137: 0.271 | BB137: ESF | BC137: IL TRM v6 vol2 | BD137: 419 (portfolio weighted average)
A138: Business Standard | B138: LED Exit Sign | C138: 68.3 | D138: Small C&I | E138: Lighting | F138: Direct Install | G138: per unit | H138: 30 | I138: IL TRM v6 vol2 | J138: 376 | K138: 45.8683 | L138: Calculated Value | N138: 0.005952270544 | O138: 0.9337378093 | P138: Navigant Field Work | R138: 0.0056 | S138: Calculated Value | U138: 7706.016549 | V138: Navigant Field Work | X138: 16 | Y138: IL TRM v6 vol2 | Z138: 376 | AA138: LED (watts) | AB138: 3 | AC138: Program Tracking Data | AE138: Fluorescent (watts) | AF138: 7.666666667 | AH138: IL TRM V.5 | AI138: =ROUND((AK237-AG237)/1000*Z237*AX237*BF237,4) | AJ138: =ROUND(S237*T237,4) | AK138: IL TRM v6 | AL138: 376378 | AM138: 2020-01-01 | AS138: 1.29 | AT138: Waste Heat Factor for energy | AU138: Navigant Field Work | AW138: 1.29 | AX138: Waste Heat Factor for demand | AY138: Navigant Field Work | BA138: 0.9887492598 | BB138: ISR - in service rate | BC138: Navigant field work
A139: Business Standard | B139: High‐Bay Fluorescent Fixture T5 > 4 Lamps w/ HE Electronic Ballast Replacing HID Fixture | C139: 69.2 | D139: Small C&I | E139: Lighting | G139: per fixture | H139: 100 | I139: IL TRM v6 vol2 | J139: 413 | K139: 701.0069 | L139: Calculated Value | N139: 0.21574 | O139: 0.66 | P139: IL TRM v6 vol2 | Q139: 337 (portfolio weighted average) | R139: 0.1424 | S139: Calculated Value | U139: 3088 | V139: IL TRM v6 vol2 | W139: 338 | X139: 15 | Y139: IL TRM v6 vol2 | Z139: 410 | AA139: High Bay T5 (>4 lamps, wattage) | AB139: 295 | AC139: IL TRM v6 vol2 | AD139: 413 (weighted average) | AE139: Metal Halide (watts) | AF139: 456 | AG139: IL TRM v6 vol2 | AH139: 413 (weighted average) | AI139: =ROUND((AK238-AG238)/1000*Z238*AX238,4) | AJ139: =ROUND(S238*T238,4) | AK139: IL TRM v6 vol2 | AL139: 364,368 | AM139: 2020-01-01 | AS139: 1.41 | AT139: Waste Heat Factor Energy | AU139: IL TRM v6 vol2 | AV139: 337 (portfolio weighted average) | AW139: 1.34 | AX139: Waste Heat Factor Demand | AY139: IL TRM v6 vol2 | AZ139: 337 (portfolio weighted average)
A140: Business Standard | B140: Interior Directional LED Lamp replacing 71-110W Lamp | C140: 70.3 | D140: Small C&I | E140: Lighting | G140: per lamp | H140: 20 | I140: Program Tracking Data | K140: 327.4268 | L140: Calculated Value | N140: 0.100768 | O140: 0.66 | P140: IL TRM v6 vol2 | Q140: 338 | R140: 0.0665 | S140: Calculated Value | U140: 3088 | V140: IL TRM v6 vol2 | W140: 338 | X140: 15 | Y140: IL TRM v6 vol2 | Z140: 363 | AA140: LED (watts) | AB140: 14.8 | AC140: Program Tracking Data | AE140: Incandescent (watts) | AF140: 90 | AG140: Measure Midpoint Value | AI140: =ROUND((AK241-AG241)/1000*Z241*AX241,4) | AJ140: =ROUND(S241*T241,4) | AK140: IL TRM v6 vol2 | AL140: 364, 368 | AM140: 2020-01-01 | AS140: 1.41 | AT140: Waste Heat Factor Energy | AU140: IL TRM v6 vol2 | AV140: 337 (portfolio weighted average) | AW140: 1.34 | AX140: Waste Heat Factor Demand | AY140: IL TRM v6 vol2 | AZ140: 337 (portfolio weighted average)
A141: Business Standard | B141: Remove 4ft Lamp from T8 or T12 system | C141: 72.2 | D141: Small C&I | E141: Lighting | G141: per lamp | H141: 12 | I141: IL TRM v6 vol2 | J141: 346 | K141: 121.9142 | L141: Calculated Value | N141: 0.03752 | O141: 0.66 | P141: IL TRM v6 vol2 | Q141: 337 (portfolio weighted average) | R141: 0.0248 | S141: Calculated Value | U141: 3088 | V141: IL TRM v6 vol2 | W141: 338 | X141: 11 | Y141: IL TRM v6 vol2 | Z141: 346 | AA141: Remove T8 | AB141: 0 | AC141: Measure Definition | AE141: T8 4 ft (watts) | AF141: 28 | AG141: IL TRM v6 vol2 | AH141: 347 (portfolio weighted average) | AI141: =ROUND((AK242-AG242)/1000*Z242*AX242,4) | AJ141: =ROUND(S242*T242,4) | AK141: IL TRM v6 vol2 | AL141: 347348 | AM141: 2020-01-01 | AS141: 1.41 | AT141: Waste Heat Factor Energy | AU141: IL TRM v6 vol2 | AV141: 337 (portfolio weighted average) | AW141: 1.34 | AX141: Waste Heat Factor Demand | AY141: IL TRM v6 vol2 | AZ141: 337 (portfolio weighted average)
A142: Business Standard | B142: Low Flow Faucet Aerator Kitchen | C142: 251.1 | D142: C&I | E142: Hot Water | F142: Kitchen | G142: per unit | H142: 8 | I142: IL TRM v5 vol2 | J142: 93 | K142: 74.5049 | L142: Calculated Value | O142: 0.0064 | P142: IL TRM v5 vol2 | Q142: 97 | R142: 0.0196 | S142: Calculated Value | V142: IL TRM v5 vol2 | W142: 96 | X142: 9 | Y142: IL TRM v5 vol2 | Z142: 93 | AA142: Low Flow (GPM) | AB142: 0.94 | AC142: IL TRM v5 vol2 | AD142: 94 | AE142: Standard (GPM) | AF142: 1.39 | AG142: IL TRM v5 vol2 | AH142: 94 | AI142: =ROUND(1*(AK244-AG244)/AK244*AX244*BB244*BF244,4) | AJ142: =ROUND(P244/BJ244*T244,4) | AK142: IL TRM v5 vol2 | AL142: 94,97 | AM142: 2020-01-01 | AS142: 2500 | AT142: Usage - Estimated usage of mixed water (mixture of hot water from water heater line and cold water line) per faucet (gallons per year) | AU142: IL TRM v5 vol2 | AV142: 95 | AW142: 0.0969 | AX142: EPG_electric - Energy per gallon of mixed water used by faucet (electric water heater) | AY142: IL TRM v5 vol2 | AZ142: 95 | BA142: 0.95 | BB142: ISR - in service rate | BC142: IL TRM v5 vol2 | BD142: 96 | BE142: 24.33035714 | BF142: Annual Recovery Hours - Annual electric DHW recovery hours for faucet use | BG142: IL TRM v5 vol2 | BH142: 96
A143: Business Standard | B143: Low Flow Faucet Aerator Bathroom | C143: 252.1 | D143: C&I | E143: Hot Water | F143: Bathroom | G143: per unit | H143: 8 | I143: IL TRM v5 vol2 | J143: 93 | K143: 91.6144 | L143: Calculated Value | O143: 0.0064 | P143: IL TRM v5 vol2 | Q143: 97 | R143: 0.0241 | S143: Calculated Value | V143: IL TRM v5 vol2 | W143: 96 | X143: 9 | Y143: IL TRM v5 vol2 | Z143: 93 | AA143: Low Flow (GPM) | AB143: 0.94 | AC143: IL TRM v5 vol2 | AD143: 94 | AE143: Standard (GPM) | AF143: 1.826 | AG143: IL TRM v5 vol2 | AH143: 94 | AI143: =ROUND(1*(AK245-AG245)/AK245*AX245*BB245*BF245,4) | AJ143: =ROUND(P245/BJ245*T245,4) | AK143: IL TRM v5 vol2 | AL143: 94,97 | AM143: 2020-01-01 | AS143: 2500 | AT143: Usage - Estimated usage of mixed water (mixture of hot water from water heater line and cold water line) per faucet (gallons per year) | AU143: IL TRM v5 vol2 | AV143: 95 | AW143: 0.0795 | AX143: EPG_electric - Energy per gallon of mixed water used by faucet (electric water heater) | AY143: IL TRM v5 vol2 | AZ143: 95 | BA143: 0.95 | BB143: ISR - in service rate | BC143: IL TRM v5 vol2 | BD143: 96 | BE143: 24.33035714 | BF143: Annual Recovery Hours - Annual electric DHW recovery hours for faucet use | BG143: IL TRM v5 vol2 | BH143: 96
A144: Business Standard | B144: Water Heater Tank Wrap | C144: 76.1 | D144: C&I | E144: Hot Water | G144: per unit | H144: 20 | I144: Program Tracking Data | K144: 134.0948 | L144: Calculated Value | N144: 0.01529714807 | O144: 1 | P144: IL TRM v7 vol3 | Q144: 203 | R144: 0.0153 | S144: Calculated Value | U144: 8766 | V144: IL TRM v7 vol3 | W144: 204 | X144: 5 | Y144: IL TRM v7 vol3 | Z144: 203 | AA144: Water heater insulation increased from R12 to R22, 50gal | AC144: IL TRM v7 vol3 | AD144: 204 | AE144: R12, 50-gal water heater insulation (no wrap) | AG144: IL TRM v7 vol3 | AH144: 204 | AI144: =ROUND((AX246/BB246-BF246/BJ246)*BN246*BR246/BV246/BZ246,4) | AJ144: =ROUND(P246/Z246,4) | AK144: IL TRM v7 vol3 | AL144: 203, 205 | AM144: 2020-01-01 | AS144: 24.99 | AT144: Abase | AU144: IL TRM v7 vol3 | AV144: 204 | AW144: 12 | AX144: Rbase | AY144: IL TRM v7 vol3 | AZ144: 204 | BA144: 27.06 | BB144: Ainsul | BC144: IL TRM v7 vol3 | BD144: 204 | BE144: 22 | BF144: Rinsul | BG144: IL TRM v7 vol3 | BH144: 204 | BI144: 60 | BJ144: deltaT | BK144: IL TRM v7 vol3 | BL144: 204 | BM144: 8766 | BN144: Hours | BO144: IL TRM v7 vol3 | BP144: 204 | BQ144: 0.98 | BR144: eta DHW | BS144: IL TRM v7 vol3 | BT144: 204 | BU144: 3412 | BV144: Conversion from BTU to kWh | BW144: IL TRM v7 vol3 | BX144: 204
A145: Business Standard | B145: Pre-Rinse Spray Valves Small | C145: 253.1 | D145: C&I | E145: Hot Water | F145: Small, quick- service restaurants | G145: per unit | H145: 100 | I145: IL TRM v5 vol2 | J145: 62 | K145: 2769.6198 | L145: Calculated Value | R145: 0 | S145: Calculated Value | X145: 5 | Y145: IL TRM v5 vol2 | Z145: 62 | AA145: Low Flow (GPM) | AB145: 1.06 | AC145: IL TRM v5 vol2 | AD145: 64 | AE145: Standard (GPM) | AF145: 1.9 | AG145: IL TRM v5 vol2 | AH145: 64 | AI145: =ROUND((AK247-AG247)*60*BF247*312*8.33*1*AX247*1/BB247/3413*1,4) | AJ145: =ROUND(0,4) | AK145: IL TRM v5 vol2 | AL145: 63 | AM145: 2020-01-01 | AS145: 70 | AT145: Temp difference between water heater outlet water temperature | AU145: IL TRM v5 vol2 | AV145: 63 | AW145: 0.97 | AX145: EFF_Elec - Efficiency of electric water heater supplying hot water to pre-rinse spray valve | AY145: IL TRM v5 vol2 | AZ145: 63 | BA145: 1 | BB145: Hours per day that the pre-rinse spray valve is used at the site - Hours/day | BC145: IL TRM v5 vol2 | BD145: 65
A146: Business Standard | B146: Pre-Rinse Spray Valves Medium | C146: 254.1 | D146: C&I | E146: Hot Water | F146: Medium-sized casual dining restaurants | G146: per unit | H146: 100 | I146: IL TRM v5 vol2 | J146: 62 | K146: 4154.4296 | L146: Calculated Value | R146: 0 | S146: Calculated Value | X146: 5 | Y146: IL TRM v5 vol2 | Z146: 62 | AA146: Low Flow (GPM) | AB146: 1.06 | AC146: IL TRM v5 vol2 | AD146: 64 | AE146: Standard (GPM) | AF146: 1.9 | AG146: IL TRM v5 vol2 | AH146: 64 | AI146: =ROUND((AK248-AG248)*60*BF248*312*8.33*1*AX248*1/BB248/3413*1,4) | AJ146: =ROUND(0,4) | AK146: IL TRM v5 vol2 | AL146: 63 | AM146: 2020-01-01 | AS146: 70 | AT146: Temp difference between water heater outlet water temperature | AU146: IL TRM v5 vol2 | AV146: 63 | AW146: 0.97 | AX146: EFF_Elec - Efficiency of electric water heater supplying hot water to pre-rinse spray valve | AY146: IL TRM v5 vol2 | AZ146: 63 | BA146: 1.5 | BB146: Hours per day that the pre-rinse spray valve is used at the site - Hours/day | BC146: IL TRM v5 vol2 | BD146: 65
A147: Business Standard | B147: Pre-Rinse Spray Valves Large | C147: 255.1 | D147: C&I | E147: Hot Water | F147: Large institutional establishments with cafeteria | G147: per unit | H147: 100 | I147: IL TRM v5 vol2 | J147: 62 | K147: 8308.8593 | L147: Calculated Value | R147: 0 | S147: Calculated Value | X147: 5 | Y147: IL TRM v5 vol2 | Z147: 62 | AA147: Low Flow (GPM) | AB147: 1.06 | AC147: IL TRM v5 vol2 | AD147: 64 | AE147: Standard (GPM) | AF147: 1.9 | AG147: IL TRM v5 vol2 | AH147: 64 | AI147: =ROUND((AK249-AG249)*60*BF249*312*8.33*1*AX249*1/BB249/3413*1,4) | AJ147: =ROUND(0,4) | AK147: IL TRM v5 vol2 | AL147: 63 | AM147: 2020-01-01 | AS147: 70 | AT147: Temp difference between water heater outlet water temperature | AU147: IL TRM v5 vol2 | AV147: 63 | AW147: 0.97 | AX147: EFF_Elec - Efficiency of electric water heater supplying hot water to pre-rinse spray valve | AY147: IL TRM v5 vol2 | AZ147: 63 | BA147: 3 | BB147: Hours per day that the pre-rinse spray valve is used at the site - Hours/day | BC147: IL TRM v5 vol2 | BD147: 65
A148: Business Standard | B148: High Efficiency Pool Pump | C148: 78.1 | D148: C&I | E148: Pools | G148: per unit | H148: 273.32 | I148: Program Tracking Data | K148: 1301.2478 | L148: Calculated Value | O148: 1 | P148: Calculated Value | R148: 0.1485 | S148: Calculated Value | X148: 10 | Y148: IL TRM v6 vol3 | Z148: 296 | AA148: High Efficiency | AC148: IL TRM v6 vol3 | AD148: 296 | AE148: Standard Pool Pump | AG148: IL TRM v6 vol3 | AH148: 296 | AI148: =ROUND(1301.24777183601,4) | AJ148: =ROUND(0.148544266191325,4) | AK148: IL TRM v6 vol2 | AL148: 479 | AM148: 2020-01-01
A149: Business Standard | B149: Pool Pump VSD | C149: 79.1 | D149: C&I | E149: Pools | G149: per unit | H149: 579 | I149: Program Tracking Data | K149: 2461.4482 | L149: Calculated Value | O149: 1 | P149: Calculated Value | R149: 0.281 | S149: Calculated Value | X149: 10 | Y149: IL TRM v6 vol3 | Z149: 296 | AA149: VSD | AC149: IL TRM v6 vol3 | AD149: 296 | AE149: Standard Pool Pump | AG149: IL TRM v6 vol3 | AH149: 296 | AI149: =ROUND(2461.44821213111,4) | AJ149: =ROUND(0.280987238827752,4) | AK149: IL TRM v6 vol2 | AL149: 479 | AM149: 2020-01-01
A150: Business Standard | B150: ENERGY STAR Beverage Machine w/o software | C150: 256.1 | D150: C&I | E150: Refrigeration | F150: kWh savings per machine w/o software | G150: per unit | H150: 500 | I150: IL TRM v6 vol2 | J150: 445 | K150: 1310 | L150: Calculated Value | O150: 0 | P150: Calculated Value | R150: 0 | S150: Calculated Value | X150: 14 | Y150: IL TRM v6 vol2 | Z150: 452 | AA150: Energy Star Vending Machine | AC150: IL TRM v5 vol2 | AD150: 452 | AE150: Standard Vending Machine | AG150: IL TRM v5 vol2 | AH150: 452 | AI150: =ROUND(1310,4) | AJ150: =ROUND(0,4) | AK150: IL TRM v6 vol2 | AL150: 452 | AM150: 2020-01-01
A151: Business Standard | B151: ENERGY STAR Beverage Machine w/ software | C151: 257.1 | D151: C&I | E151: Refrigeration | F151: kWh savings per machine w/ software | G151: per unit | H151: 500 | I151: IL TRM v6 vol2 | J151: 445 | K151: 1842 | L151: Calculated Value | O151: 0 | P151: Calculated Value | R151: 0 | S151: Calculated Value | X151: 14 | Y151: IL TRM v6 vol2 | Z151: 452 | AA151: Efficient Operating Watts | AC151: IL TRM v5 vol2 | AD151: 452 | AE151: Watts Base | AG151: IL TRM v5 vol2 | AH151: 452 | AI151: =ROUND(1842,4) | AJ151: =ROUND(0,4) | AK151: IL TRM v6 vol2 | AL151: 452 | AM151: 2020-01-01
A152: Business Standard | B152: High Efficiency Reach-In Refrigerator | C152: 258.1 | D152: C&I | E152: Refrigeration | F152: No unique savings for this measure. The savings is based on actual chilled or frozen compartment volume of the efficient unit. This measure life is for refrigerator | G152: per unit | H152: 164 | I152: IL TRM v6 vol2 | J152: 22 | K152: 286.7213 | L152: Calculated Value | O152: 0.937 | P152: IL TRM v5 vol2 | Q152: 24 | R152: 0.0306 | S152: Calculated Value | U152: 8766 | V152: IL TRM v5 vol2 | W152: 24 | X152: 12 | Y152: IL TRM v5 vol2 | Z152: 22 | AA152: High Efficiency kWh/day | AB152: 2.755 | AC152: IL TRM v5 vol2 | AD152: 23 (calculated) | AE152: Standard kWh/day | AF152: 3.54 | AG152: IL TRM v5 vol2 | AH152: 23 (calculated) | AI152: =ROUND((AK254-AG254)*365.25,4) | AJ152: =ROUND(P254/Z254*T254,4) | AK152: IL TRM v5 vol2 | AL152: 22,23 | AM152: 2020-01-01
A153: Business Standard | B153: High Efficiency Reach-In Freezer | C153: 259.1 | D153: C&I | E153: Refrigeration | F153: No unique savings for this measure. The savings is based on actual chilled or frozen compartment volume of the efficient unit. This measure life is for freezer | G153: per unit | H153: 166 | I153: IL TRM v6 vol2 | J153: 22 | K153: 869.295 | L153: Calculated Value | O153: 0.937 | P153: IL TRM v5 vol2 | Q153: 24 | R153: 0.0929 | S153: Calculated Value | U153: 8766 | V153: IL TRM v5 vol2 | W153: 24 | X153: 12 | Y153: IL TRM v5 vol2 | Z153: 22 | AA153: High Efficiency kWh/day | AB153: 5 | AC153: IL TRM v5 vol2 | AD153: 23 (calculated) | AE153: Standard kWh/day | AF153: 7.38 | AG153: IL TRM v5 vol2 | AH153: 23 (calculated) | AI153: =ROUND((AK255-AG255)*365.25,4) | AJ153: =ROUND(P255/Z255*T255,4) | AK153: IL TRM v5 vol2 | AL153: 22,23 | AM153: 2020-01-01
A154: Business Standard | B154: Strip Curtains Freezer | C154: 260.1 | D154: C&I | E154: Refrigeration | F154: per freezer with curtains installed | G154: per unit | H154: 286.16 | I154: IL TRM v5 vol2 | J154: 456 | K154: 2974 | L154: Calculated Value | O154: 1 | P154: Calculated Value | R154: 0.34 | S154: Calculated Value | X154: 6 | Y154: IL TRM v5 vol2 | Z154: 456 | AA154: Strip Curtain | AC154: IL TRM v5 vol2 | AD154: 456 | AE154: No strip curtain | AG154: IL TRM v5 vol2 | AH154: 456 | AI154: =ROUND(2974,4) | AJ154: =ROUND(0.34,4) | AK154: IL TRM v5 vol2 | AL154: 456457 | AM154: 2020-01-01
A155: Business Standard | B155: Strip Curtains Cooler | C155: 261.1 | D155: C&I | E155: Refrigeration | F155: per cooler with curtains installed | G155: per unit | H155: 286.16 | I155: IL TRM v5 vol2 | J155: 456 | K155: 422 | L155: Calculated Value | O155: 1 | P155: Calculated Value | R155: 0.05 | S155: Calculated Value | X155: 6 | Y155: IL TRM v5 vol2 | Z155: 456 | AA155: Strip Curtain | AC155: IL TRM v5 vol2 | AD155: 456 | AE155: No strip curtain | AG155: IL TRM v5 vol2 | AH155: 456 | AI155: =ROUND(422,4) | AJ155: =ROUND(0.05,4) | AK155: IL TRM v5 vol2 | AL155: 456457 | AM155: 2020-01-01
A156: Business Standard | B156: LED Refrigerator Case Light | C156: 84.2 | D156: C&I | E156: Refrigeration | G156: per unit | H156: 133 | K156: 224.9713 | N156: 0.03877479097 | O156: 0.69 | P156: IL TRM v5 vol2 | R156: 0.0268 | U156: 5802 | V156: IL TRM v5 vol2 | W156: 341 | X156: 15 | Y156: IL TRM v5 vol2 | Z156: 369 | AA156: LED Display Lighting (watts) | AB156: 30.4 | AC156: IL TRM v5 vol2 - Assume 4 ft lamp | AE156: Base Refrigeration - Standard (watts) | AF156: 60.8 | AI156: =ROUND((AK259-AG259)/1000*Z259*AX259*BF259,4) | AJ156: =ROUND(S259*T259,4) | AM156: 2020-01-01 | AS156: 1.29 | AT156: Waste Heat Factor for Energy | AU156: IL TRM v5 vol2 | AW156: 1.29 | AX156: Waste Heat Factor Demand | AY156: IL TRM v5 vol2 | BA156: 0.9887492598 | BB156: ISR | BC156: Navigant field work
A157: Business Standard | B157: ECM Motors Walk-In Coolers & Freezers | C157: 85.1 | D157: C&I | E157: Refrigeration | G157: per motor | H157: 50 | I157: IL TRM v5 vol2 | J157: 448 | K157: 401 | L157: Calculated Value | O157: 1 | P157: IL TRM v5 vol2 | Q157: 448 | R157: 0.042 | S157: Calculated Value | X157: 15 | Y157: IL TRM v5 vol2 | Z157: 448 | AA157: ECM Motor | AC157: IL TRM v5 vol2 | AD157: 448 | AE157: Shaded pole motor | AG157: IL TRM v5 vol2 | AH157: 448 | AI157: =ROUND(401,4) | AJ157: =ROUND(0.042,4) | AK157: IL TRM v6 vol2 | AL157: 442443 | AM157: 2020-01-01
A158: Business Standard | B158: High Efficiency PTAC/PTHP | C158: 86.1 | D158: C&I | E158: HVAC | G158: per ton | H158: 84 | I158: IL TRM v6 vol2 | J158: 184 | K158: 30.0701 | L158: Calculated Value | O158: 0.91 | P158: IL TRM v6 vol2 | Q158: 185 | R158: 0.0118 | S158: Calculated Value | X158: 15 | Y158: IL TRM v6 vol2 | Z158: 184 | AA158: EER | AB158: 12 | AC158: Program Tracking Data | AE158: EER | AF158: 10.2 | AG158: IL TRM v6 vol2 | AH158: 186 | AI158: =ROUND(((1/AK262-1/AG262)*AT262 + BF262*AU262)*AX262/BB262,4) | AJ158: =ROUND(0.0118300668666732,4) | AK158: IL TRM v6 vol2 | AL158: 185187 | AM158: 2020-01-01 | AO158: 1325 | AP158: 5249 | AQ158: MO TRM and Navigant Analysis | AS158: 12000 | AT158: Btu/hr | AU158: IL TRM v6 vol2 | AV158: 150 | AW158: 11535.60828 | AX158: Unit size conversion | AY158: Program Tracking Data | BA158: 0.001794835007 | BB158: HSPF improvement factor
A159: Business Standard | B159: Programmable Thermostat Controls | C159: 87.1 | D159: C&I | E159: HVAC | G159: per ton | H159: 36.2 | I159: IL TRM v6 vol2 | J159: 220 | K159: 126.0527 | L159: Calculated Value | R159: 0 | S159: Calculated Value | X159: 8 | Y159: IL TRM v6 vol2 | Z159: 220 | AA159: Programmable Tstat | AC159: IL TRM v6 vol2 | AD159: 220 | AE159: No Tstat | AG159: IL TRM v6 vol2 | AH159: 220 | AI159: =ROUND(126.052734375,4) | AJ159: =ROUND(0,4) | AK159: IL TRM v6 vol2 | AL159: 221 | AM159: 2020-01-01
A160: Business Standard | B160: CAC <65 kBtuh | C160: 90.1 | D160: C&I | E160: HVAC | G160: per ton | H160: 127 | I160: IL TRM v6 vol2 | J160: 203 | K160: 81.56 | L160: Calculated Value | N160: 0.08156 | O160: 0.91 | P160: IL TRM v6 vol2 | Q160: 204 | R160: 0.0659 | S160: Calculated Value | U160: 1000 | V160: IL TRM v6 vol2 | W160: 133 (portfolio weighted average) | X160: 15 | Y160: IL TRM v6 vol2 | Z160: 203 | AA160: EER | AB160: 14 | AC160: Program Tracking Data | AE160: EER | AF160: 13 | AG160: IL TRM v6 vol2 | AH160: 208 | AI160: =ROUND((1/AK268-1/AG268)*AT268*AX268/BB268,4) | AJ160: =ROUND(0.065934065934066,4) | AK160: IL TRM v6 vol2 | AL160: 204, 209 | AM160: 2020-01-01 | AO160: 1325 | AP160: 5249 | AQ160: MO TRM and Navigant Analysis | AS160: 12000 | AT160: Btu/hr | AU160: IL TRM v6 vol2 | AV160: 150 | AW160: 1071.145482 | AX160: Unit size conversion | AY160: Program Tracking Data
A161: Business Standard | B161: CAC 65<135 kBtuh | C161: 91.1 | D161: C&I | E161: HVAC | G161: per ton | H161: 127 | I161: IL TRM v6 vol2 | J161: 203 | K161: 56.6389 | L161: Calculated Value | N161: 0.0566389 | O161: 0.91 | P161: IL TRM v6 vol2 | Q161: 204 | R161: 0.0458 | S161: Calculated Value | U161: 1000 | V161: IL TRM v6 vol2 | W161: 133 (portfolio weighted average) | X161: 15 | Y161: IL TRM v6 vol2 | Z161: 203 | AA161: EER | AB161: 11.7 | AC161: Program Tracking Data | AE161: EER | AF161: 11.2 | AG161: IL TRM v6 vol2 | AH161: 208 | AI161: =ROUND((1/AK270-1/AG270)*AT270*AX270/BB270,4) | AJ161: =ROUND(0.0457875457875458,4) | AK161: IL TRM v6 vol2 | AL161: 204, 209 | AM161: 2020-01-01 | AO161: 1325 | AP161: 5249 | AQ161: MO TRM and Navigant Analysis | AS161: 12000 | AT161: Btu/hr | AU161: IL TRM v6 vol2 | AV161: 150 | AW161: 1071.145482 | AX161: Unit size conversion | AY161: Program Tracking Data
A162: Business Standard | B162: CAC 135<240 kBtuh | C162: 92.1 | D162: C&I | E162: HVAC | G162: per ton | H162: 100 | I162: IL TRM v6 vol2 | J162: 203 | K162: 80.7362 | L162: Calculated Value | N162: 0.0807362 | O162: 0.91 | P162: IL TRM v6 vol2 | Q162: 204 | R162: 0.0653 | S162: Calculated Value | U162: 1000 | V162: IL TRM v6 vol2 | W162: 133 (portfolio weighted average) | X162: 15 | Y162: IL TRM v6 vol2 | Z162: 203 | AA162: EER | AB162: 11.7 | AC162: Program Tracking Data | AE162: EER | AF162: 11 | AG162: IL TRM v6 vol2 | AH162: 208 | AI162: =ROUND((1/AK272-1/AG272)*AT272*AX272/BB272,4) | AJ162: =ROUND(0.0652680652680653,4) | AK162: IL TRM v6 vol2 | AL162: 204, 209 | AM162: 2020-01-01 | AO162: 1325 | AP162: 5249 | AQ162: MO TRM and Navigant Analysis | AS162: 12000 | AT162: Btu/hr | AU162: IL TRM v6 vol2 | AV162: 150 | AW162: 1071.145482 | AX162: Unit size conversion | AY162: Program Tracking Data
A163: Business Standard | B163: CAC >240 kBtuh | C163: 93.1 | D163: C&I | E163: HVAC | G163: per ton | H163: 100 | I163: IL TRM v6 vol2 | J163: 203 | K163: 70.6853 | L163: Calculated Value | N163: 0.0706853 | O163: 0.91 | P163: IL TRM v6 vol2 | Q163: 204 | R163: 0.0571 | S163: Calculated Value | U163: 1000 | V163: IL TRM v6 vol2 | W163: 133 (portfolio weighted average) | X163: 15 | Y163: IL TRM v6 vol2 | Z163: 203 | AA163: EER | AB163: 10.5 | AC163: Program Tracking Data | AE163: EER | AF163: 10 | AG163: IL TRM v6 vol2 | AH163: 208 | AI163: =ROUND((1/AK274-1/AG274)*AT274*AX274/BB274,4) | AJ163: =ROUND(0.0571428571428573,4) | AK163: IL TRM v6 vol2 | AL163: 204, 209 | AM163: 2020-01-01 | AO163: 1325 | AP163: 5249 | AQ163: MO TRM and Navigant Analysis | AS163: 12000 | AT163: Btu/hr | AU163: IL TRM v6 vol2 | AV163: 150 | AW163: 1071.145482 | AX163: Unit size conversion | AY163: Program Tracking Data
A164: Business Standard | B164: Interior Directional LED Lamp replacing 50-70W Lamp | C164: 96.4 | D164: C&I | E164: Lighting | G164: per lamp | H164: 64.47 | I164: IL TRM v5 vol2 | J164: 377 | K164: 214.6561 | L164: Calculated Value | N164: 0.066062 | O164: 0.6193 | P164: IL TRM v5 vol2 | Q164: 340 (portfolio weighted average) | R164: 0.0409 | S164: Calculated Value | U164: 3088 | V164: IL TRM v5 vol2 | W164: 341 | X164: 15 | Y164: IL TRM v5 vol2 | Z164: 369 | AA164: LED (watts) | AB164: 10.7 | AC164: Program Tracking Data | AE164: Incandescent (watts) | AF164: 60 | AG164: Measure midpoint Value | AI164: =ROUND((AK277-AG277)/1000*Z277*AX277,4) | AJ164: =ROUND(S277*T277,4) | AK164: IL TRM v6 vol2 | AL164: 364,368 | AM164: 2020-01-01 | AS164: 1.41 | AT164: Waste Heat Factor Energy | AU164: IL TRM v5 vol2 | AV164: 340 (portfolio weighted average) | AW164: 1.34 | AX164: Waste Heat Factor Demand | AY164: IL TRM v5 vol2 | AZ164: 340 (portfolio weighted average)
A165: Business Standard | B165: Interior Directional LED Lamp replacing 71-110W Lamp | C165: 97.4 | D165: C&I | E165: Lighting | G165: per lamp | H165: 64.47 | I165: IL TRM v5 vol2 | J165: 377 | K165: 327.4268 | L165: Calculated Value | N165: 0.100768 | O165: 0.6193 | P165: IL TRM v5 vol2 | Q165: 340 (portfolio weighted average) | R165: 0.0624 | S165: Calculated Value | U165: 3088 | V165: IL TRM v5 vol2 | W165: 341 | X165: 8 | Y165: IL TRM v5 vol2 | Z165: 369 | AA165: LED (watts) | AB165: 14.8 | AC165: Program Tracking Data | AE165: Incandescent (watts) | AF165: 90 | AG165: Measure midpoint Value | AI165: =ROUND((AK280-AG280)/1000*Z280*AX280,4) | AJ165: =ROUND(S280*T280,4) | AK165: IL TRM v6 vol2 | AL165: 364,368 | AM165: 2020-01-01 | AS165: 1.41 | AT165: Waste Heat Factor Energy | AU165: IL TRM v5 vol2 | AV165: 340 (portfolio weighted average) | AW165: 1.34 | AX165: Waste Heat Factor Demand | AY165: IL TRM v5 vol2 | AZ165: 340 (portfolio weighted average)
A166: Business Standard | B166: High Performance High-Bay Fluorescent Fixture T8 > 4 Lamps Replacing HID Fixture | C166: 98.2 | D166: C&I | E166: Lighting | G166: per fixture | H166: 200 | I166: IL TRM v6 vol2 | J166: 357 | K166: 1084.1659 | L166: Calculated Value | N166: 0.33366 | O166: 0.66 | P166: IL TRM v6 vol2 | Q166: 337 (portfolio weighted average) | R166: 0.2202 | S166: Calculated Value | U166: 3088 | V166: IL TRM v6 vol2 | W166: 338 | X166: 15 | Y166: IL TRM v6 vol2 | Z166: 352 | AA166: High Bay T8 (>4 lamps, wattage) | AB166: 206 | AC166: Program Tracking Database (weighted average( | AE166: Metal Halide (watts) | AF166: 455 | AG166: IL TRM v6 vol2 | AH166: 357 | AI166: =ROUND((AK281-AG281)/1000*Z281*AX281,4) | AJ166: =ROUND(S281*T281,4) | AK166: IL TRM v6 vol2 | AL166: 353354 | AM166: 2020-01-01 | AS166: 1.41 | AT166: Waste Heat Factor Energy | AU166: IL TRM v6 vol2 | AV166: 337 (portfolio weighted average) | AW166: 1.34 | AX166: Waste Heat Factor Demand | AY166: IL TRM v6 vol2 | AZ166: 337 (portfolio weighted average)
A167: Business Standard | B167: High Bay Fluorescent Fixture (HP T8 <=4 lamps) | C167: 99.1 | D167: C&I | E167: Lighting | G167: per fixture | H167: 225 | I167: IL TRM v6 vol2 | J167: 357 | K167: 648.7579 | L167: Calculated Value | N167: 0.19966 | O167: 0.66 | P167: IL TRM v6 vol2 | Q167: 337 (portfolio weighted average) | R167: 0.1318 | S167: Calculated Value | U167: 3088 | V167: IL TRM v6 vol2 | W167: 338 | X167: 15 | Y167: IL TRM v6 vol2 | Z167: 352 | AA167: High Bay T8 (≤4 lamps, wattage) | AB167: 146 | AC167: Program Tracking Database (weighted average( | AE167: Metal Halide (watts) | AF167: 295 | AG167: IL TRM v6 vol2 | AH167: 357 | AI167: =ROUND((AK282-AG282)/1000*Z282*AX282,4) | AJ167: =ROUND(S282*T282,4) | AK167: IL TRM v6 vol2 | AL167: 353354 | AM167: 2020-01-01 | AS167: 1.41 | AT167: Waste Heat Factor Energy | AU167: IL TRM v6 vol2 | AV167: 337 (portfolio weighted average) | AW167: 1.34 | AX167: Waste Heat Factor Demand | AY167: IL TRM v6 vol2 | AZ167: 337 (portfolio weighted average)
A168: Business Standard | B168: High-Bay Fluorescent Fixture T5 > 4 Lamps w/ HE Electronic Ballast Replacing HID Fixture | C168: 100.2 | D168: C&I | E168: Lighting | G168: per fixture | H168: 100 | I168: IL TRM v6 vol2 | J168: 423 | K168: 701.0069 | L168: Calculated Value | N168: 0.21574 | O168: 0.66 | P168: IL TRM v6 vol2 | Q168: 337 (portfolio weighted average) | R168: 0.1424 | S168: Calculated Value | U168: 3088 | V168: IL TRM v6 vol2 | W168: 338 | X168: 15 | Y168: IL TRM v6 vol2 | Z168: 410 | AA168: High Bay T5 (>4 lamps, wattage) | AB168: 295 | AC168: Program Tracking Database (weighted average( | AE168: Metal Halide (watts) | AF168: 456 | AG168: IL TRM v6 vol2 | AH168: 357 (portfolio weighted average( | AI168: =ROUND((AK283-AG283)/1000*Z283*AX283,4) | AJ168: =ROUND(S283*T283,4) | AK168: IL TRM v6 vol2 | AL168: 411412 | AM168: 2020-01-01 | AS168: 1.41 | AT168: Waste Heat Factor Energy | AU168: IL TRM v6 vol2 | AV168: 337 (portfolio weighted average) | AW168: 1.34 | AX168: Waste Heat Factor Demand | AY168: IL TRM v6 vol2 | AZ168: 337 (portfolio weighted average)
A169: Business Standard | B169: High-Bay Fluorescent Fixture T5 <= 4 Lamps w/ HE Electronic Ballast Replacing HID Fixture | C169: 101.2 | D169: C&I | E169: Lighting | G169: per fixture | H169: 100 | I169: IL TRM v6 vol2 | J169: 423 | K169: 404.9294 | L169: Calculated Value | N169: 0.12462 | O169: 0.66 | P169: IL TRM v6 vol2 | Q169: 337 (portfolio weighted average) | R169: 0.0822 | S169: Calculated Value | U169: 3088 | V169: IL TRM v6 vol2 | W169: 338 | X169: 15 | Y169: IL TRM v6 vol2 | Z169: 410 | AA169: High Bay T5 (≤4 lamps, wattage) | AB169: 117 | AC169: Program Tracking Database (weighted average( | AE169: Metal Halide (watts) | AF169: 210 | AG169: IL TRM v6 vol2 | AH169: 357 (portfolio weighted average( | AI169: =ROUND((AK285-AG285)/1000*Z285*AX285,4) | AJ169: =ROUND(S285*T285,4) | AK169: IL TRM v6 vol2 | AL169: 411412 | AM169: 2020-01-01 | AS169: 1.41 | AT169: Waste Heat Factor Energy | AU169: IL TRM v6 vol2 | AV169: 337 (portfolio weighted average) | AW169: 1.34 | AX169: Waste Heat Factor Demand | AY169: IL TRM v6 vol2 | AZ169: 337 (portfolio weighted average)
A170: Business Standard | B170: LED Exit Sign | C170: 102.3 | D170: C&I | E170: Lighting | G170: per lamp | H170: 30 | I170: IL TRM v6 vol2 | J170: 376 | K170: 45.3758 | L170: Calculated Value | N170: 0.01060094314 | O170: 0.6910322129 | P170: Navigant Field Work | R170: 0.0073 | S170: Calculated Value | U170: 5079.677101 | V170: Navigant Field Work | X170: 16 | Y170: IL TRM v6 vol2 | Z170: 376 | AA170: LED (watts) | AB170: 3 | AC170: Program Tracking Data | AE170: Fluorescent (watts) | AF170: 11 | AH170: IL TRM V.5 | AI170: =ROUND((AK288-AG288)/1000*Z288*AX288*BF288,4) | AJ170: =ROUND(S288*T288,4) | AK170: IL TRM v6 vol2 | AL170: 376378 | AM170: 2020-01-01 | AS170: 1.129306801 | AT170: Waste Heat Factor | AU170: Navigant Field Work | AW170: 1.34019609 | AX170: Waste Heat Factor | AY170: Navigant Field Work | BA170: 0.9887492598 | BB170: ISR | BC170: Navigant field work
A171: Business Standard | B171: LED Flood Light (<15W) | C171: 103.1 | D171: C&I | E171: Lighting | G171: per lamp | H171: 35 | I171: IL TRM v6 vol2 | J171: 370 | K171: 210.829 | L171: Calculated Value | N171: 0.043 | O171: 0 | P171: IL TRM v6 vol2 | Q171: 338 | R171: 0 | S171: Calculated Value | U171: 4903 | V171: IL TRM v6 vol2 | W171: 338 | X171: 15 | Y171: IL TRM v6 vol2 | Z171: 363 | AA171: LED (watts) | AB171: 8.7 | AC171: Program Tracking Data | AE171: Metal Halide (watts) | AF171: 51.7 | AI171: =ROUND((AK290-AG290)/1000*Z290*AX290,4) | AJ171: =ROUND(S290*T290,4) | AK171: IL TRM v6 vol2 | AL171: 364,368 | AM171: 2020-01-01 | AS171: 1 | AT171: Waste Heat Factor Energy | AU171: IL TRM v6 vol2 | AV171: 338 | AW171: 1 | AX171: Waste Heat Factor Demand | AY171: IL TRM v6 vol2 | AZ171: 338
A172: Business Standard | B172: LED Flood Light (>=15W) | C172: 104.1 | D172: C&I | E172: Lighting | G172: per lamp | H172: 45 | I172: IL TRM v6 vol2 | J172: 370 | K172: 236.3246 | L172: Calculated Value | N172: 0.0482 | O172: 0 | P172: IL TRM v6 vol2 | Q172: 338 | R172: 0 | S172: Calculated Value | U172: 4903 | V172: IL TRM v6 vol2 | W172: 338 | X172: 15 | Y172: IL TRM v6 vol2 | Z172: 363 | AA172: LED (watts) | AB172: 16.2 | AC172: Program Tracking Data | AE172: Metal Halide (watts) | AF172: 64.4 | AI172: =ROUND((AK292-AG292)/1000*Z292*AX292,4) | AJ172: =ROUND(S292*T292,4) | AK172: IL TRM v6 vol2 | AL172: 364,368 | AM172: 2020-01-01 | AS172: 1 | AT172: Waste Heat Factor Energy | AU172: IL TRM v6 vol2 | AV172: 338 | AW172: 1 | AX172: Waste Heat Factor Demand | AY172: IL TRM v6 vol2 | AZ172: 338
A173: Business Standard | B173: LED Recessed Fixture (1 ft x 4 ft) | C173: 106.1 | D173: C&I | E173: Lighting | G173: per fixture | H173: 36.17 | I173: IL TRM v6 vol2 | J173: 371 | K173: 116.6893 | L173: Calculated Value | N173: 0.035912 | O173: 0.66 | P173: IL TRM v6 vol2 | Q173: 337 (portfolio weighted average) | R173: 0.0237 | S173: Calculated Value | U173: 3088 | V173: IL TRM v6 vol2 | W173: 338 | X173: 15 | Y173: IL TRM v6 vol2 | Z173: 363 | AA173: Linear style LED (watts) | AB173: 32.2 | AC173: Program Tracking Data | AE173: Standard T8 (watts) | AF173: 59 | AI173: =ROUND((AK294-AG294)/1000*Z294*AX294,4) | AJ173: =ROUND(S294*T294,4) | AK173: IL TRM v6 vol2 | AL173: 364,368 | AM173: 2020-01-01 | AS173: 1.41 | AT173: Waste Heat Factor Energy | AU173: IL TRM v6 vol2 | AV173: 337 (portfolio weighted average) | AW173: 1.34 | AX173: Waste Heat Factor Demand | AY173: IL TRM v6 vol2 | AZ173: 337 (portfolio weighted average)
A174: Business Standard | B174: LED Recessed Fixture (2 ft x 2 ft) | C174: 107.1 | D174: C&I | E174: Lighting | G174: per fixture | H174: 22.55 | I174: IL TRM v6 vol2 | J174: 371 | K174: 70.1007 | L174: Calculated Value | N174: 0.021574 | O174: 0.66 | P174: IL TRM v6 vol2 | Q174: 337 (portfolio weighted average) | R174: 0.0142 | S174: Calculated Value | U174: 3088 | V174: IL TRM v6 vol2 | W174: 338 | X174: 15 | Y174: IL TRM v6 vol2 | Z174: 363 | AA174: Linear style LED (watts) | AB174: 44.9 | AC174: Program Tracking Data | AE174: T8 U-tube (watts) | AF174: 61 | AI174: =ROUND((AK296-AG296)/1000*Z296*AX296,4) | AJ174: =ROUND(S296*T296,4) | AK174: IL TRM v6 vol2 | AL174: 364,368 | AM174: 2020-01-01 | AS174: 1.41 | AT174: Waste Heat Factor Energy | AU174: IL TRM v6 vol2 | AV174: 337 (portfolio weighted average) | AW174: 1.34 | AX174: Waste Heat Factor Demand | AY174: IL TRM v6 vol2 | AZ174: 337 (portfolio weighted average)
A175: Business Standard | B175: LED Recessed Fixture (2 ft x 4 ft) | C175: 108.1 | D175: C&I | E175: Lighting | G175: per fixture | H175: 55.5 | I175: IL TRM v6 vol2 | J175: 371 | K175: 149.7804 | L175: Calculated Value | N175: 0.046096 | O175: 0.66 | P175: IL TRM v6 vol2 | Q175: 337 (portfolio weighted average) | R175: 0.0304 | S175: Calculated Value | U175: 3088 | V175: IL TRM v6 vol2 | W175: 338 | X175: 15 | Y175: IL TRM v6 vol2 | Z175: 363 | AA175: Linear style LED (watts) | AB175: 53.6 | AC175: Program Tracking Data | AE175: Standard T8 (watts) | AF175: 88 | AI175: =ROUND((AK298-AG298)/1000*Z298*AX298,4) | AJ175: =ROUND(S298*T298,4) | AK175: IL TRM v6 vol2 | AL175: 364,368 | AM175: 2020-01-01 | AS175: 1.41 | AT175: Waste Heat Factor Energy | AU175: IL TRM v6 vol2 | AV175: 337 (portfolio weighted average) | AW175: 1.34 | AX175: Waste Heat Factor Demand | AY175: IL TRM v6 vol2 | AZ175: 337 (portfolio weighted average)
A176: Business Standard | B176: Remove 4ft Lamp from T8 or T12 system | C176: 109.2 | D176: C&I | E176: Lighting | G176: per lamp | H176: 12 | I176: IL TRM v6 vol2 | J176: 346 | K176: 121.9142 | L176: Calculated Value | N176: 0.03752 | O176: 0.66 | P176: IL TRM v6 vol2 | Q176: 337 (portfolio weighted average) | R176: 0.0248 | S176: Calculated Value | U176: 3088 | V176: IL TRM v6 vol2 | W176: 338 | X176: 11 | Y176: IL TRM v6 vol2 | Z176: 346 | AA176: Remove T8 | AB176: 0 | AC176: IL TRM v6 vol2 | AD176: 346 | AE176: T8 4 ft (watts) | AF176: 28 | AG176: IL TRM v6 vol2 | AH176: 347 | AI176: =ROUND((AK299-AG299)/1000*Z299*AX299,4) | AJ176: =ROUND(S299*T299,4) | AK176: IL TRM v6 vol2 | AL176: 347348 | AM176: 2020-01-01 | AS176: 1.41 | AT176: Waste Heat Factor Energy | AU176: IL TRM v6 vol2 | AV176: 337 (portfolio weighted average) | AW176: 1.34 | AX176: Waste Heat Factor Demand | AY176: IL TRM v6 vol2 | AZ176: 337 (portfolio weighted average)
A177: Business Standard | B177: Remove 8ft Lamp from T8 or T12 System | C177: 110.2 | D177: C&I | E177: Lighting | G177: per lamp | H177: 16 | I177: IL TRM v6 vol2 | J177: 346 | K177: 252.5366 | L177: Calculated Value | N177: 0.07772 | O177: 0.66 | P177: IL TRM v6 vol2 | Q177: 337 (portfolio weighted average) | R177: 0.0513 | S177: Calculated Value | U177: 3088 | V177: IL TRM v6 vol2 | W177: 338 | X177: 11 | Y177: IL TRM v6 vol2 | Z177: 346 | AA177: Remove T8 | AB177: 0 | AC177: IL TRM v6 vol2 | AD177: 346 | AE177: T8 8 ft (watts) | AF177: 58 | AG177: IL TRM v6 vol2 | AH177: 347 | AI177: =ROUND((AK300-AG300)/1000*Z300*AX300,4) | AJ177: =ROUND(S300*T300,4) | AK177: IL TRM v6 vol2 | AL177: 347348 | AM177: 2020-01-01 | AS177: 1.41 | AT177: Waste Heat Factor Energy | AU177: IL TRM v6 vol2 | AV177: 337 (portfolio weighted average) | AW177: 1.34 | AX177: Waste Heat Factor Demand | AY177: IL TRM v6 vol2 | AZ177: 337 (portfolio weighted average)
A178: Business Standard | B178: Interior Omnidirectional LED Lamp replacing 40-60W Lamp | C178: 112.4 | D178: C&I | E178: Lighting | G178: per lamp | H178: 8 | I178: IL TRM v6 vol2 | J178: 370 | K178: 178.2996 | L178: Calculated Value | N178: 0.054873 | O178: 0.6193 | P178: IL TRM v6 vol2 | Q178: 337 (portfolio weighted average) | R178: 0.034 | S178: Calculated Value | U178: 3088 | V178: IL TRM v6 vol2 | W178: 338 | X178: 15 | Y178: IL TRM v6 vol2 | Z178: 363 | AA178: LED (watts) | AB178: 9.05 | AC178: IL TRM v5 vol2 | AE178: EISA tier 1 compliant Halogen (watts) | AF178: 50 | AH178: Midpoint Value | AI178: =ROUND((AK303-AG303)/1000*Z303*AX303,4) | AJ178: =ROUND(S303*T303,4) | AK178: IL TRM v6 vol2 | AL178: 364,368 | AM178: 2020-01-01 | AS178: 1.41 | AT178: Waste Heat Factor Energy | AU178: IL TRM v6 vol2 | AV178: 337 (portfolio weighted average) | AW178: 1.34 | AX178: Waste Heat Factor Demand | AY178: IL TRM v6 vol2 | AZ178: 337 (portfolio weighted average)
A179: Business Standard | B179: Interior Omnidirectional LED Lamp replacing 61-100W Lamp | C179: 113.4 | D179: C&I | E179: Lighting | G179: per lamp | H179: 12 | I179: IL TRM v6 vol2 | J179: 370 | K179: 300.4315 | L179: Calculated Value | N179: 0.09246 | O179: 0.6193 | P179: IL TRM v6 vol2 | Q179: 337 (portfolio weighted average) | R179: 0.0573 | S179: Calculated Value | U179: 3088 | V179: IL TRM v6 vol2 | W179: 338 | X179: 15 | Y179: IL TRM v6 vol2 | Z179: 363 | AA179: LED (watts) | AB179: 11 | AC179: Program Tracking Data | AE179: EISA tier 1 compliant Halogen (watts) | AF179: 80 | AH179: Midpoint Value | AI179: =ROUND((AK306-AG306)/1000*Z306*AX306,4) | AJ179: =ROUND(S306*T306,4) | AK179: IL TRM v6 vol2 | AL179: 364,368 | AM179: 2020-01-01 | AS179: 1.41 | AT179: Waste Heat Factor Energy | AU179: IL TRM v6 vol2 | AV179: 337 (portfolio weighted average) | AW179: 1.34 | AX179: Waste Heat Factor Demand | AY179: IL TRM v6 vol2 | AZ179: 337 (portfolio weighted average)
A180: Business Standard | B180: Interior Daylighting Controls Replacing No Controls | C180: 114.2 | D180: C&I | E180: Lighting | G180: per sensor | H180: 66 | I180: IL TRM v6 vol2 | J180: 402 | K180: 692.634 | L180: Calculated Value | N180: 0.21316318 | O180: 0.66 | P180: IL TRM v6 vol2 | Q180: 337 (portfolio weighted average) | R180: 0.1407 | S180: Calculated Value | U180: 3088 | V180: IL TRM v6 vol2 | W180: 338 | X180: 8 | Y180: IL TRM v6 vol2 | Z180: 411 | AA180: Photocell Occupancy Sensor (watts controlled) | AB180: 587 | AC180: Program Tracking Data | AE180: No Control | AG180: IL TRM v6 vol2 | AH180: 402 | AI180: =ROUND(AG307/1000*BF307*Z307*AX307,4) | AJ180: =ROUND(S307*T307,4) | AK180: IL TRM v5 vol2 | AL180: 412413 | AM180: 2020-01-01 | AS180: 1.41 | AT180: Waste Heat Factor Energy | AU180: IL TRM v6 vol2 | AV180: 337 (portfolio weighted average) | AW180: 1.34 | AX180: Waste Heat Factor Demand | AY180: IL TRM v6 vol2 | AZ180: 337 (portfolio weighted average) | BA180: 0.271 | BB180: ESF | BC180: IL TRM v6 vol2 (portfolio weighted averages) | BD180: 404
A181: Business Standard | B181: Interior Occupancy or Vacancy Sensor Replacing No Controls | C181: 115.2 | D181: C&I | E181: Lighting | G181: per sensor | H181: 42 | I181: IL TRM v6 vol2 | J181: 402 | K181: 457.1784 | L181: Calculated Value | N181: 0.1407 | O181: 0.66 | P181: IL TRM v6 vol2 | Q181: 337 (portfolio weighted average) | R181: 0.0929 | S181: Calculated Value | U181: 3088 | V181: IL TRM v6 vol2 | W181: 338 | X181: 8 | Y181: IL TRM v6 vol2 | Z181: 411 | AA181: Wall-Mount Occupancy Sensor (watts controlled) | AB181: 350 | AC181: Program Tracking Data | AE181: No Control | AG181: IL TRM v6 vol2 | AH181: 402 | AI181: =ROUND(AG308/1000*BF308*Z308*AX308,4) | AJ181: =ROUND(S308*T308,4) | AK181: IL TRM v5 vol2 | AL181: 412413 | AM181: 2020-01-01 | AS181: 1.41 | AT181: Waste Heat Factor Energy | AU181: IL TRM v6 vol2 | AV181: 337 (portfolio weighted average) | AW181: 1.34 | AX181: Waste Heat Factor Demand | AY181: IL TRM v6 vol2 | AZ181: 337 (portfolio weighted average) | BA181: 0.3 | BB181: ESF | BC181: IL TRM v6 vol2 (portfolio weighted averages) | BD181: 404
A182: Business Standard | B182: High Volume Low Speed Fans (20ft Diameter) | C182: 116.1 | D182: C&I | E182: Pumps/Fans | G182: per fan | H182: 4150 | I182: IL TRM v6 vol2 | J182: 9 | K182: 6577 | L182: Calculated Value | R182: 2.4 | S182: Calculated Value | X182: 10 | Y182: IL TRM v6 vol2 | Z182: 9 | AI182: =ROUND(6577,4) | AJ182: =ROUND(2.4,4) | AK182: IL TRM v6 vol2 | AL182: 9,10 | AM182: 2020-01-01
A183: Business Standard | B183: High Volume Low Speed Fans (22ft Diameter) | C183: 117.1 | D183: C&I | E183: Pumps/Fans | G183: per fan | H183: 4180 | I183: IL TRM v6 vol2 | J183: 9 | K183: 8543 | L183: Calculated Value | R183: 3.1 | S183: Calculated Value | X183: 10 | Y183: IL TRM v6 vol2 | Z183: 9 | AI183: =ROUND(8543,4) | AJ183: =ROUND(3.1,4) | AK183: IL TRM v6 vol2 | AL183: 9,10 | AM183: 2020-01-01
A184: Business Standard | B184: High Volume Low Speed Fans (24ft Diameter) | C184: 118.1 | D184: C&I | E184: Pumps/Fans | G184: per fan | H184: 4225 | I184: IL TRM v6 vol2 | J184: 9 | K184: 10018 | L184: Calculated Value | R184: 3.7 | S184: Calculated Value | X184: 10 | Y184: IL TRM v6 vol2 | Z184: 9 | AI184: =ROUND(10018,4) | AJ184: =ROUND(3.7,4) | AK184: IL TRM v6 vol2 | AL184: 9,10 | AM184: 2020-01-01
A185: Business Standard | B185: Compressed Air - Engineered Nozzle 1/4" | C185: 119.1 | D185: C&I | E185: Pumps/Fans | G185: per unit | H185: 57 | I185: IL TRM v6 vol2 | J185: 472 | K185: 1086.638 | L185: Calculated Value | R185: 0.511 | S185: Calculated Value | X185: 15 | Y185: IL TRM v6 vol2 | Z185: 472 | AI185: =ROUND(1086.638,4) | AJ185: =ROUND(0.511,4) | AK185: IL TRM v6 vol2 | AL185: 473474 | AM185: 2020-01-01
A186: Business Standard | B186: Compressed Air - Engineered Nozzle 1/8" | C186: 120.1 | D186: C&I | E186: Pumps/Fans | G186: per unit | H186: 42 | I186: IL TRM v6 vol2 | J186: 472 | K186: 393.438 | L186: Calculated Value | R186: 0.163 | S186: Calculated Value | X186: 15 | Y186: IL TRM v6 vol2 | Z186: 472 | AI186: =ROUND(393.438,4) | AJ186: =ROUND(0.163,4) | AK186: IL TRM v6 vol2 | AL186: 473474 | AM186: 2020-01-01
A187: Business Standard | B187: Compressed Air - No Loss Condensate Drain/Valve | C187: 121.2 | D187: C&I | E187: Pumps/Fans | G187: per unit | H187: 700 | I187: IL TRM v6 vol2 | J187: 470 | K187: 1969.65 | L187: Calculated Value | R187: 0.305 | S187: Calculated Value | X187: 15 | Y187: IL TRM v6 vol2 | Z187: 470 | AI187: =ROUND(1969.65,4) | AJ187: =ROUND(0.30495,4) | AK187: IL TRM v6 vol2 | AL187: 471472 | AM187: 2020-01-01
A188: Business Standard | B188: Variable Speed Drive Compressor - 1 shift weekdays | C188: 122.1 | D188: C&I | E188: Pumps/Fans | G188: per HP | H188: 140.37 | I188: IL TRM v6 vol2 | J188: 466 | K188: 329 | L188: Calculated Value | R188: 0.1582 | S188: Calculated Value | X188: 10 | Y188: IL TRM v6 vol2 | Z188: 466 | AI188: =ROUND(329,4) | AJ188: =ROUND(0.15818,4) | AK188: IL TRM v6 vol2 | AL188: 466467 | AM188: 2020-01-01
A189: Business Standard | B189: Variable Speed Drive Compressor - 2 shift weekdays | C189: 123.1 | D189: C&I | E189: Pumps/Fans | G189: per HP | H189: 140.37 | I189: IL TRM v6 vol2 | J189: 466 | K189: 658 | L189: Calculated Value | R189: 0.1582 | S189: Calculated Value | X189: 10 | Y189: IL TRM v6 vol2 | Z189: 466 | AI189: =ROUND(658,4) | AJ189: =ROUND(0.15818,4) | AK189: IL TRM v6 vol2 | AL189: 466467 | AM189: 2020-01-01
A190: Business Standard | B190: Variable Speed Drive Compressor - 3 shift weekdays | C190: 124.1 | D190: C&I | E190: Pumps/Fans | G190: per HP | H190: 140.37 | I190: IL TRM v6 vol2 | J190: 466 | K190: 987 | L190: Calculated Value | R190: 0.1582 | S190: Calculated Value | X190: 10 | Y190: IL TRM v6 vol2 | Z190: 466 | AI190: =ROUND(987,4) | AJ190: =ROUND(0.15818,4) | AK190: IL TRM v6 vol2 | AL190: 466467 | AM190: 2020-01-01
A191: Business Standard | B191: Variable Speed Drive Compressor - 3 shift weekdays plus weekends | C191: 125.1 | D191: C&I | E191: Pumps/Fans | G191: per HP | H191: 140.37 | I191: IL TRM v6 vol2 | J191: 466 | K191: 1385.3 | L191: Calculated Value | R191: 0.1582 | S191: Calculated Value | X191: 10 | Y191: IL TRM v6 vol2 | Z191: 466 | AI191: =ROUND(1385.3,4) | AJ191: =ROUND(0.15818,4) | AK191: IL TRM v6 vol2 | AL191: 466467 | AM191: 2020-01-01
A192: Business Standard | B192: Advanced Rooftop Unit Controls, 2000-4000 annual hours occupancy | C192: 137.1 | D192: C&I | E192: HVAC | G192: Per unit | H192: 3412.06 | I192: IL TRM v7 vol2 | J192: 351 | K192: =ROUND(AS192*BA192,4) -> 1062.2 | L192: Calculated Value | O192: 0.913 | P192: IL TRM v7 vol2 | Q192: 351 | R192: =ROUND(AW192*BA192,4) -> 0.366 | S192: Calculated Value | X192: 15 | Y192: IL TRM v7 vol2 | Z192: 350 | AA192: RTU DCV controls with VFD and 2-speed fan control | AC192: IL TRM v7 vol2 | AD192: 354 | AE192: No RTU DCV controls | AG192: IL TRM v7 vol2 | AH192: 354 | AI192: =ROUND(AS354*BA354,4) | AJ192: =ROUND(AW354*BA354,4) | AK192: IL TRM v7 vol3 | AL192: 353, 355 | AM192: 2020-01-01 | AS192: 1062.2 | AT192: Normalized Electric Energy Savings (kWh/ton) - Springfield - Office Low Rise (update this value as needed per building type in Table 4) | AU192: IL TRM v7 vol2 | AV192: 354 | AW192: 0.366 | AX192: Normalized peak electric demand savings (kW/ton) - Springfield Office Low-Rise (update this value as needed per building type in Table 4) | AY192: IL TRM v7 vol2 | AZ192: 355 | BA192: 1 | BB192: Cooling equipment tonnage (update this value as needed per equipment specifications)
A193: Business Standard | B193: Advanced Rooftop Unit Controls, > 4000 annual hours occupancy | C193: 138.1 | D193: C&I | E193: HVAC | G193: Per unit | H193: 3412.06 | I193: IL TRM v7 vol2 | J193: 351 | K193: =ROUND(AS193*BA193,4) -> 1062.2 | L193: Calculated Value | O193: 0.913 | P193: IL TRM v7 vol2 | Q193: 351 | R193: =ROUND(AW193*BA193,4) -> 0.366 | S193: Calculated Value | X193: 15 | Y193: IL TRM v7 vol2 | Z193: 350 | AA193: RTU DCV controls with VFD and 2-speed fan control | AC193: IL TRM v7 vol2 | AD193: 354 | AE193: No RTU DCV controls | AG193: IL TRM v7 vol2 | AH193: 354 | AI193: =ROUND(AS356*BA356,4) | AJ193: =ROUND(AW356*BA356,4) | AK193: IL TRM v7 vol3 | AL193: 353, 355 | AM193: 2020-01-01 | AS193: 1062.2 | AT193: Normalized Electric Energy Savings (kWh/ton) - Springfield - Office Low Rise (update this value as needed per building type in Table 4) | AU193: IL TRM v7 vol2 | AV193: 354 | AW193: 0.366 | AX193: Normalized peak electric demand savings (kW/ton) - Springfield Office Low-Rise (update this value as needed per building type in Table 4) | AY193: IL TRM v7 vol2 | AZ193: 355 | BA193: 1 | BB193: Cooling equipment tonnage (update this value as needed per equipment specifications)
A194: Business Standard | B194: Variable Speed ECM Pump, <100 Watts Max Input, Domestic Hot Water Recirculation | C194: 139.1 | D194: C&I | E194: Pumps/Fans | G194: per pump | H194: 690.79 | I194: WI TRM 2018 | J194: 222 | K194: 1312.09 | L194: Calculated Value | R194: 0.228 | S194: Calculated Value | X194: 15 | Y194: WI TRM 2018 | Z194: 218 | AI194: =ROUND(1312.09,4) | AJ194: =ROUND(0.228,4) | AK194: WI TRM 2018 | AL194: 222 | AM194: 2020-01-01
A195: Business Standard | B195: Variable Speed ECM Pump, 100 - 500 Watts Max Input, Domestic Hot Water Recirculation | C195: 140.1 | D195: C&I | E195: Pumps/Fans | G195: per pump | H195: 1324.75 | I195: WI TRM 2018 | J195: 222 | K195: 6555.36 | L195: Calculated Value | R195: 1.139 | S195: Calculated Value | X195: 15 | Y195: WI TRM 2018 | Z195: 218 | AI195: =ROUND(6555.36,4) | AJ195: =ROUND(1.139,4) | AK195: WI TRM 2018 | AL195: 222 | AM195: 2020-01-01
A196: Business Standard | B196: Variable Speed ECM Pump, <100 Watts Max Input, Heating Water Circulation | C196: 142.1 | D196: C&I | E196: Pumps/Fans | G196: per pump | H196: 690.79 | I196: WI TRM 2018 | J196: 222 | K196: 359.03 | L196: Calculated Value | R196: 0 | S196: Calculated Value | X196: 15 | Y196: WI TRM 2018 | Z196: 218 | AI196: =ROUND(359.03,4) | AJ196: =ROUND(0,4) | AK196: WI TRM 2018 | AL196: 222 | AM196: 2020-01-01
A197: Business Standard | B197: Variable Speed ECM Pump, 100 - 500 Watts Max Input, Heating Water Circulation | C197: 143.1 | D197: C&I | E197: Pumps/Fans | G197: per pump | H197: 1324.75 | I197: WI TRM 2018 | J197: 222 | K197: 1793.58 | L197: Calculated Value | R197: 0 | S197: Calculated Value | X197: 15 | Y197: WI TRM 2018 | Z197: 218 | AI197: =ROUND(1793.58,4) | AJ197: =ROUND(0,4) | AK197: WI TRM 2018 | AL197: 222 | AM197: 2020-01-01
A198: Business Standard | B198: Variable Speed ECM Pump, >500 Watts Max Input, Heating Water Circulation | C198: 144.1 | D198: C&I | E198: Pumps/Fans | G198: per pump | H198: 1844.58 | I198: WI TRM 2018 | J198: 222 | K198: 7174.33 | L198: Calculated Value | R198: 0 | S198: Calculated Value | X198: 15 | Y198: WI TRM 2018 | Z198: 218 | AI198: =ROUND(7174.33,4) | AJ198: =ROUND(0,4) | AK198: WI TRM 2018 | AL198: 222 | AM198: 2020-01-01
A199: Business Standard | B199: Parking Garage 4ft 3 Lamp T5/T5HO or T8 replacing > 175W Fixture | C199: 146.2 | D199: C&I | E199: Lighting | F199: Annual Operating Hours, Measure Life and CF source: IL TRM | G199: per fixture | H199: 136 | I199: IL TRM v6 vol2 | J199: T8: 356,357 T5:413,414 | K199: 902.898 | L199: Calculated Value | N199: 0.103 | O199: 1 | P199: IL TRM v6 vol2 | Q199: 337 | R199: 0.103 | S199: Calculated Value | U199: 8766 | V199: IL TRM v6 vol2 | W199: 337 | X199: 6 | Y199: IL TRM v6 vol2 (calculated value based on lifetime hours) | Z199: 415+ | AA199: 4-ft 3L to 4L 4' T5, T5HO or T8 | AB199: 155 | AC199: Program Tracking Data | AE199: 200W - 250W HID Fixture | AF199: 258 | AG199: IL TRM v6 vol2 | AH199: 413+ (portfolio weighted average) | AI199: =ROUND((AK327-AG327)*(AX327)*Z327/1000,4) | AJ199: =ROUND(S327*T327,4) | AK199: IL TRM v6 vol2 | AL199: T8:353,354 T5:411,412 | AM199: 2020-01-01 | AS199: 1 | AT199: Waste Heat Factor Energy | AU199: IL TRM v6 vol2 | AV199: 338 | AW199: 1 | AX199: Waste Heat Factor_Demand | AY199: IL TRM v6 vol2 | AZ199: 338
A200: Business Standard | B200: Parking Garage 4ft 2 Lamp T5/T5HO or T8 replacing 101W-175W Fixture | C200: 147.3 | D200: C&I | E200: Lighting | F200: Annual Operating Hours, Measure Life and CF source: IL TRM | G200: per fixture | H200: 105 | I200: IL TRM v6 vol2 | J200: T8: 356,357 T5:413,414 | K200: 578.556 | L200: Calculated Value | N200: 0.066 | O200: 1 | P200: IL TRM v6 vol2 | Q200: 337 | R200: 0.066 | S200: Calculated Value | U200: 8766 | V200: IL TRM v6 vol2 | W200: 337 | X200: 6 | Y200: IL TRM v6 vol2 (calculated value based on lifetime hours) | Z200: 415+ | AA200: 4-ft 2L to 3L 4' T5, T5HO or T8 | AB200: 84 | AC200: Program Tracking Data | AE200: 125W - 175W HID Fixture | AF200: 150 | AH200: Midpoint Value | AI200: =ROUND((AK330-AG330)*(AX330)*Z330/1000,4) | AJ200: =ROUND(S330*T330,4) | AK200: IL TRM v6 vol2 | AL200: T8:353,354 T5:411,412 | AM200: 2020-01-01 | AS200: 1 | AT200: Waste Heat Factor Energy | AU200: IL TRM v6 vol2 | AV200: 338 | AW200: 1 | AX200: Waste Heat Factor_Demand | AY200: IL TRM v6 vol2 | AZ200: 338
... 224 more rows
